Organisation Code,Organisation Label,Effective Date,Organisational Unit,Service Division Label,Category Internal Name,Purpose,Detailed Expenditure Code,Payment Date,Transaction Number,Irrecoverable VAT Amount,Amount,Capital Or Revenue,Beneficiary Name,Procurement Card
Http://opendatacommunities.org/id/metropolitan-district-council/leeds,Leeds City Council,31/12/2023,Adults and Health,Services For Older People Under 65 P/Dis,Agency Payments,Sheltered Accommodation,569,06/12/2023,2312-00001,0.00,5400.00,R,A & V TRANSITIONAL HOMES,No
Http://opendatacommunities.org/id/metropolitan-district-council/leeds,Leeds City Council,31/12/2023,Adults and Health,Services For Older People Under 65 P/Dis,Agency Payments,Sheltered Accommodation,569,27/12/2023,2312-00002,0.00,5400.00,R,A & V TRANSITIONAL HOMES,No
Http://opendatacommunities.org/id/metropolitan-district-council/leeds,Leeds City Council,31/12/2023,City Development,Libraries Arts & Heritage,Supplies and Services,Operational Materials,205,08/12/2023,2312-00003,0.00,198.58,R,A C Entertainment Technologies Ltd,No
Http://opendatacommunities.org/id/metropolitan-district-council/leeds,Leeds City Council,31/12/2023,City Development,Libraries Arts & Heritage,Supplies and Services,Operational Furniture And Equipment,203,15/12/2023,2312-00004,0.00,829.50,R,A C Entertainment Technologies Ltd,No
Http://opendatacommunities.org/id/metropolitan-district-council/leeds,Leeds City Council,31/12/2023,Children and Families,Social Care,Agency Payments,Section 17,551,01/12/2023,2312-00005,0.00,128.86,R,REDACTED PERSONAL DATA,No
Http://opendatacommunities.org/id/metropolitan-district-council/leeds,Leeds City Council,31/12/2023,Children and Families,Social Care,Agency Payments,Section 17,551,08/12/2023,2312-00006,0.00,128.86,R,REDACTED PERSONAL DATA,No
Http://opendatacommunities.org/id/metropolitan-district-council/leeds,Leeds City Council,31/12/2023,Children and Families,Social Care,Agency Payments,Section 17,551,15/12/2023,2312-00007,0.00,128.86,R,REDACTED PERSONAL DATA,No
Http://opendatacommunities.org/id/metropolitan-district-council/leeds,Leeds City Council,31/12/2023,Children and Families,Social Care,Agency Payments,Section 17,551,22/12/2023,2312-00008,0.00,128.86,R,REDACTED PERSONAL DATA,No
Http://opendatacommunities.org/id/metropolitan-district-council/leeds,Leeds City Council,31/12/2023,Children and Families,Social Care,Agency Payments,Section 17,551,29/12/2023,2312-00009,0.00,128.86,R,REDACTED PERSONAL DATA,No
Http://opendatacommunities.org/id/metropolitan-district-council/leeds,Leeds City Council,31/12/2023,Children and Families,Social Care,Agency Payments,Section 17,551,29/12/2023,2312-00010,0.00,128.86,R,REDACTED PERSONAL DATA,No
Http://opendatacommunities.org/id/metropolitan-district-council/leeds,Leeds City Council,31/12/2023,Strategy and Resources,Leeds Building Services,Supplies and Services,Other Hired And Contracted Services,265,14/12/2023,2312-00011,0.00,18352.06,R,A Coole Electrical Ltd,No
Http://opendatacommunities.org/id/metropolitan-district-council/leeds,Leeds City Council,31/12/2023,Strategy and Resources,Leeds Building Services,Supplies and Services,Other Hired And Contracted Services,265,22/12/2023,2312-00012,0.00,4878.88,R,A Coole Electrical Ltd,No
Http://opendatacommunities.org/id/metropolitan-district-council/leeds,Leeds City Council,31/12/2023,Strategy and Resources,Leeds Building Services,Supplies and Services,Other Hired And Contracted Services,265,27/12/2023,2312-00013,0.00,27597.43,R,A Coole Electrical Ltd,No
Http://opendatacommunities.org/id/metropolitan-district-council/leeds,Leeds City Council,31/12/2023,Communities Housing and Environment,Customer Access,Supplies and Services,Bought In Professional Services,277,06/12/2023,2312-00014,0.00,84.00,R,REDACTED COMMERCIAL CONFIDENTIALITY,No
Http://opendatacommunities.org/id/metropolitan-district-council/leeds,Leeds City Council,31/12/2023,Communities Housing and Environment,Customer Access,Supplies and Services,Bought In Professional Services,277,06/12/2023,2312-00015,0.00,54.00,R,REDACTED COMMERCIAL CONFIDENTIALITY,No
Http://opendatacommunities.org/id/metropolitan-district-council/leeds,Leeds City Council,31/12/2023,Communities Housing and Environment,Customer Access,Supplies and Services,Bought In Professional Services,277,13/12/2023,2312-00016,0.00,36.00,R,REDACTED COMMERCIAL CONFIDENTIALITY,No
Http://opendatacommunities.org/id/metropolitan-district-council/leeds,Leeds City Council,31/12/2023,Communities Housing and Environment,Customer Access,Supplies and Services,Bought In Professional Services,277,13/12/2023,2312-00017,0.00,27.00,R,REDACTED COMMERCIAL CONFIDENTIALITY,No
Http://opendatacommunities.org/id/metropolitan-district-council/leeds,Leeds City Council,31/12/2023,Communities Housing and Environment,Customer Access,Supplies and Services,Bought In Professional Services,277,13/12/2023,2312-00018,0.00,18.00,R,REDACTED COMMERCIAL CONFIDENTIALITY,No
Http://opendatacommunities.org/id/metropolitan-district-council/leeds,Leeds City Council,31/12/2023,Communities Housing and Environment,Customer Access,Supplies and Services,Bought In Professional Services,277,20/12/2023,2312-00019,0.00,21.67,R,REDACTED COMMERCIAL CONFIDENTIALITY,No
Http://opendatacommunities.org/id/metropolitan-district-council/leeds,Leeds City Council,31/12/2023,Communities Housing and Environment,Customer Access,Supplies and Services,Bought In Professional Services,277,20/12/2023,2312-00020,0.00,30.00,R,REDACTED COMMERCIAL CONFIDENTIALITY,No
Http://opendatacommunities.org/id/metropolitan-district-council/leeds,Leeds City Council,31/12/2023,Communities Housing and Environment,Customer Access,Supplies and Services,Other Hired And Contracted Services,265,20/12/2023,2312-00021,0.00,375.00,R,REDACTED PERSONAL DATA,No
Http://opendatacommunities.org/id/metropolitan-district-council/leeds,Leeds City Council,31/12/2023,Children and Families,Social Care,Agency Payments,Services Rendered By Voluntary Sector,505,01/12/2023,2312-00022,0.00,5798.52,R,REDACTED PERSONAL DATA,No
Http://opendatacommunities.org/id/metropolitan-district-council/leeds,Leeds City Council,31/12/2023,Children and Families,Social Care,Agency Payments,Services Rendered By Voluntary Sector,505,01/12/2023,2312-00023,0.00,411.60,R,REDACTED PERSONAL DATA,No
Http://opendatacommunities.org/id/metropolitan-district-council/leeds,Leeds City Council,31/12/2023,Children and Families,Social Care,Agency Payments,Services Rendered By Voluntary Sector,505,01/12/2023,2312-00024,0.00,138.60,R,REDACTED PERSONAL DATA,No
Http://opendatacommunities.org/id/metropolitan-district-council/leeds,Leeds City Council,31/12/2023,Children and Families,Social Care,Agency Payments,Services Rendered By Voluntary Sector,505,06/12/2023,2312-00025,0.00,816.90,R,REDACTED PERSONAL DATA,No
Http://opendatacommunities.org/id/metropolitan-district-council/leeds,Leeds City Council,31/12/2023,City Development,Libraries Arts & Heritage,Supplies and Services,Bought In Professional Services,277,22/12/2023,2312-00026,0.00,2185.00,R,A F Miller,No
Http://opendatacommunities.org/id/metropolitan-district-council/leeds,Leeds City Council,31/12/2023,Children and Families,Social Care,Agency Payments,Services Rendered By Other Organisations,511,01/12/2023,2312-00027,0.00,756.00,R,REDACTED PERSONAL DATA,No
Http://opendatacommunities.org/id/metropolitan-district-council/leeds,Leeds City Council,31/12/2023,Children and Families,Social Care,Agency Payments,Services Rendered By Other Organisations,511,06/12/2023,2312-00028,0.00,816.90,R,REDACTED PERSONAL DATA,No
Http://opendatacommunities.org/id/metropolitan-district-council/leeds,Leeds City Council,31/12/2023,Adults and Health,Other Generic Services,Agency Payments,Fees To Carers,563,01/12/2023,2312-00029,0.00,140.73,R,REDACTED PERSONAL DATA,No
Http://opendatacommunities.org/id/metropolitan-district-council/leeds,Leeds City Council,31/12/2023,Adults and Health,Other Generic Services,Agency Payments,Fees To Carers,563,08/12/2023,2312-00030,0.00,140.73,R,REDACTED PERSONAL DATA,No
Http://opendatacommunities.org/id/metropolitan-district-council/leeds,Leeds City Council,31/12/2023,Adults and Health,Other Generic Services,Agency Payments,Fees To Carers,563,19/12/2023,2312-00031,0.00,587.60,R,REDACTED PERSONAL DATA,No
Http://opendatacommunities.org/id/metropolitan-district-council/leeds,Leeds City Council,31/12/2023,Adults and Health,Other Generic Services,Agency Payments,Fees To Carers,563,19/12/2023,2312-00032,0.00,56.70,R,REDACTED PERSONAL DATA,No
Http://opendatacommunities.org/id/metropolitan-district-council/leeds,Leeds City Council,31/12/2023,Adults and Health,Other Generic Services,Agency Payments,Fees To Carers,563,27/12/2023,2312-00033,0.00,187.64,R,REDACTED PERSONAL DATA,No
Http://opendatacommunities.org/id/metropolitan-district-council/leeds,Leeds City Council,31/12/2023,Strategy and Resources,Leeds Building Services,Supplies and Services,Operational Materials,205,08/12/2023,2312-00034,0.00,813.00,R,A J H  Pump Supply & Repair Ltd,No
Http://opendatacommunities.org/id/metropolitan-district-council/leeds,Leeds City Council,31/12/2023,Strategy and Resources,Leeds Building Services,Supplies and Services,Operational Materials,205,14/12/2023,2312-00035,0.00,998.00,R,A J H  Pump Supply & Repair Ltd,No
Http://opendatacommunities.org/id/metropolitan-district-council/leeds,Leeds City Council,31/12/2023,Strategy and Resources,Leeds Building Services,Supplies and Services,Operational Materials,205,21/12/2023,2312-00036,0.00,236.00,R,A J H  Pump Supply & Repair Ltd,No
Http://opendatacommunities.org/id/metropolitan-district-council/leeds,Leeds City Council,31/12/2023,Strategy and Resources,Leeds Building Services,Supplies and Services,Operational Materials,205,22/12/2023,2312-00037,0.00,220.00,R,A J H  Pump Supply & Repair Ltd,No
Http://opendatacommunities.org/id/metropolitan-district-council/leeds,Leeds City Council,31/12/2023,Strategy and Resources,Leeds Building Services,Supplies and Services,Operational Materials,205,22/12/2023,2312-00038,0.00,151.00,R,A J H  Pump Supply & Repair Ltd,No
Http://opendatacommunities.org/id/metropolitan-district-council/leeds,Leeds City Council,31/12/2023,Strategy and Resources,Leeds Building Services,Supplies and Services,Operational Materials,205,28/12/2023,2312-00039,0.00,584.00,R,A J H  Pump Supply & Repair Ltd,No
Http://opendatacommunities.org/id/metropolitan-district-council/leeds,Leeds City Council,31/12/2023,Children and Families,Social Care,Agency Payments,Services Rendered By Other Organisations,511,01/12/2023,2312-00040,0.00,529.20,R,REDACTED PERSONAL DATA,No
Http://opendatacommunities.org/id/metropolitan-district-council/leeds,Leeds City Council,31/12/2023,Children and Families,Social Care,Employees,Agency Staff,8,06/12/2023,2312-00041,0.00,702.00,R,A Little Something Extra Ltd,No
Http://opendatacommunities.org/id/metropolitan-district-council/leeds,Leeds City Council,31/12/2023,Children and Families,Social Care,Employees,Agency Staff,8,21/12/2023,2312-00042,0.00,39.00,R,A Little Something Extra Ltd,No
Http://opendatacommunities.org/id/metropolitan-district-council/leeds,Leeds City Council,31/12/2023,Children and Families,Social Care,Supplies and Services,Other Hired And Contracted Services,265,28/12/2023,2312-00043,0.00,225.00,R,A Little Something Extra Ltd,No
Http://opendatacommunities.org/id/metropolitan-district-council/leeds,Leeds City Council,31/12/2023,Children and Families,Social Care,Agency Payments,Services Rendered By Other Organisations,511,01/12/2023,2312-00044,0.00,1852.20,R,REDACTED PERSONAL DATA,No
Http://opendatacommunities.org/id/metropolitan-district-council/leeds,Leeds City Council,31/12/2023,Children and Families,Social Care,Agency Payments,Services Rendered By Other Organisations,511,01/12/2023,2312-00045,0.00,144.90,R,REDACTED PERSONAL DATA,No
Http://opendatacommunities.org/id/metropolitan-district-council/leeds,Leeds City Council,31/12/2023,Children and Families,Social Care,Agency Payments,Services Rendered By Other Organisations,511,01/12/2023,2312-00046,0.00,138.60,R,REDACTED PERSONAL DATA,No
Http://opendatacommunities.org/id/metropolitan-district-council/leeds,Leeds City Council,31/12/2023,Communities Housing and Environment,Customer Access,Supplies and Services,Bought In Professional Services,277,06/12/2023,2312-00047,0.00,54.00,R,A NAMAKI,No
Http://opendatacommunities.org/id/metropolitan-district-council/leeds,Leeds City Council,31/12/2023,Communities Housing and Environment,Customer Access,Supplies and Services,Bought In Professional Services,277,13/12/2023,2312-00048,0.00,27.00,R,A NAMAKI,No
Http://opendatacommunities.org/id/metropolitan-district-council/leeds,Leeds City Council,31/12/2023,Communities Housing and Environment,Customer Access,Supplies and Services,Bought In Professional Services,277,13/12/2023,2312-00049,0.00,27.00,R,A NAMAKI,No
Http://opendatacommunities.org/id/metropolitan-district-council/leeds,Leeds City Council,31/12/2023,Communities Housing and Environment,Customer Access,Supplies and Services,Bought In Professional Services,277,13/12/2023,2312-00050,0.00,18.00,R,A NAMAKI,No
Http://opendatacommunities.org/id/metropolitan-district-council/leeds,Leeds City Council,31/12/2023,Communities Housing and Environment,Customer Access,Supplies and Services,Bought In Professional Services,277,13/12/2023,2312-00051,0.00,18.00,R,A NAMAKI,No
Http://opendatacommunities.org/id/metropolitan-district-council/leeds,Leeds City Council,31/12/2023,Communities Housing and Environment,Customer Access,Supplies and Services,Bought In Professional Services,277,13/12/2023,2312-00052,0.00,54.00,R,A NAMAKI,No
Http://opendatacommunities.org/id/metropolitan-district-council/leeds,Leeds City Council,31/12/2023,Communities Housing and Environment,Customer Access,Supplies and Services,Bought In Professional Services,277,13/12/2023,2312-00053,0.00,18.00,R,A NAMAKI,No
Http://opendatacommunities.org/id/metropolitan-district-council/leeds,Leeds City Council,31/12/2023,Communities Housing and Environment,Customer Access,Supplies and Services,Bought In Professional Services,277,20/12/2023,2312-00054,0.00,15.00,R,A NAMAKI,No
Http://opendatacommunities.org/id/metropolitan-district-council/leeds,Leeds City Council,31/12/2023,Communities Housing and Environment,Customer Access,Supplies and Services,Bought In Professional Services,277,20/12/2023,2312-00055,0.00,20.00,R,A NAMAKI,No
Http://opendatacommunities.org/id/metropolitan-district-council/leeds,Leeds City Council,31/12/2023,Communities Housing and Environment,Customer Access,Supplies and Services,Bought In Professional Services,277,20/12/2023,2312-00056,0.00,54.00,R,A NAMAKI,No
Http://opendatacommunities.org/id/metropolitan-district-council/leeds,Leeds City Council,31/12/2023,Children and Families,Social Care,Agency Payments,Services Rendered By Other Organisations,511,01/12/2023,2312-00057,0.00,264.60,R,REDACTED PERSONAL DATA,No
Http://opendatacommunities.org/id/metropolitan-district-council/leeds,Leeds City Council,31/12/2023,Children and Families,Social Care,Agency Payments,Services Rendered By Other Organisations,511,06/12/2023,2312-00058,0.00,23.10,R,REDACTED PERSONAL DATA,No
Http://opendatacommunities.org/id/metropolitan-district-council/leeds,Leeds City Council,31/12/2023,Communities Housing and Environment,Waste Management,Employees,Training & Development,70,04/12/2023,2312-00059,0.00,243.80,R,A T Nerac Ltd,No
Http://opendatacommunities.org/id/metropolitan-district-council/leeds,Leeds City Council,31/12/2023,Communities Housing and Environment,Waste Management,Employees,Training & Development,70,06/12/2023,2312-00060,0.00,155.50,R,A T Nerac Ltd,No
Http://opendatacommunities.org/id/metropolitan-district-council/leeds,Leeds City Council,31/12/2023,Communities Housing and Environment,Waste Management,Employees,Training & Development,70,08/12/2023,2312-00061,0.00,195.80,R,A T Nerac Ltd,No
Http://opendatacommunities.org/id/metropolitan-district-council/leeds,Leeds City Council,31/12/2023,Communities Housing and Environment,Waste Management,Employees,Training & Development,70,29/12/2023,2312-00062,0.00,179.80,R,A T Nerac Ltd,No
Http://opendatacommunities.org/id/metropolitan-district-council/leeds,Leeds City Council as Accountable Body,31/12/2023,Social Services Pooled Budgets,Jcs For People With Learning Disabilitie,Agency Payments,Residential,580,06/12/2023,2312-00063,0.00,706.43,R,REDACTED PERSONAL DATA,No
Http://opendatacommunities.org/id/metropolitan-district-council/leeds,Leeds City Council as Accountable Body,31/12/2023,Social Services Pooled Budgets,Jcs For People With Learning Disabilitie,Agency Payments,Residential,580,06/12/2023,2312-00064,0.00,356.30,R,REDACTED PERSONAL DATA,No
Http://opendatacommunities.org/id/metropolitan-district-council/leeds,Leeds City Council,31/12/2023,Children and Families,Social Care,Agency Payments,Services Rendered By Other Organisations,511,01/12/2023,2312-00065,0.00,176.40,R,REDACTED PERSONAL DATA,No
Http://opendatacommunities.org/id/metropolitan-district-council/leeds,Leeds City Council,31/12/2023,Children and Families,Social Care,Agency Payments,Services Rendered By Other Organisations,511,01/12/2023,2312-00066,0.00,138.60,R,REDACTED PERSONAL DATA,No
Http://opendatacommunities.org/id/metropolitan-district-council/leeds,Leeds City Council,31/12/2023,Children and Families,Social Care,Agency Payments,Services Rendered By Other Organisations,511,01/12/2023,2312-00067,0.00,264.60,R,REDACTED PERSONAL DATA,No
Http://opendatacommunities.org/id/metropolitan-district-council/leeds,Leeds City Council,31/12/2023,Children and Families,Social Care,Agency Payments,Services Rendered By Other Organisations,511,01/12/2023,2312-00068,0.00,84.00,R,REDACTED PERSONAL DATA,No
Http://opendatacommunities.org/id/metropolitan-district-council/leeds,Leeds City Council,31/12/2023,Strategic Landlord,Housing Management,Supplies and Services,Compensation Claims,200,11/12/2023,2312-00069,0.00,150.00,R,REDACTED PERSONAL DATA,No
Http://opendatacommunities.org/id/metropolitan-district-council/leeds,Leeds City Council,31/12/2023,Children and Families,Social Care,Agency Payments,General External Residential Placements,507,01/12/2023,2312-00070,0.00,65751.00,R,A Wilderness Way Ltd,No
Http://opendatacommunities.org/id/metropolitan-district-council/leeds,Leeds City Council,31/12/2023,Children and Families,Social Care,Agency Payments,General External Residential Placements,507,29/12/2023,2312-00071,0.00,63630.00,R,A Wilderness Way Ltd,No
Http://opendatacommunities.org/id/metropolitan-district-council/leeds,Leeds City Council,31/12/2023,Strategy and Resources,Leeds Building Services,Supplies and Services,Operational Materials,205,04/12/2023,2312-00072,0.00,108.50,R,A1 STAIR LIFT SERVICES,No
Http://opendatacommunities.org/id/metropolitan-district-council/leeds,Leeds City Council,31/12/2023,Strategy and Resources,Leeds Building Services,Supplies and Services,Operational Materials,205,04/12/2023,2312-00073,0.00,146.95,R,A1 STAIR LIFT SERVICES,No
Http://opendatacommunities.org/id/metropolitan-district-council/leeds,Leeds City Council,31/12/2023,Strategy and Resources,Leeds Building Services,Supplies and Services,Operational Materials,205,08/12/2023,2312-00074,0.00,115.00,R,A1 STAIR LIFT SERVICES,No
Http://opendatacommunities.org/id/metropolitan-district-council/leeds,Leeds City Council,31/12/2023,Strategy and Resources,Leeds Building Services,Supplies and Services,Operational Materials,205,29/12/2023,2312-00075,0.00,112.00,R,A1 STAIR LIFT SERVICES,No
Http://opendatacommunities.org/id/metropolitan-district-council/leeds,Leeds City Council,31/12/2023,Communities Housing and Environment,Customer Access,Supplies and Services,Bought In Professional Services,277,20/12/2023,2312-00076,0.00,1500.00,R,AA Global Language Services Ltd,No
Http://opendatacommunities.org/id/metropolitan-district-council/leeds,Leeds City Council,31/12/2023,Communities Housing and Environment,Climate Energy & Greenspaces ,Supplies and Services,Resaleable Materials,204,15/11/2023,2312-00077,0.00,413.15,R,Aagrah Foods,Yes
Http://opendatacommunities.org/id/metropolitan-district-council/leeds,Leeds City Council,31/12/2023,Children and Families,Social Care,Internal Recharges,Legal Disbursements,411,08/12/2023,2312-00078,0.00,745.00,R,Aaqib Javed,No
Http://opendatacommunities.org/id/metropolitan-district-council/leeds,Leeds City Council,31/12/2023,Adults and Health,Services For Older People - 65 And Over,Agency Payments,Residential Care Dementia,571,06/12/2023,2312-00079,0.00,2469.52,R,Aaron Court Care Home,No
Http://opendatacommunities.org/id/metropolitan-district-council/leeds,Leeds City Council as Accountable Body,31/12/2023,Social Services Pooled Budgets,Jcs For People With Learning Disabilitie,Supplies and Services,Other Equipment,203,01/12/2023,2312-00080,0.00,345.00,R,AAT (GB) LTD,No
Http://opendatacommunities.org/id/metropolitan-district-council/leeds,Leeds City Council,31/12/2023,Adults and Health,Assessment And Care Management,Supplies and Services,Subsistence,256,08/12/2023,2312-00081,0.00,213.00,R,AAT (GB) LTD,No
Http://opendatacommunities.org/id/metropolitan-district-council/leeds,Leeds City Council as Accountable Body,31/12/2023,Social Services Pooled Budgets,Jcs For People With Learning Disabilitie,Supplies and Services,Other Equipment,203,29/12/2023,2312-00082,0.00,1009.00,R,AAT (GB) LTD,No
Http://opendatacommunities.org/id/metropolitan-district-council/leeds,Leeds City Council,31/12/2023,Communities Housing and Environment,Customer Access,Supplies and Services,Bought In Professional Services,277,13/12/2023,2312-00083,0.00,22.50,R,Abadit Kiros,No
Http://opendatacommunities.org/id/metropolitan-district-council/leeds,Leeds City Council,31/12/2023,Communities Housing and Environment,Customer Access,Supplies and Services,Bought In Professional Services,277,13/12/2023,2312-00084,0.00,27.00,R,Abadit Kiros,No
Http://opendatacommunities.org/id/metropolitan-district-council/leeds,Leeds City Council,31/12/2023,Communities Housing and Environment,Customer Access,Supplies and Services,Bought In Professional Services,277,13/12/2023,2312-00085,0.00,18.00,R,Abadit Kiros,No
Http://opendatacommunities.org/id/metropolitan-district-council/leeds,Leeds City Council,31/12/2023,Communities Housing and Environment,Customer Access,Supplies and Services,Bought In Professional Services,277,13/12/2023,2312-00086,0.00,18.00,R,Abadit Kiros,No
Http://opendatacommunities.org/id/metropolitan-district-council/leeds,Leeds City Council,31/12/2023,Communities Housing and Environment,Customer Access,Supplies and Services,Bought In Professional Services,277,13/12/2023,2312-00087,0.00,18.00,R,Abadit Kiros,No
Http://opendatacommunities.org/id/metropolitan-district-council/leeds,Leeds City Council,31/12/2023,Communities Housing and Environment,Customer Access,Supplies and Services,Bought In Professional Services,277,13/12/2023,2312-00088,0.00,9.00,R,Abadit Kiros,No
Http://opendatacommunities.org/id/metropolitan-district-council/leeds,Leeds City Council,31/12/2023,Communities Housing and Environment,Customer Access,Supplies and Services,Bought In Professional Services,277,13/12/2023,2312-00089,0.00,18.00,R,Abadit Kiros,No
Http://opendatacommunities.org/id/metropolitan-district-council/leeds,Leeds City Council,31/12/2023,Communities Housing and Environment,Customer Access,Supplies and Services,Bought In Professional Services,277,13/12/2023,2312-00090,0.00,27.00,R,Abadit Kiros,No
Http://opendatacommunities.org/id/metropolitan-district-council/leeds,Leeds City Council,31/12/2023,Communities Housing and Environment,Customer Access,Supplies and Services,Bought In Professional Services,277,13/12/2023,2312-00091,0.00,22.50,R,Abadit Kiros,No
Http://opendatacommunities.org/id/metropolitan-district-council/leeds,Leeds City Council,31/12/2023,Communities Housing and Environment,Customer Access,Supplies and Services,Bought In Professional Services,277,13/12/2023,2312-00092,0.00,36.00,R,Abadit Kiros,No
Http://opendatacommunities.org/id/metropolitan-district-council/leeds,Leeds City Council,31/12/2023,Children and Families,Social Care,Agency Payments,Services Rendered By Other Organisations,511,01/12/2023,2312-00093,0.00,27347.04,R,Abbey Multi Academy Trust,No
Http://opendatacommunities.org/id/metropolitan-district-council/leeds,Leeds City Council,31/12/2023,Children and Families,Social Care,Agency Payments,Services Rendered By Other Organisations,511,01/12/2023,2312-00094,0.00,512.40,R,Abbey Multi Academy Trust,No
Http://opendatacommunities.org/id/metropolitan-district-council/leeds,Leeds City Council,31/12/2023,Children and Families,Social Care,Agency Payments,Services Rendered By Other Organisations,511,01/12/2023,2312-00095,0.00,415.80,R,Abbey Multi Academy Trust,No
Http://opendatacommunities.org/id/metropolitan-district-council/leeds,Leeds City Council,31/12/2023,Children and Families,Learning,Supplies and Services,Other Hired And Contracted Services,265,22/12/2023,2312-00096,0.00,50.00,R,Abbey Multi Academy Trust,No
Http://opendatacommunities.org/id/metropolitan-district-council/leeds,Leeds City Council,31/12/2023,Children and Families,Learning,Supplies and Services,Other Hired And Contracted Services,265,22/12/2023,2312-00097,0.00,50.00,R,Abbey Multi Academy Trust,No
Http://opendatacommunities.org/id/metropolitan-district-council/leeds,Leeds City Council,31/12/2023,Children and Families,Learning,Supplies and Services,Other Hired And Contracted Services,265,22/12/2023,2312-00098,0.00,3038.10,R,Abbey Multi Academy Trust,No
Http://opendatacommunities.org/id/metropolitan-district-council/leeds,Leeds City Council,31/12/2023,Adults and Health,Services For Adults Under 65 Mental/Dis,Agency Payments,Home Care,568,14/12/2023,2312-00099,0.00,252.00,R,Abbeyfield The Dales Limited,No
Http://opendatacommunities.org/id/metropolitan-district-council/leeds,Leeds City Council,31/12/2023,Adults and Health,Services For Adults Under 65 Mental/Dis,Agency Payments,Home Care,568,29/12/2023,2312-00100,0.00,252.00,R,Abbeyfield The Dales Limited,No
Http://opendatacommunities.org/id/metropolitan-district-council/leeds,Leeds City Council,31/12/2023,Children and Families,Social Care,Agency Payments,Allowances,546,14/12/2023,2312-00101,0.00,798.86,R,REDACTED PERSONAL DATA,No
Http://opendatacommunities.org/id/metropolitan-district-council/leeds,Leeds City Council,31/12/2023,Children and Families,Social Care,Agency Payments,Services Rendered By Other Organisations,511,01/12/2023,2312-00102,0.00,635.04,R,REDACTED PERSONAL DATA,No
Http://opendatacommunities.org/id/metropolitan-district-council/leeds,Leeds City Council,31/12/2023,Children and Families,Social Care,Agency Payments,Services Rendered By Other Organisations,511,01/12/2023,2312-00103,0.00,30.24,R,REDACTED PERSONAL DATA,No
Http://opendatacommunities.org/id/metropolitan-district-council/leeds,Leeds City Council,31/12/2023,Children and Families,Social Care,Internal Recharges,Legal Disbursements,411,14/12/2023,2312-00104,0.00,225.68,R,Abbott Toxicology Ltd.,No
Http://opendatacommunities.org/id/metropolitan-district-council/leeds,Leeds City Council,31/12/2023,Children and Families,Social Care,Internal Recharges,Legal Disbursements,411,29/12/2023,2312-00105,0.00,23.75,R,Abbott Toxicology Ltd.,No
Http://opendatacommunities.org/id/metropolitan-district-council/leeds,Leeds City Council,31/12/2023,Communities Housing and Environment,Climate Energy & Greenspaces ,Supplies and Services,Other Hired And Contracted Services,265,01/11/2023,2312-00106,0.00,600.00,R,Abbotts Memorial Compa,Yes
Http://opendatacommunities.org/id/metropolitan-district-council/leeds,Leeds City Council,31/12/2023,Communities Housing and Environment,Climate Energy & Greenspaces ,Supplies and Services,Other Hired And Contracted Services,265,06/11/2023,2312-00107,0.00,900.00,R,Abbotts Memorial Compa,Yes
Http://opendatacommunities.org/id/metropolitan-district-council/leeds,Leeds City Council,31/12/2023,Communities Housing and Environment,Climate Energy & Greenspaces ,Supplies and Services,Other Hired And Contracted Services,265,06/11/2023,2312-00108,0.00,900.00,R,Abbotts Memorial Compa,Yes
Http://opendatacommunities.org/id/metropolitan-district-council/leeds,Leeds City Council,31/12/2023,Communities Housing and Environment,Climate Energy & Greenspaces ,Supplies and Services,Other Hired And Contracted Services,265,28/11/2023,2312-00109,0.00,600.00,R,Abbotts Memorial Compa,Yes
Http://opendatacommunities.org/id/metropolitan-district-council/leeds,Leeds City Council,31/12/2023,Communities Housing and Environment,Climate Energy & Greenspaces ,Supplies and Services,Other Hired And Contracted Services,265,28/11/2023,2312-00110,0.00,2700.00,R,Abbotts Memorial Compa,Yes
Http://opendatacommunities.org/id/metropolitan-district-council/leeds,Leeds City Council,31/12/2023,Children and Families,Social Care,Agency Payments,General External Residential Placements,507,15/12/2023,2312-00111,0.00,16950.09,R,Abc Care And Education Ltd,No
Http://opendatacommunities.org/id/metropolitan-district-council/leeds,Leeds City Council,31/12/2023,Children and Families,Social Care,Agency Payments,Services Rendered By Other Organisations,511,01/12/2023,2312-00112,0.00,7484.40,R,ABC NURSERY AT LUFC,No
Http://opendatacommunities.org/id/metropolitan-district-council/leeds,Leeds City Council,31/12/2023,Children and Families,Social Care,Agency Payments,Services Rendered By Other Organisations,511,01/12/2023,2312-00113,0.00,1263.30,R,ABC NURSERY AT LUFC,No
Http://opendatacommunities.org/id/metropolitan-district-council/leeds,Leeds City Council,31/12/2023,Children and Families,Social Care,Agency Payments,Services Rendered By Other Organisations,511,01/12/2023,2312-00114,0.00,415.80,R,ABC NURSERY AT LUFC,No
Http://opendatacommunities.org/id/metropolitan-district-council/leeds,Leeds City Council,31/12/2023,Children and Families,Social Care,Agency Payments,Services Rendered By Other Organisations,511,06/12/2023,2312-00115,0.00,5309.85,R,ABC NURSERY AT LUFC,No
Http://opendatacommunities.org/id/metropolitan-district-council/leeds,Leeds City Council,31/12/2023,Children and Families,Social Care,Agency Payments,Services Rendered By Other Organisations,511,01/12/2023,2312-00116,0.00,6237.00,R,Abc@D'S Childcare,No
Http://opendatacommunities.org/id/metropolitan-district-council/leeds,Leeds City Council,31/12/2023,Children and Families,Social Care,Agency Payments,Services Rendered By Other Organisations,511,01/12/2023,2312-00117,0.00,873.60,R,Abc@D'S Childcare,No
Http://opendatacommunities.org/id/metropolitan-district-council/leeds,Leeds City Council,31/12/2023,Children and Families,Social Care,Agency Payments,Services Rendered By Other Organisations,511,06/12/2023,2312-00118,0.00,962.77,R,Abc@D'S Childcare,No
Http://opendatacommunities.org/id/metropolitan-district-council/leeds,Leeds City Council,31/12/2023,Communities Housing and Environment,Customer Access,Supplies and Services,Bought In Professional Services,277,06/12/2023,2312-00119,0.00,9.00,R,Abdalla Ahmed,No
Http://opendatacommunities.org/id/metropolitan-district-council/leeds,Leeds City Council,31/12/2023,Communities Housing and Environment,Customer Access,Supplies and Services,Bought In Professional Services,277,06/12/2023,2312-00120,0.00,27.70,R,Abdalla Ahmed,No
Http://opendatacommunities.org/id/metropolitan-district-council/leeds,Leeds City Council,31/12/2023,Communities Housing and Environment,Customer Access,Supplies and Services,Bought In Professional Services,277,06/12/2023,2312-00121,0.00,34.50,R,Abdalla Ahmed,No
Http://opendatacommunities.org/id/metropolitan-district-council/leeds,Leeds City Council,31/12/2023,Communities Housing and Environment,Customer Access,Supplies and Services,Bought In Professional Services,277,13/12/2023,2312-00122,0.00,36.67,R,Abdalla Ahmed,No
Http://opendatacommunities.org/id/metropolitan-district-council/leeds,Leeds City Council,31/12/2023,Communities Housing and Environment,Customer Access,Supplies and Services,Bought In Professional Services,277,13/12/2023,2312-00123,0.00,27.00,R,Abdalla Ahmed,No
Http://opendatacommunities.org/id/metropolitan-district-council/leeds,Leeds City Council,31/12/2023,Communities Housing and Environment,Customer Access,Supplies and Services,Bought In Professional Services,277,20/12/2023,2312-00124,0.00,18.00,R,Abdalla Ahmed,No
Http://opendatacommunities.org/id/metropolitan-district-council/leeds,Leeds City Council,31/12/2023,Communities Housing and Environment,Customer Access,Supplies and Services,Bought In Professional Services,277,20/12/2023,2312-00125,0.00,20.00,R,Abdalla Ahmed,No
Http://opendatacommunities.org/id/metropolitan-district-council/leeds,Leeds City Council,31/12/2023,Communities Housing and Environment,Customer Access,Supplies and Services,Bought In Professional Services,277,20/12/2023,2312-00126,0.00,30.00,R,Abdalla Ahmed,No
Http://opendatacommunities.org/id/metropolitan-district-council/leeds,Leeds City Council,31/12/2023,Communities Housing and Environment,Customer Access,Supplies and Services,Bought In Professional Services,277,13/12/2023,2312-00127,0.00,21.00,R,Abdiqafar Abdullahi,No
Http://opendatacommunities.org/id/metropolitan-district-council/leeds,Leeds City Council,31/12/2023,Communities Housing and Environment,Customer Access,Supplies and Services,Bought In Professional Services,277,20/12/2023,2312-00128,0.00,30.00,R,Abdiqafar Abdullahi,No
Http://opendatacommunities.org/id/metropolitan-district-council/leeds,Leeds City Council,31/12/2023,Communities Housing and Environment,Customer Access,Supplies and Services,Bought In Professional Services,277,06/12/2023,2312-00129,0.00,27.00,R,Abdul Kalam,No
Http://opendatacommunities.org/id/metropolitan-district-council/leeds,Leeds City Council,31/12/2023,Communities Housing and Environment,Customer Access,Supplies and Services,Bought In Professional Services,277,20/12/2023,2312-00130,0.00,27.00,R,Abdul Kalam,No
Http://opendatacommunities.org/id/metropolitan-district-council/leeds,Leeds City Council,31/12/2023,Communities Housing and Environment,Customer Access,Supplies and Services,Bought In Professional Services,277,20/12/2023,2312-00131,0.00,20.00,R,Abdul Kalam,No
Http://opendatacommunities.org/id/metropolitan-district-council/leeds,Leeds City Council,31/12/2023,Children and Families,Social Care,Agency Payments,Section 17,551,22/12/2023,2312-00132,0.00,60.85,R,REDACTED PERSONAL DATA,No
Http://opendatacommunities.org/id/metropolitan-district-council/leeds,Leeds City Council,31/12/2023,Children and Families,Social Care,Agency Payments,Section 17,551,29/12/2023,2312-00133,0.00,20.00,R,REDACTED PERSONAL DATA,No
Http://opendatacommunities.org/id/metropolitan-district-council/leeds,Leeds City Council,31/12/2023,Children and Families,Social Care,Agency Payments,Section 17,551,29/12/2023,2312-00134,0.00,20.00,R,REDACTED PERSONAL DATA,No
Http://opendatacommunities.org/id/metropolitan-district-council/leeds,Leeds City Council,31/12/2023,Communities Housing and Environment,Customer Access,Supplies and Services,Bought In Professional Services,277,06/12/2023,2312-00135,0.00,9.00,R,Abdulahad Denha,No
Http://opendatacommunities.org/id/metropolitan-district-council/leeds,Leeds City Council,31/12/2023,Communities Housing and Environment,Customer Access,Supplies and Services,Bought In Professional Services,277,13/12/2023,2312-00136,0.00,18.00,R,Abdulahad Denha,No
Http://opendatacommunities.org/id/metropolitan-district-council/leeds,Leeds City Council,31/12/2023,Communities Housing and Environment,Customer Access,Supplies and Services,Bought In Professional Services,277,13/12/2023,2312-00137,0.00,18.00,R,Abdulahad Denha,No
Http://opendatacommunities.org/id/metropolitan-district-council/leeds,Leeds City Council,31/12/2023,Communities Housing and Environment,Customer Access,Supplies and Services,Bought In Professional Services,277,13/12/2023,2312-00138,0.00,40.00,R,Abdulahad Denha,No
Http://opendatacommunities.org/id/metropolitan-district-council/leeds,Leeds City Council,31/12/2023,Communities Housing and Environment,Customer Access,Supplies and Services,Bought In Professional Services,277,20/12/2023,2312-00139,0.00,27.00,R,Abdulahad Denha,No
Http://opendatacommunities.org/id/metropolitan-district-council/leeds,Leeds City Council,31/12/2023,Communities Housing and Environment,Customer Access,Supplies and Services,Bought In Professional Services,277,20/12/2023,2312-00140,0.00,18.00,R,Abdulahad Denha,No
Http://opendatacommunities.org/id/metropolitan-district-council/leeds,Leeds City Council,31/12/2023,Communities Housing and Environment,Customer Access,Supplies and Services,Bought In Professional Services,277,20/12/2023,2312-00141,0.00,20.00,R,Abdulahad Denha,No
Http://opendatacommunities.org/id/metropolitan-district-council/leeds,Leeds City Council,31/12/2023,Communities Housing and Environment,Customer Access,Supplies and Services,Bought In Professional Services,277,06/12/2023,2312-00142,0.00,18.00,R,Abdulrahim Dastyar,No
Http://opendatacommunities.org/id/metropolitan-district-council/leeds,Leeds City Council,31/12/2023,Communities Housing and Environment,Customer Access,Supplies and Services,Bought In Professional Services,277,20/12/2023,2312-00143,0.00,18.00,R,Abdulrahim Dastyar,No
Http://opendatacommunities.org/id/metropolitan-district-council/leeds,Leeds City Council,31/12/2023,Children and Families,Social Care,Agency Payments,Placement Support,550,20/12/2023,2312-00144,0.00,910.00,R,Aberford Childcare Services,No
Http://opendatacommunities.org/id/metropolitan-district-council/leeds,Leeds City Council,31/12/2023,Children and Families,Social Care,Agency Payments,Placement Support,550,28/12/2023,2312-00145,0.00,325.00,R,Aberford Childcare Services,No
Http://opendatacommunities.org/id/metropolitan-district-council/leeds,Leeds City Council,31/12/2023,Children and Families,Social Care,Agency Payments,Placement Support,550,28/12/2023,2312-00146,0.00,374.00,R,Aberford Childcare Services,No
Http://opendatacommunities.org/id/metropolitan-district-council/leeds,Leeds City Council,31/12/2023,Adults and Health,Services For Older People - 65 And Over,Agency Payments,Nursing Home,570,06/12/2023,2312-00147,0.00,62093.41,R,Aberford Hall,No
Http://opendatacommunities.org/id/metropolitan-district-council/leeds,Leeds City Council,31/12/2023,Adults and Health,Services For Older People - 65 And Over,Agency Payments,Nursing Care Dementia,574,06/12/2023,2312-00148,0.00,8050.69,R,Aberford Hall,No
Http://opendatacommunities.org/id/metropolitan-district-council/leeds,Leeds City Council,31/12/2023,Adults and Health,Services For Older People Under 65 P/Dis,Agency Payments,Nursing Home,570,06/12/2023,2312-00149,0.00,3016.00,R,Aberford Hall,No
Http://opendatacommunities.org/id/metropolitan-district-council/leeds,Leeds City Council,31/12/2023,Adults and Health,Services For Older People Under 65 P/Dis,Agency Payments,Residential,580,06/12/2023,2312-00150,0.00,7244.92,R,Aberford Hall,No
Http://opendatacommunities.org/id/metropolitan-district-council/leeds,Leeds City Council,31/12/2023,Adults and Health,Services For Older People - 65 And Over,Agency Payments,Nursing Home,570,27/12/2023,2312-00151,0.00,51310.71,R,Aberford Hall,No
Http://opendatacommunities.org/id/metropolitan-district-council/leeds,Leeds City Council,31/12/2023,Adults and Health,Services For Older People - 65 And Over,Agency Payments,Nursing Care Dementia,574,27/12/2023,2312-00152,0.00,-6454.53,R,Aberford Hall,No
Http://opendatacommunities.org/id/metropolitan-district-council/leeds,Leeds City Council,31/12/2023,Adults and Health,Services For Older People Under 65 P/Dis,Agency Payments,Nursing Home,570,27/12/2023,2312-00153,0.00,3016.00,R,Aberford Hall,No
Http://opendatacommunities.org/id/metropolitan-district-council/leeds,Leeds City Council,31/12/2023,Strategy and Resources,Leeds Building Services,Supplies and Services,Operational Materials,205,04/12/2023,2312-00154,0.00,10.83,R,ABI GARAGE DOORS LTD,No
Http://opendatacommunities.org/id/metropolitan-district-council/leeds,Leeds City Council,31/12/2023,Strategy and Resources,Leeds Building Services,Supplies and Services,Operational Materials,205,13/12/2023,2312-00155,0.00,45.84,R,ABI GARAGE DOORS LTD,No
Http://opendatacommunities.org/id/metropolitan-district-council/leeds,Leeds City Council,31/12/2023,Strategy and Resources,Leeds Building Services,Supplies and Services,Operational Materials,205,21/12/2023,2312-00156,0.00,10.83,R,ABI GARAGE DOORS LTD,No
Http://opendatacommunities.org/id/metropolitan-district-council/leeds,Leeds City Council,31/12/2023,Strategy and Resources,Leeds Building Services,Supplies and Services,Operational Materials,205,22/12/2023,2312-00157,0.00,376.16,R,ABI GARAGE DOORS LTD,No
Http://opendatacommunities.org/id/metropolitan-district-council/leeds,Leeds City Council,31/12/2023,Strategy and Resources,Leeds Building Services,Supplies and Services,Operational Materials,205,22/12/2023,2312-00158,0.00,376.16,R,ABI GARAGE DOORS LTD,No
Http://opendatacommunities.org/id/metropolitan-district-council/leeds,Leeds City Council,31/12/2023,Strategy and Resources,Leeds Building Services,Supplies and Services,Operational Materials,205,22/12/2023,2312-00159,0.00,376.16,R,ABI GARAGE DOORS LTD,No
Http://opendatacommunities.org/id/metropolitan-district-council/leeds,Leeds City Council,31/12/2023,Strategy and Resources,Leeds Building Services,Supplies and Services,Operational Materials,205,22/12/2023,2312-00160,0.00,376.16,R,ABI GARAGE DOORS LTD,No
Http://opendatacommunities.org/id/metropolitan-district-council/leeds,Leeds City Council,31/12/2023,Strategy and Resources,Leeds Building Services,Supplies and Services,Operational Materials,205,22/12/2023,2312-00161,0.00,376.16,R,ABI GARAGE DOORS LTD,No
Http://opendatacommunities.org/id/metropolitan-district-council/leeds,Leeds City Council,31/12/2023,Children and Families,Social Care,Agency Payments,Services Rendered By Other Organisations,511,12/12/2023,2312-00162,0.00,504.00,R,REDACTED PERSONAL DATA,No
Http://opendatacommunities.org/id/metropolitan-district-council/leeds,Leeds City Council,31/12/2023,Children and Families,Social Care ,Supplies and Services,Operational Furniture And Equipment,203,07/11/2023,2312-00163,0.00,134.55,R,Absolute,Yes
Http://opendatacommunities.org/id/metropolitan-district-council/leeds,Leeds City Council,31/12/2023,Children and Families,Social Care ,Supplies and Services,Food & Drink,231,15/11/2023,2312-00164,0.00,9.04,R,Abu Bakr Supermarket,Yes
Http://opendatacommunities.org/id/metropolitan-district-council/leeds,Leeds City Council,31/12/2023,Children and Families,Social Care,Agency Payments,Services Rendered By Other Organisations,511,01/12/2023,2312-00165,0.00,25628.40,R,Academies Enterprise Trust (AET),No
Http://opendatacommunities.org/id/metropolitan-district-council/leeds,Leeds City Council,31/12/2023,Children and Families,Social Care,Agency Payments,Services Rendered By Other Organisations,511,01/12/2023,2312-00166,0.00,2070.75,R,Academies Enterprise Trust (AET),No
Http://opendatacommunities.org/id/metropolitan-district-council/leeds,Leeds City Council,31/12/2023,Children and Families,Social Care,Agency Payments,Services Rendered By Other Organisations,511,01/12/2023,2312-00167,0.00,138.60,R,Academies Enterprise Trust (AET),No
Http://opendatacommunities.org/id/metropolitan-district-council/leeds,Leeds City Council,31/12/2023,Children and Families,Social Care,Agency Payments,Services Rendered By Other Organisations,511,06/12/2023,2312-00168,0.00,14120.70,R,Academies Enterprise Trust (AET),No
Http://opendatacommunities.org/id/metropolitan-district-council/leeds,Leeds City Council,31/12/2023,Children and Families,Learning,Supplies and Services,Other Hired And Contracted Services,265,22/12/2023,2312-00169,0.00,5868.00,R,Academies Enterprise Trust (AET),No
Http://opendatacommunities.org/id/metropolitan-district-council/leeds,Leeds City Council,31/12/2023,Communities Housing and Environment,Strategic Housing Partnership & Support,Supplies and Services,Other Hired And Contracted Services,265,05/12/2023,2312-00170,0.00,270.25,R,Accent Foundation Ltd,No
Http://opendatacommunities.org/id/metropolitan-district-council/leeds,Leeds City Council,31/12/2023,Adults and Health,Services For Older People - 65 And Over,Supplies and Services,Operational Furniture And Equipment,203,29/12/2023,2312-00171,0.00,85.00,R,Access Mobile Locksmith,No
Http://opendatacommunities.org/id/metropolitan-district-council/leeds,Leeds City Council,31/12/2023,City Development,Libraries Arts & Heritage,Supplies and Services,Bought In Professional Services,277,06/12/2023,2312-00172,0.00,2000.00,R,ACCESS MOVING IMAGE LTD,No
Http://opendatacommunities.org/id/metropolitan-district-council/leeds,Leeds City Council,31/12/2023,Insurance,Insurance,Supplies and Services,Insurance Claims,248,14/12/2023,2312-00173,0.00,10000.00,R,Accountant General Of The Senior Courts,No
Http://opendatacommunities.org/id/metropolitan-district-council/leeds,Leeds City Council,31/12/2023,City Development,Recreation,Transport,External Hire -Occasional,304,01/12/2023,2312-00174,0.00,124.50,R,ACE CONTAINER SERVICES LIMITED,No
Http://opendatacommunities.org/id/metropolitan-district-council/leeds,Leeds City Council,31/12/2023,City Development,Recreation,Transport,External Hire -Occasional,304,29/12/2023,2312-00175,0.00,37.20,R,ACE CONTAINER SERVICES LIMITED,No
Http://opendatacommunities.org/id/metropolitan-district-council/leeds,Leeds City Council,31/12/2023,City Development,Recreation,Transport,External Hire -Occasional,304,29/12/2023,2312-00176,0.00,40.30,R,ACE CONTAINER SERVICES LIMITED,No
Http://opendatacommunities.org/id/metropolitan-district-council/leeds,Leeds City Council,31/12/2023,City Development,Recreation,Transport,External Hire -Occasional,304,29/12/2023,2312-00177,0.00,51.15,R,ACE CONTAINER SERVICES LIMITED,No
Http://opendatacommunities.org/id/metropolitan-district-council/leeds,Leeds City Council,31/12/2023,Strategy and Resources,Leeds Building Services,Supplies and Services,Other Hired And Contracted Services,265,13/12/2023,2312-00178,0.00,440.00,R,Ace Elevators Limited,No
Http://opendatacommunities.org/id/metropolitan-district-council/leeds,Leeds City Council,31/12/2023,Strategy and Resources,Leeds Building Services,Supplies and Services,Other Hired And Contracted Services,265,27/12/2023,2312-00179,0.00,600.00,R,Ace Elevators Limited,No
Http://opendatacommunities.org/id/metropolitan-district-council/leeds,Leeds City Council,31/12/2023,Strategy and Resources,Leeds Building Services,Supplies and Services,Other Hired And Contracted Services,265,27/12/2023,2312-00180,0.00,1560.00,R,Ace Elevators Limited,No
Http://opendatacommunities.org/id/metropolitan-district-council/leeds,Leeds City Council,31/12/2023,City Development,Asset Management Services ,Supplies and Services,Memberships,226,03/11/2023,2312-00181,0.00,205.00,R,Aces.Org.Uk,Yes
Http://opendatacommunities.org/id/metropolitan-district-council/leeds,Leeds City Council,31/12/2023,Communities Housing and Environment,Climate Energy & Greenspaces ,Supplies and Services,Other Hired And Contracted Services,265,13/11/2023,2312-00182,0.00,90.00,R,Acme Facilities Group,Yes
Http://opendatacommunities.org/id/metropolitan-district-council/leeds,Leeds City Council,31/12/2023,Communities Housing and Environment,Climate Energy & Greenspaces ,Supplies and Services,Other Hired And Contracted Services,265,17/11/2023,2312-00183,0.00,1612.56,R,Acme Facilities Group,Yes
Http://opendatacommunities.org/id/metropolitan-district-council/leeds,Leeds City Council,31/12/2023,Strategy and Resources,Leeds Building Services,Supplies and Services,Operational Materials,205,29/12/2023,2312-00184,0.00,1093.00,R,Acme Facilities Group Ltd,No
Http://opendatacommunities.org/id/metropolitan-district-council/leeds,Leeds City Council as Accountable Body,31/12/2023,Social Services Pooled Budgets,Jcs For People With Learning Disabilitie,Agency Payments,Residential,580,06/12/2023,2312-00185,0.00,103912.96,R,Acorn Care & Education Limited,No
Http://opendatacommunities.org/id/metropolitan-district-council/leeds,Leeds City Council as Accountable Body,31/12/2023,Social Services Pooled Budgets,Jcs For People With Learning Disabilitie,Agency Payments,Residential,580,27/12/2023,2312-00186,0.00,103912.96,R,Acorn Care & Education Limited,No
Http://opendatacommunities.org/id/metropolitan-district-council/leeds,Leeds City Council as Accountable Body,31/12/2023,Social Services Pooled Budgets,Jcs For People With Learning Disabilitie,Agency Payments,Residential,580,06/12/2023,2312-00187,0.00,21536.80,R,Acorn Care & Education Limited (Ofg),No
Http://opendatacommunities.org/id/metropolitan-district-council/leeds,Leeds City Council as Accountable Body,31/12/2023,Social Services Pooled Budgets,Jcs For People With Learning Disabilitie,Agency Payments,Residential,580,27/12/2023,2312-00188,0.00,21536.80,R,Acorn Care & Education Limited (Ofg),No
Http://opendatacommunities.org/id/metropolitan-district-council/leeds,Leeds City Council,31/12/2023,Children and Families,Learning,Agency Payments,SEN Placements,566,15/12/2023,2312-00189,0.00,14314.59,R,Acorn Care & Education Ltd (Sales),No
Http://opendatacommunities.org/id/metropolitan-district-council/leeds,Leeds City Council,31/12/2023,Children and Families,Learning,Agency Payments,SEN Placements,566,22/12/2023,2312-00190,0.00,546.61,R,Acorn Care & Education Ltd (Sales),No
Http://opendatacommunities.org/id/metropolitan-district-council/leeds,Leeds City Council,31/12/2023,Children and Families,Learning,Agency Payments,SEN Placements,566,22/12/2023,2312-00191,0.00,273.31,R,Acorn Care & Education Ltd (Sales),No
Http://opendatacommunities.org/id/metropolitan-district-council/leeds,Leeds City Council,31/12/2023,Adults and Health,Services For Older People Under 65 P/Dis,Agency Payments,Nursing Home,570,06/12/2023,2312-00192,0.00,3500.00,R,Acorn Care Home,No
Http://opendatacommunities.org/id/metropolitan-district-council/leeds,Leeds City Council,31/12/2023,Adults and Health,Services For Older People Under 65 P/Dis,Agency Payments,Nursing Home,570,27/12/2023,2312-00193,0.00,3500.00,R,Acorn Care Home,No
Http://opendatacommunities.org/id/metropolitan-district-council/leeds,Leeds City Council,31/12/2023,Children and Families,Social Care,Agency Payments,Services Rendered By Other Organisations,511,01/12/2023,2312-00194,0.00,5376.17,R,ACORNS NURSERY,No
Http://opendatacommunities.org/id/metropolitan-district-council/leeds,Leeds City Council,31/12/2023,Children and Families,Social Care,Agency Payments,Services Rendered By Other Organisations,511,01/12/2023,2312-00195,0.00,117.60,R,ACORNS NURSERY,No
Http://opendatacommunities.org/id/metropolitan-district-council/leeds,Leeds City Council,31/12/2023,Children and Families,Social Care,Agency Payments,Services Rendered By Other Organisations,511,05/12/2023,2312-00196,0.00,583.50,R,ACORNS NURSERY,No
Http://opendatacommunities.org/id/metropolitan-district-council/leeds,Leeds City Council,31/12/2023,Children and Families,Social Care,Agency Payments,Services Rendered By Voluntary Sector,505,06/12/2023,2312-00197,0.00,450.00,R,ACORNS NURSERY,No
Http://opendatacommunities.org/id/metropolitan-district-council/leeds,Leeds City Council,31/12/2023,Adults and Health,Services For Older People - 65 And Over,Agency Payments,Nursing Home,570,06/12/2023,2312-00198,0.00,29548.98,R,Acre Green,No
Http://opendatacommunities.org/id/metropolitan-district-council/leeds,Leeds City Council,31/12/2023,Adults and Health,Services For Older People - 65 And Over,Agency Payments,Nursing Care Dementia,574,06/12/2023,2312-00199,0.00,13522.32,R,Acre Green,No
Http://opendatacommunities.org/id/metropolitan-district-council/leeds,Leeds City Council,31/12/2023,Adults and Health,Services For Older People - 65 And Over,Agency Payments,Residential,580,06/12/2023,2312-00200,0.00,4548.80,R,Acre Green,No
Http://opendatacommunities.org/id/metropolitan-district-council/leeds,Leeds City Council,31/12/2023,Adults and Health,Services For Older People Under 65 P/Dis,Agency Payments,Nursing Home,570,06/12/2023,2312-00201,0.00,2479.64,R,Acre Green,No
Http://opendatacommunities.org/id/metropolitan-district-council/leeds,Leeds City Council,31/12/2023,Adults and Health,Services For Older People Under 65 P/Dis,Agency Payments,Residential,580,06/12/2023,2312-00202,0.00,2071.00,R,Acre Green,No
Http://opendatacommunities.org/id/metropolitan-district-council/leeds,Leeds City Council,31/12/2023,Adults and Health,Services For Older People - 65 And Over,Agency Payments,Nursing Home,570,27/12/2023,2312-00203,0.00,46356.69,R,Acre Green,No
Http://opendatacommunities.org/id/metropolitan-district-council/leeds,Leeds City Council,31/12/2023,Adults and Health,Services For Older People - 65 And Over,Agency Payments,Nursing Care Dementia,574,27/12/2023,2312-00204,0.00,49961.83,R,Acre Green,No
Http://opendatacommunities.org/id/metropolitan-district-council/leeds,Leeds City Council,31/12/2023,Adults and Health,Services For Older People - 65 And Over,Agency Payments,Residential,580,27/12/2023,2312-00205,0.00,4548.80,R,Acre Green,No
Http://opendatacommunities.org/id/metropolitan-district-council/leeds,Leeds City Council,31/12/2023,Adults and Health,Services For Older People Under 65 P/Dis,Agency Payments,Nursing Home,570,27/12/2023,2312-00206,0.00,2479.64,R,Acre Green,No
Http://opendatacommunities.org/id/metropolitan-district-council/leeds,Leeds City Council,31/12/2023,Adults and Health,Services For Older People Under 65 P/Dis,Agency Payments,Residential,580,27/12/2023,2312-00207,0.00,2071.00,R,Acre Green,No
Http://opendatacommunities.org/id/metropolitan-district-council/leeds,Leeds City Council,31/12/2023,Children and Families,Social Care,Agency Payments,Services Rendered By Other Organisations,511,01/12/2023,2312-00208,0.00,20109.60,R,Acre Wood Day Nursery,No
Http://opendatacommunities.org/id/metropolitan-district-council/leeds,Leeds City Council,31/12/2023,Children and Families,Social Care,Agency Payments,Services Rendered By Other Organisations,511,01/12/2023,2312-00209,0.00,873.60,R,Acre Wood Day Nursery,No
Http://opendatacommunities.org/id/metropolitan-district-council/leeds,Leeds City Council,31/12/2023,Children and Families,Social Care,Agency Payments,Services Rendered By Other Organisations,511,01/12/2023,2312-00210,0.00,138.60,R,Acre Wood Day Nursery,No
Http://opendatacommunities.org/id/metropolitan-district-council/leeds,Leeds City Council,31/12/2023,Children and Families,Social Care,Agency Payments,Services Rendered By Other Organisations,511,06/12/2023,2312-00211,0.00,2684.10,R,Acre Wood Day Nursery,No
Http://opendatacommunities.org/id/metropolitan-district-council/leeds,Leeds City Council,31/12/2023,Adults and Health,Services For Adults Under 65 Mental/Dis,Agency Payments,Fees - Level 4,520,01/12/2023,2312-00212,0.00,6020.00,R,Action First Assessments Ltd,No
Http://opendatacommunities.org/id/metropolitan-district-council/leeds,Leeds City Council,31/12/2023,Adults and Health,Services For Adults Under 65 Mental/Dis,Agency Payments,Fees - Level 4,520,29/12/2023,2312-00213,0.00,4850.00,R,Action First Assessments Ltd,No
Http://opendatacommunities.org/id/metropolitan-district-council/leeds,Leeds City Council as Accountable Body,31/12/2023,Social Services Pooled Budgets,Jcs For People With Learning Disabilitie,Agency Payments,Residential,580,06/12/2023,2312-00214,0.00,11613.36,R,Action For Care Contracts Limited,No
Http://opendatacommunities.org/id/metropolitan-district-council/leeds,Leeds City Council as Accountable Body,31/12/2023,Social Services Pooled Budgets,Jcs For People With Learning Disabilitie,Agency Payments,Residential,580,27/12/2023,2312-00215,0.00,11613.36,R,Action For Care Contracts Limited,No
Http://opendatacommunities.org/id/metropolitan-district-council/leeds,Leeds City Council,31/12/2023,Children and Families,Social Care,Agency Payments,Independent Fostering Agencies,509,28/12/2023,2312-00216,0.00,5060.44,R,Action For Children Services Ltd,No
Http://opendatacommunities.org/id/metropolitan-district-council/leeds,Leeds City Council,31/12/2023,Adults and Health,Services For Older People - 65 And Over,Agency Payments,Payments To Voluntary Organisations,561,29/12/2023,2312-00217,0.00,45009.02,R,ACTION FOR GIPTON ELDERLY,No
Http://opendatacommunities.org/id/metropolitan-district-council/leeds,Leeds City Council,31/12/2023,City Development,Markets & City Centre Management,Supplies and Services,Publication And Promotion,267,13/12/2023,2312-00218,0.00,1260.00,R,ACTIVE HIRE (LEEDS) LTD,No
Http://opendatacommunities.org/id/metropolitan-district-council/leeds,Leeds City Council,31/12/2023,Children and Families,Social Care,Agency Payments,Services Rendered By Voluntary Sector,505,06/12/2023,2312-00219,0.00,1200.00,R,Active Kids (Yeadon),No
Http://opendatacommunities.org/id/metropolitan-district-council/leeds,Leeds City Council,31/12/2023,Children and Families,Social Care,Agency Payments,Services Rendered By Other Organisations,511,01/12/2023,2312-00220,0.00,1587.60,R,ACTIVE KIDS YEADON LLP,No
Http://opendatacommunities.org/id/metropolitan-district-council/leeds,Leeds City Council,31/12/2023,Children and Families,Social Care,Agency Payments,Services Rendered By Other Organisations,511,01/12/2023,2312-00221,0.00,881.00,R,ACTIVE KIDS YEADON LLP,No
Http://opendatacommunities.org/id/metropolitan-district-council/leeds,Leeds City Council,31/12/2023,Children and Families,Social Care,Agency Payments,Services Rendered By Other Organisations,511,01/12/2023,2312-00222,0.00,306.60,R,ACTIVE KIDS YEADON LLP,No
Http://opendatacommunities.org/id/metropolitan-district-council/leeds,Leeds City Council,31/12/2023,Children and Families,Social Care,Agency Payments,Services Rendered By Other Organisations,511,06/12/2023,2312-00223,0.00,2859.15,R,ACTIVE KIDS YEADON LLP,No
Http://opendatacommunities.org/id/metropolitan-district-council/leeds,Leeds City Council,31/12/2023,Children and Families,Social Care ,Supplies and Services,Operational Materials,205,07/11/2023,2312-00224,0.00,15.00,R,Active Leeds,Yes
Http://opendatacommunities.org/id/metropolitan-district-council/leeds,Leeds City Council,31/12/2023,Adults and Health,Services For Adults Under 65 Mental/Dis,Agency Payments,Sheltered Accommodation,569,06/12/2023,2312-00225,0.00,40876.24,R,Active Pathways,No
Http://opendatacommunities.org/id/metropolitan-district-council/leeds,Leeds City Council,31/12/2023,Adults and Health,Services For Older People - 65 And Over,Agency Payments,Sheltered Accommodation,569,06/12/2023,2312-00226,0.00,-1007.63,R,Active Pathways,No
Http://opendatacommunities.org/id/metropolitan-district-council/leeds,Leeds City Council as Accountable Body,31/12/2023,Social Services Pooled Budgets,Jcs For People With Learning Disabilitie,Agency Payments,Sheltered Accommodation,569,06/12/2023,2312-00227,0.00,9404.48,R,Active Pathways,No
Http://opendatacommunities.org/id/metropolitan-district-council/leeds,Leeds City Council,31/12/2023,Adults and Health,Services For Adults Under 65 Mental/Dis,Agency Payments,Residential,580,06/12/2023,2312-00228,0.00,14697.36,R,Active Pathways Limited,No
Http://opendatacommunities.org/id/metropolitan-district-council/leeds,Leeds City Council,31/12/2023,Adults and Health,Services For Older People - 65 And Over,Agency Payments,Residential,580,06/12/2023,2312-00229,0.00,4899.08,R,Active Pathways Limited,No
Http://opendatacommunities.org/id/metropolitan-district-council/leeds,Leeds City Council,31/12/2023,Adults and Health,Services For Adults Under 65 Mental/Dis,Agency Payments,Residential,580,27/12/2023,2312-00230,0.00,14697.36,R,Active Pathways Limited,No
Http://opendatacommunities.org/id/metropolitan-district-council/leeds,Leeds City Council,31/12/2023,Adults and Health,Services For Older People - 65 And Over,Agency Payments,Residential,580,27/12/2023,2312-00231,0.00,4899.08,R,Active Pathways Limited,No
Http://opendatacommunities.org/id/metropolitan-district-council/leeds,Leeds City Council,31/12/2023,Communities Housing and Environment,Waste Management,Supplies and Services,Recycling & Reuse Charges,234,08/12/2023,2312-00232,0.00,5028.48,R,Acumen Waste Services Ltd,No
Http://opendatacommunities.org/id/metropolitan-district-council/leeds,Leeds City Council,31/12/2023,Communities Housing and Environment,Waste Management,Supplies and Services,Recycling & Reuse Charges,234,08/12/2023,2312-00233,0.00,7558.56,R,Acumen Waste Services Ltd,No
Http://opendatacommunities.org/id/metropolitan-district-council/leeds,Leeds City Council,31/12/2023,Communities Housing and Environment,Waste Management,Supplies and Services,Recycling & Reuse Charges,234,08/12/2023,2312-00234,0.00,4443.84,R,Acumen Waste Services Ltd,No
Http://opendatacommunities.org/id/metropolitan-district-council/leeds,Leeds City Council,31/12/2023,Communities Housing and Environment,Waste Management,Supplies and Services,Recycling & Reuse Charges,234,29/12/2023,2312-00235,0.00,13980.96,R,Acumen Waste Services Ltd,No
Http://opendatacommunities.org/id/metropolitan-district-council/leeds,Leeds City Council,31/12/2023,Communities Housing and Environment,Waste Management,Supplies and Services,Recycling & Reuse Charges,234,29/12/2023,2312-00236,0.00,12376.08,R,Acumen Waste Services Ltd,No
Http://opendatacommunities.org/id/metropolitan-district-council/leeds,Leeds City Council,31/12/2023,Strategy and Resources,Shared Services,Supplies and Services,Operational Materials,205,01/12/2023,2312-00237,0.00,1497.00,R,AD3 Envelope Printers Limited,No
Http://opendatacommunities.org/id/metropolitan-district-council/leeds,Leeds City Council,31/12/2023,Strategy and Resources,Shared Services,Supplies and Services,Operational Materials,205,29/12/2023,2312-00238,0.00,567.00,R,AD3 Envelope Printers Limited,No
Http://opendatacommunities.org/id/metropolitan-district-council/leeds,Leeds City Council,31/12/2023,Children and Families,Social Care ,Supplies and Services,Subsistence,256,08/11/2023,2312-00239,0.00,15.23,R,Ada Restaurant,Yes
Http://opendatacommunities.org/id/metropolitan-district-council/leeds,Leeds City Council,31/12/2023,Children and Families,Social Care ,Supplies and Services,Subsistence,256,08/11/2023,2312-00240,0.00,271.92,R,Ada Restaurant,Yes
Http://opendatacommunities.org/id/metropolitan-district-council/leeds,Leeds City Council,31/12/2023,Children and Families,Social Care,Appropriations,16 Plus Top Up Allowance,625,21/12/2023,2312-00241,0.00,60.00,R,REDACTED PERSONAL DATA,No
Http://opendatacommunities.org/id/metropolitan-district-council/leeds,Leeds City Council,31/12/2023,Communities Housing and Environment,Strategic Housing Partnership & Support,Supplies and Services,Other Hired And Contracted Services,265,20/12/2023,2312-00242,0.00,3306.00,R,REDACTED PERSONAL DATA,No
Http://opendatacommunities.org/id/metropolitan-district-council/leeds,Leeds City Council,31/12/2023,Children and Families,Social Care,Appropriations,Leaving Care Allowances,634,19/12/2023,2312-00243,0.00,10.00,R,REDACTED PERSONAL DATA,No
Http://opendatacommunities.org/id/metropolitan-district-council/leeds,Leeds City Council,31/12/2023,Children and Families,Social Care,Agency Payments,Contact,548,28/12/2023,2312-00244,0.00,36.00,R,REDACTED PERSONAL DATA,No
Http://opendatacommunities.org/id/metropolitan-district-council/leeds,Leeds City Council,31/12/2023,Children and Families,Social Care ,Supplies and Services,General Amenity For Clients/Residents,285,27/11/2023,2312-00245,0.00,150.00,R,Adams Phones,Yes
Http://opendatacommunities.org/id/metropolitan-district-council/leeds,Leeds City Council,31/12/2023,City Development,Libraries Arts & Heritage,Supplies and Services,Other Hired And Contracted Services,265,08/12/2023,2312-00246,0.00,7130.00,R,ADDPLANT Limited,No
Http://opendatacommunities.org/id/metropolitan-district-council/leeds,Leeds City Council,31/12/2023,Strategic Accounts,Miscellaneous,Supplies and Services,Non-Recurring Grants,227,05/12/2023,2312-00247,0.00,100.00,R,ADEL CRAG COMMUNITY ASSOCIATION,No
Http://opendatacommunities.org/id/metropolitan-district-council/leeds,Leeds City Council,31/12/2023,Adults and Health,Services For Older People - 65 And Over,Agency Payments,Nursing Home,570,06/12/2023,2312-00248,0.00,2388.20,R,Adel Manor Care Centre,No
Http://opendatacommunities.org/id/metropolitan-district-council/leeds,Leeds City Council,31/12/2023,Adults and Health,Services For Older People - 65 And Over,Agency Payments,Residential,580,06/12/2023,2312-00249,0.00,9368.46,R,Adel Manor Care Centre,No
Http://opendatacommunities.org/id/metropolitan-district-council/leeds,Leeds City Council,31/12/2023,Adults and Health,Services For Older People Under 65 P/Dis,Agency Payments,Residential,580,06/12/2023,2312-00250,0.00,5000.00,R,Adel Manor Care Centre,No
Http://opendatacommunities.org/id/metropolitan-district-council/leeds,Leeds City Council,31/12/2023,Adults and Health,Services For Older People - 65 And Over,Agency Payments,Nursing Home,570,27/12/2023,2312-00251,0.00,3550.60,R,Adel Manor Care Centre,No
Http://opendatacommunities.org/id/metropolitan-district-council/leeds,Leeds City Council,31/12/2023,Adults and Health,Services For Older People - 65 And Over,Agency Payments,Residential,580,27/12/2023,2312-00252,0.00,2411.00,R,Adel Manor Care Centre,No
Http://opendatacommunities.org/id/metropolitan-district-council/leeds,Leeds City Council,31/12/2023,Adults and Health,Services For Older People Under 65 P/Dis,Agency Payments,Residential,580,27/12/2023,2312-00253,0.00,6117.20,R,Adel Manor Care Centre,No
Http://opendatacommunities.org/id/metropolitan-district-council/leeds,Leeds City Council,31/12/2023,Children and Families,Social Care,Agency Payments,Services Rendered By Voluntary Sector,505,01/12/2023,2312-00254,0.00,3118.50,R,ADEL PRE SCHOOL,No
Http://opendatacommunities.org/id/metropolitan-district-council/leeds,Leeds City Council,31/12/2023,Children and Families,Social Care,Agency Payments,Services Rendered By Voluntary Sector,505,01/12/2023,2312-00255,0.00,226.80,R,ADEL PRE SCHOOL,No
Http://opendatacommunities.org/id/metropolitan-district-council/leeds,Leeds City Council,31/12/2023,Children and Families,Social Care,Agency Payments,Services Rendered By Voluntary Sector,505,01/12/2023,2312-00256,0.00,554.40,R,ADEL PRE SCHOOL,No
Http://opendatacommunities.org/id/metropolitan-district-council/leeds,Leeds City Council,31/12/2023,Children and Families,Social Care,Agency Payments,Services Rendered By Voluntary Sector,505,05/12/2023,2312-00257,0.00,9160.95,R,ADEL PRE SCHOOL,No
Http://opendatacommunities.org/id/metropolitan-district-council/leeds,Leeds City Council,31/12/2023,Children and Families,Social Care,Agency Payments,Services Rendered By Voluntary Sector,505,06/12/2023,2312-00258,0.00,1050.00,R,ADEL PRE SCHOOL,No
Http://opendatacommunities.org/id/metropolitan-district-council/leeds,Leeds City Council,31/12/2023,City Development,Recreation,Supplies and Services,Bought In Professional Services,277,29/12/2023,2312-00259,0.00,180.00,R,Adele Battersby,No
Http://opendatacommunities.org/id/metropolitan-district-council/leeds,Leeds City Council,31/12/2023,City Development,Recreation,Supplies and Services,Bought In Professional Services,277,29/12/2023,2312-00260,0.00,220.00,R,Adele Battersby,No
Http://opendatacommunities.org/id/metropolitan-district-council/leeds,Leeds City Council,31/12/2023,Children and Families,Social Care,Agency Payments,Services Rendered By Other Organisations,511,06/12/2023,2312-00261,0.00,408.45,R,REDACTED PERSONAL DATA,No
Http://opendatacommunities.org/id/metropolitan-district-council/leeds,Leeds City Council,31/12/2023,Communities Housing and Environment,Cleaner Neighbourhood Teams,Transport,Fuel (LCC Supplies),320,06/12/2023,2312-00262,0.00,104.70,R,Adele Hirst,No
Http://opendatacommunities.org/id/metropolitan-district-council/leeds,Leeds City Council,31/12/2023,Children and Families,Social Care,Agency Payments,Contact,548,20/12/2023,2312-00263,0.00,32.00,R,REDACTED PERSONAL DATA,No
Http://opendatacommunities.org/id/metropolitan-district-council/leeds,Leeds City Council,31/12/2023,Strategy and Resources,Leeds Building Services,Supplies and Services,Operational Materials,205,04/12/2023,2312-00264,0.00,184.00,R,ADI-Gardiner Ltd,No
Http://opendatacommunities.org/id/metropolitan-district-council/leeds,Leeds City Council,31/12/2023,Strategy and Resources,Leeds Building Services,Supplies and Services,Operational Materials,205,08/12/2023,2312-00265,0.00,12.99,R,ADI-Gardiner Ltd,No
Http://opendatacommunities.org/id/metropolitan-district-council/leeds,Leeds City Council,31/12/2023,Strategy and Resources,Leeds Building Services,Supplies and Services,Operational Materials,205,08/12/2023,2312-00266,0.00,132.82,R,ADI-Gardiner Ltd,No
Http://opendatacommunities.org/id/metropolitan-district-council/leeds,Leeds City Council,31/12/2023,Strategy and Resources,Leeds Building Services,Supplies and Services,Operational Materials,205,13/12/2023,2312-00267,0.00,28.15,R,ADI-Gardiner Ltd,No
Http://opendatacommunities.org/id/metropolitan-district-council/leeds,Leeds City Council,31/12/2023,Strategy and Resources,Leeds Building Services,Supplies and Services,Operational Materials,205,13/12/2023,2312-00268,0.00,20.10,R,ADI-Gardiner Ltd,No
Http://opendatacommunities.org/id/metropolitan-district-council/leeds,Leeds City Council,31/12/2023,Strategy and Resources,Leeds Building Services,Supplies and Services,Operational Materials,205,13/12/2023,2312-00269,0.00,320.00,R,ADI-Gardiner Ltd,No
Http://opendatacommunities.org/id/metropolitan-district-council/leeds,Leeds City Council,31/12/2023,Strategy and Resources,Leeds Building Services,Supplies and Services,Operational Materials,205,13/12/2023,2312-00270,0.00,81.15,R,ADI-Gardiner Ltd,No
Http://opendatacommunities.org/id/metropolitan-district-council/leeds,Leeds City Council,31/12/2023,Strategy and Resources,Leeds Building Services,Supplies and Services,Operational Materials,205,13/12/2023,2312-00271,0.00,21.99,R,ADI-Gardiner Ltd,No
Http://opendatacommunities.org/id/metropolitan-district-council/leeds,Leeds City Council,31/12/2023,Strategy and Resources,Leeds Building Services,Supplies and Services,Operational Materials,205,13/12/2023,2312-00272,0.00,97.81,R,ADI-Gardiner Ltd,No
Http://opendatacommunities.org/id/metropolitan-district-council/leeds,Leeds City Council,31/12/2023,Strategy and Resources,Leeds Building Services,Supplies and Services,Operational Materials,205,13/12/2023,2312-00273,0.00,69.65,R,ADI-Gardiner Ltd,No
Http://opendatacommunities.org/id/metropolitan-district-council/leeds,Leeds City Council,31/12/2023,Strategy and Resources,Leeds Building Services,Supplies and Services,Operational Materials,205,15/12/2023,2312-00274,0.00,9.13,R,ADI-Gardiner Ltd,No
Http://opendatacommunities.org/id/metropolitan-district-council/leeds,Leeds City Council,31/12/2023,Strategy and Resources,Leeds Building Services,Supplies and Services,Operational Materials,205,22/12/2023,2312-00275,0.00,217.11,R,ADI-Gardiner Ltd,No
Http://opendatacommunities.org/id/metropolitan-district-council/leeds,Leeds City Council,31/12/2023,Strategy and Resources,Leeds Building Services,Supplies and Services,Operational Materials,205,22/12/2023,2312-00276,0.00,106.78,R,ADI-Gardiner Ltd,No
Http://opendatacommunities.org/id/metropolitan-district-council/leeds,Leeds City Council,31/12/2023,Strategy and Resources,Leeds Building Services,Supplies and Services,Operational Materials,205,22/12/2023,2312-00277,0.00,38.34,R,ADI-Gardiner Ltd,No
Http://opendatacommunities.org/id/metropolitan-district-council/leeds,Leeds City Council,31/12/2023,City Development,Libraries Arts & Heritage ,Supplies and Services,Computer Software & Equipment,214,28/11/2023,2312-00278,0.00,1025.76,R,Adobe *products,Yes
Http://opendatacommunities.org/id/metropolitan-district-council/leeds,Leeds City Council,31/12/2023,City Development,Libraries Arts & Heritage ,Supplies and Services,Advertising,211,07/11/2023,2312-00279,0.00,43.32,R,Adobe.Com,Yes
Http://opendatacommunities.org/id/metropolitan-district-council/leeds,Leeds City Council,31/12/2023,Children and Families,Social Care,Agency Payments,Independent Fostering Agencies,509,01/12/2023,2312-00280,0.00,3751.00,R,Adolescent And Childrens Trust,No
Http://opendatacommunities.org/id/metropolitan-district-council/leeds,Leeds City Council,31/12/2023,Children and Families,Social Care,Agency Payments,Independent Fostering Agencies,509,01/12/2023,2312-00281,0.00,3565.00,R,Adolescent And Childrens Trust,No
Http://opendatacommunities.org/id/metropolitan-district-council/leeds,Leeds City Council,31/12/2023,Children and Families,Social Care,Agency Payments,Independent Fostering Agencies,509,01/12/2023,2312-00282,0.00,3751.00,R,Adolescent And Childrens Trust,No
Http://opendatacommunities.org/id/metropolitan-district-council/leeds,Leeds City Council,31/12/2023,Children and Families,Social Care,Agency Payments,Independent Fostering Agencies,509,01/12/2023,2312-00283,0.00,3751.00,R,Adolescent And Childrens Trust,No
Http://opendatacommunities.org/id/metropolitan-district-council/leeds,Leeds City Council,31/12/2023,Children and Families,Social Care,Agency Payments,Independent Fostering Agencies,509,01/12/2023,2312-00284,0.00,3923.67,R,Adolescent And Childrens Trust,No
Http://opendatacommunities.org/id/metropolitan-district-council/leeds,Leeds City Council,31/12/2023,Children and Families,Social Care,Agency Payments,Independent Fostering Agencies,509,01/12/2023,2312-00285,0.00,3751.00,R,Adolescent And Childrens Trust,No
Http://opendatacommunities.org/id/metropolitan-district-council/leeds,Leeds City Council,31/12/2023,Children and Families,Social Care,Agency Payments,Independent Fostering Agencies,509,01/12/2023,2312-00286,0.00,3543.96,R,Adolescent And Childrens Trust,No
Http://opendatacommunities.org/id/metropolitan-district-council/leeds,Leeds City Council,31/12/2023,Children and Families,Social Care,Agency Payments,Independent Fostering Agencies,509,01/12/2023,2312-00287,0.00,3543.96,R,Adolescent And Childrens Trust,No
Http://opendatacommunities.org/id/metropolitan-district-council/leeds,Leeds City Council,31/12/2023,Children and Families,Social Care,Agency Payments,Independent Fostering Agencies,509,01/12/2023,2312-00288,0.00,3388.00,R,Adolescent And Childrens Trust,No
Http://opendatacommunities.org/id/metropolitan-district-council/leeds,Leeds City Council,31/12/2023,Children and Families,Social Care,Agency Payments,Independent Fostering Agencies,509,01/12/2023,2312-00289,0.00,3627.00,R,Adolescent And Childrens Trust,No
Http://opendatacommunities.org/id/metropolitan-district-council/leeds,Leeds City Council,31/12/2023,Children and Families,Social Care,Agency Payments,Placement Support,550,06/12/2023,2312-00290,0.00,900.00,R,Adoption Matters,No
Http://opendatacommunities.org/id/metropolitan-district-council/leeds,Leeds City Council as Accountable Body,31/12/2023,Social Services Pooled Budgets,Jcs For People With Learning Disabilitie,Agency Payments,Residential,580,08/12/2023,2312-00291,0.00,2609.36,R,ADRIAN HOUSE,No
Http://opendatacommunities.org/id/metropolitan-district-council/leeds,Leeds City Council,31/12/2023,Children and Families,Social Care,Agency Payments,Placement Support,550,07/12/2023,2312-00292,0.00,15.00,R,REDACTED PERSONAL DATA,No
Http://opendatacommunities.org/id/metropolitan-district-council/leeds,Leeds City Council,31/12/2023,Children and Families,Social Care,Agency Payments,Placement Support,550,12/12/2023,2312-00293,0.00,15.00,R,REDACTED PERSONAL DATA,No
Http://opendatacommunities.org/id/metropolitan-district-council/leeds,Leeds City Council,31/12/2023,Children and Families,Social Care,Agency Payments,Placement Support,550,18/12/2023,2312-00294,0.00,15.00,R,REDACTED PERSONAL DATA,No
Http://opendatacommunities.org/id/metropolitan-district-council/leeds,Leeds City Council,31/12/2023,Children and Families,Social Care,Agency Payments,Placement Support,550,22/12/2023,2312-00295,0.00,15.00,R,REDACTED PERSONAL DATA,No
Http://opendatacommunities.org/id/metropolitan-district-council/leeds,Leeds City Council,31/12/2023,Children and Families,Social Care,Agency Payments,Placement Support,550,22/12/2023,2312-00296,0.00,15.00,R,REDACTED PERSONAL DATA,No
Http://opendatacommunities.org/id/metropolitan-district-council/leeds,Leeds City Council,31/12/2023,Communities Housing and Environment,Benefits Wlefare and Poverty,Supplies and Services,Grant Related Expenditure,290,04/12/2023,2312-00297,0.00,75.00,R,REDACTED PERSONAL DATA,No
Http://opendatacommunities.org/id/metropolitan-district-council/leeds,Leeds City Council,31/12/2023,City Development,Recreation,Supplies and Services,Other Hired And Contracted Services,265,06/12/2023,2312-00298,0.00,140.00,R,ADVANCE STOCKS LTD,No
Http://opendatacommunities.org/id/metropolitan-district-council/leeds,Leeds City Council,31/12/2023,Children and Families,Social Care,Internal Recharges,Legal Disbursements,411,01/12/2023,2312-00299,0.00,294.60,R,ADVANCED CHILD CARE ASSESSMENTS LTD,No
Http://opendatacommunities.org/id/metropolitan-district-council/leeds,Leeds City Council,31/12/2023,Children and Families,Social Care,Internal Recharges,Legal Disbursements,411,07/12/2023,2312-00300,0.00,39.38,R,ADVANCED CHILD CARE ASSESSMENTS LTD,No
Http://opendatacommunities.org/id/metropolitan-district-council/leeds,Leeds City Council,31/12/2023,Children and Families,Social Care,Internal Recharges,Legal Disbursements,411,08/12/2023,2312-00301,0.00,3025.80,R,ADVANCED CHILD CARE ASSESSMENTS LTD,No
Http://opendatacommunities.org/id/metropolitan-district-council/leeds,Leeds City Council,31/12/2023,Adults and Health,Services For Older People - 65 And Over,Agency Payments,Home Care,568,06/12/2023,2312-00302,0.00,396.71,R,Advanced Medcare Ltd,No
Http://opendatacommunities.org/id/metropolitan-district-council/leeds,Leeds City Council as Accountable Body,31/12/2023,Social Services Pooled Budgets,Jcs For People With Learning Disabilitie,Agency Payments,Home Care,568,13/12/2023,2312-00303,0.00,614.64,R,Advanced Medcare Ltd,No
Http://opendatacommunities.org/id/metropolitan-district-council/leeds,Leeds City Council as Accountable Body,31/12/2023,Social Services Pooled Budgets,Jcs For People With Learning Disabilitie,Agency Payments,Home Care,568,20/12/2023,2312-00304,0.00,4201.80,R,Advanced Medcare Ltd,No
Http://opendatacommunities.org/id/metropolitan-district-council/leeds,Leeds City Council,31/12/2023,Adults and Health,Assessment And Care Management,Agency Payments,Home Care,568,27/12/2023,2312-00305,0.00,2302.04,R,Advanced Medcare Ltd,No
Http://opendatacommunities.org/id/metropolitan-district-council/leeds,Leeds City Council,31/12/2023,Adults and Health,Assessment And Care Management,Agency Payments,HCAIT Community Support,575,27/12/2023,2312-00306,0.00,536.40,R,Advanced Medcare Ltd,No
Http://opendatacommunities.org/id/metropolitan-district-council/leeds,Leeds City Council,31/12/2023,Adults and Health,Services For Adults Under 65 Learn/Dis,Agency Payments,Home Care,568,27/12/2023,2312-00307,0.00,625.80,R,Advanced Medcare Ltd,No
Http://opendatacommunities.org/id/metropolitan-district-council/leeds,Leeds City Council,31/12/2023,Adults and Health,Services For Adults Under 65 Mental/Dis,Agency Payments,Home Care,568,27/12/2023,2312-00308,0.00,268.20,R,Advanced Medcare Ltd,No
Http://opendatacommunities.org/id/metropolitan-district-council/leeds,Leeds City Council,31/12/2023,Adults and Health,Services For Adults Under 65 Mental/Dis,Agency Payments,HCAIT Community Support,575,27/12/2023,2312-00309,0.00,715.20,R,Advanced Medcare Ltd,No
Http://opendatacommunities.org/id/metropolitan-district-council/leeds,Leeds City Council,31/12/2023,Adults and Health,Services For Older People - 65 And Over,Agency Payments,Home Care,568,27/12/2023,2312-00310,0.00,39600.08,R,Advanced Medcare Ltd,No
Http://opendatacommunities.org/id/metropolitan-district-council/leeds,Leeds City Council,31/12/2023,Adults and Health,Services For Older People - 65 And Over,Agency Payments,HCAIT Community Support,575,27/12/2023,2312-00311,0.00,1139.84,R,Advanced Medcare Ltd,No
Http://opendatacommunities.org/id/metropolitan-district-council/leeds,Leeds City Council,31/12/2023,Adults and Health,Services For Older People Under 65 P/Dis,Agency Payments,Home Care,568,27/12/2023,2312-00312,0.00,25490.21,R,Advanced Medcare Ltd,No
Http://opendatacommunities.org/id/metropolitan-district-council/leeds,Leeds City Council,31/12/2023,Adults and Health,Services For Older People Under 65 P/Dis,Agency Payments,HCAIT Community Support,575,27/12/2023,2312-00313,0.00,1072.80,R,Advanced Medcare Ltd,No
Http://opendatacommunities.org/id/metropolitan-district-council/leeds,Leeds City Council as Accountable Body,31/12/2023,Social Services Pooled Budgets,Jcs For People With Learning Disabilitie,Agency Payments,Home Care,568,27/12/2023,2312-00314,0.00,2503.20,R,Advanced Medcare Ltd,No
Http://opendatacommunities.org/id/metropolitan-district-council/leeds,Leeds City Council as Accountable Body,31/12/2023,Social Services Pooled Budgets,Jcs For People With Learning Disabilitie,Agency Payments,Home Care,568,21/12/2023,2312-00315,0.00,6052.77,R,Advantage Healthcare Ltd,No
Http://opendatacommunities.org/id/metropolitan-district-council/leeds,Leeds City Council,31/12/2023,Adults and Health,Services For Adults Under 65 Mental/Dis,Agency Payments,Home Care,568,15/12/2023,2312-00316,0.00,90.00,R,Advocacy Focus,No
Http://opendatacommunities.org/id/metropolitan-district-council/leeds,Leeds City Council,31/12/2023,Adults and Health,Services For Adults Under 65 Mental/Dis,Agency Payments,Home Care,568,15/12/2023,2312-00317,0.00,45.00,R,Advocacy Focus,No
Http://opendatacommunities.org/id/metropolitan-district-council/leeds,Leeds City Council,31/12/2023,Adults and Health,Services For Adults Under 65 Mental/Dis,Agency Payments,Home Care,568,20/12/2023,2312-00318,0.00,45.00,R,Advocacy Focus,No
Http://opendatacommunities.org/id/metropolitan-district-council/leeds,Leeds City Council as Accountable Body,31/12/2023,Social Services Pooled Budgets,Jcs For People With Learning Disabilitie,Supplies and Services,Other Hired And Contracted Services,265,08/12/2023,2312-00319,0.00,20.10,R,Advonet,No
Http://opendatacommunities.org/id/metropolitan-district-council/leeds,Leeds City Council,31/12/2023,Adults and Health,Services For Adults Under 65 Mental/Dis,Agency Payments,Home Care,568,08/12/2023,2312-00320,0.00,15.00,R,Advonet,No
Http://opendatacommunities.org/id/metropolitan-district-council/leeds,Leeds City Council,31/12/2023,Children and Families,Social Care,Agency Payments,Placement Support,550,08/12/2023,2312-00321,0.00,7.50,R,Advonet,No
Http://opendatacommunities.org/id/metropolitan-district-council/leeds,Leeds City Council,31/12/2023,Adults and Health,Services For Adults Under 65 Learn/Dis,Agency Payments,Payments To Voluntary Organisations,561,08/12/2023,2312-00322,0.00,16150.46,R,Advonet,No
Http://opendatacommunities.org/id/metropolitan-district-council/leeds,Leeds City Council,31/12/2023,Adults and Health,Services For Older People - 65 And Over,Agency Payments,Payments To Voluntary Organisations,561,15/12/2023,2312-00323,0.00,101941.67,R,Advonet,No
Http://opendatacommunities.org/id/metropolitan-district-council/leeds,Leeds City Council,31/12/2023,Adults and Health,Services For Older People - 65 And Over,Agency Payments,Payments To Voluntary Organisations,561,15/12/2023,2312-00324,0.00,101941.67,R,Advonet,No
Http://opendatacommunities.org/id/metropolitan-district-council/leeds,Leeds City Council,31/12/2023,Communities Housing and Environment,Climate Energy & Greenspaces,Supplies and Services,Consultancy Services,259,08/12/2023,2312-00325,0.00,18943.45,R,Aecom Limited,No
Http://opendatacommunities.org/id/metropolitan-district-council/leeds,Leeds City Council,31/12/2023,City Development,Highways,Capital,OTHER COSTS,7,11/12/2023,2312-00326,0.00,79572.87,C,Aecom Limited,No
Http://opendatacommunities.org/id/metropolitan-district-council/leeds,Leeds City Council,31/12/2023,City Development,Highways,Capital,OTHER COSTS,7,18/12/2023,2312-00327,0.00,90670.07,C,Aecom Limited,No
Http://opendatacommunities.org/id/metropolitan-district-council/leeds,Leeds City Council,31/12/2023,City Development,Highways,Capital,OTHER COSTS,7,18/12/2023,2312-00328,0.00,79660.00,C,Aecom Limited,No
Http://opendatacommunities.org/id/metropolitan-district-council/leeds,Leeds City Council,31/12/2023,City Development,Highways,Capital,OTHER COSTS,7,22/12/2023,2312-00329,0.00,37397.20,C,Aecom Limited,No
Http://opendatacommunities.org/id/metropolitan-district-council/leeds,Leeds City Council,31/12/2023,Adults and Health,Services For Adults Under 65 Mental/Dis,Agency Payments,Home Care,568,01/12/2023,2312-00330,0.00,938.70,R,Aegis Care Solutions Ltd,No
Http://opendatacommunities.org/id/metropolitan-district-council/leeds,Leeds City Council,31/12/2023,Adults and Health,Services For Adults Under 65 Mental/Dis,Agency Payments,Home Care,568,01/12/2023,2312-00331,0.00,536.40,R,Aegis Care Solutions Ltd,No
Http://opendatacommunities.org/id/metropolitan-district-council/leeds,Leeds City Council,31/12/2023,Adults and Health,Services For Adults Under 65 Mental/Dis,Agency Payments,Home Care,568,01/12/2023,2312-00332,0.00,1379.55,R,Aegis Care Solutions Ltd,No
Http://opendatacommunities.org/id/metropolitan-district-council/leeds,Leeds City Council,31/12/2023,Adults and Health,Services For Adults Under 65 Mental/Dis,Agency Payments,Home Care,568,01/12/2023,2312-00333,0.00,1134.00,R,Aegis Care Solutions Ltd,No
Http://opendatacommunities.org/id/metropolitan-district-council/leeds,Leeds City Council,31/12/2023,Adults and Health,Services For Adults Under 65 Mental/Dis,Agency Payments,Home Care,568,01/12/2023,2312-00334,0.00,3318.59,R,Aegis Care Solutions Ltd,No
Http://opendatacommunities.org/id/metropolitan-district-council/leeds,Leeds City Council,31/12/2023,Adults and Health,Services For Adults Under 65 Mental/Dis,Agency Payments,Home Care,568,01/12/2023,2312-00335,0.00,2123.43,R,Aegis Care Solutions Ltd,No
Http://opendatacommunities.org/id/metropolitan-district-council/leeds,Leeds City Council,31/12/2023,Adults and Health,Services For Adults Under 65 Mental/Dis,Agency Payments,Home Care,568,01/12/2023,2312-00336,0.00,804.60,R,Aegis Care Solutions Ltd,No
Http://opendatacommunities.org/id/metropolitan-district-council/leeds,Leeds City Council,31/12/2023,Adults and Health,Services For Adults Under 65 Mental/Dis,Agency Payments,Home Care,568,01/12/2023,2312-00337,0.00,1385.70,R,Aegis Care Solutions Ltd,No
Http://opendatacommunities.org/id/metropolitan-district-council/leeds,Leeds City Council,31/12/2023,Adults and Health,Services For Adults Under 65 Mental/Dis,Agency Payments,Home Care,568,01/12/2023,2312-00338,0.00,402.30,R,Aegis Care Solutions Ltd,No
Http://opendatacommunities.org/id/metropolitan-district-council/leeds,Leeds City Council,31/12/2023,Adults and Health,Services For Adults Under 65 Mental/Dis,Agency Payments,Home Care,568,01/12/2023,2312-00339,0.00,536.40,R,Aegis Care Solutions Ltd,No
Http://opendatacommunities.org/id/metropolitan-district-council/leeds,Leeds City Council as Accountable Body,31/12/2023,Social Services Pooled Budgets,Jcs For People With Learning Disabilitie,Agency Payments,Home Care,568,01/12/2023,2312-00340,0.00,1452.75,R,Aegis Care Solutions Ltd,No
Http://opendatacommunities.org/id/metropolitan-district-council/leeds,Leeds City Council,31/12/2023,Adults and Health,Services For Adults Under 65 Mental/Dis,Agency Payments,HCAIT Community Support,575,06/12/2023,2312-00341,0.00,2190.32,R,Aegis Care Solutions Ltd,No
Http://opendatacommunities.org/id/metropolitan-district-council/leeds,Leeds City Council,31/12/2023,Adults and Health,Services For Older People - 65 And Over,Agency Payments,Home Care,568,06/12/2023,2312-00342,0.00,43291.91,R,Aegis Care Solutions Ltd,No
Http://opendatacommunities.org/id/metropolitan-district-council/leeds,Leeds City Council,31/12/2023,Adults and Health,Services For Older People - 65 And Over,Agency Payments,HCAIT Community Support,575,06/12/2023,2312-00343,0.00,357.60,R,Aegis Care Solutions Ltd,No
Http://opendatacommunities.org/id/metropolitan-district-council/leeds,Leeds City Council,31/12/2023,Adults and Health,Services For Older People - 65 And Over,Agency Payments,HCAIT Other,577,06/12/2023,2312-00344,0.00,618.28,R,Aegis Care Solutions Ltd,No
Http://opendatacommunities.org/id/metropolitan-district-council/leeds,Leeds City Council,31/12/2023,Adults and Health,Services For Older People Under 65 P/Dis,Agency Payments,Home Care,568,06/12/2023,2312-00345,0.00,7455.16,R,Aegis Care Solutions Ltd,No
Http://opendatacommunities.org/id/metropolitan-district-council/leeds,Leeds City Council as Accountable Body,31/12/2023,Social Services Pooled Budgets,Jcs For People With Learning Disabilitie,Agency Payments,Home Care,568,06/12/2023,2312-00346,0.00,4425.32,R,Aegis Care Solutions Ltd,No
Http://opendatacommunities.org/id/metropolitan-district-council/leeds,Leeds City Council,31/12/2023,Adults and Health,Services For Adults Under 65 Mental/Dis,Agency Payments,Home Care,568,15/12/2023,2312-00347,0.00,337.60,R,Aegis Care Solutions Ltd,No
Http://opendatacommunities.org/id/metropolitan-district-council/leeds,Leeds City Council,31/12/2023,Adults and Health,Services For Older People - 65 And Over,Agency Payments,Home Care,568,27/12/2023,2312-00348,0.00,42852.35,R,Aegis Care Solutions Ltd,No
Http://opendatacommunities.org/id/metropolitan-district-council/leeds,Leeds City Council,31/12/2023,Adults and Health,Services For Older People - 65 And Over,Agency Payments,HCAIT Community Support,575,27/12/2023,2312-00349,0.00,357.60,R,Aegis Care Solutions Ltd,No
Http://opendatacommunities.org/id/metropolitan-district-council/leeds,Leeds City Council,31/12/2023,Adults and Health,Services For Older People - 65 And Over,Agency Payments,HCAIT Other,577,27/12/2023,2312-00350,0.00,760.96,R,Aegis Care Solutions Ltd,No
Http://opendatacommunities.org/id/metropolitan-district-council/leeds,Leeds City Council,31/12/2023,Adults and Health,Services For Older People Under 65 P/Dis,Agency Payments,Home Care,568,27/12/2023,2312-00351,0.00,7294.64,R,Aegis Care Solutions Ltd,No
Http://opendatacommunities.org/id/metropolitan-district-council/leeds,Leeds City Council as Accountable Body,31/12/2023,Social Services Pooled Budgets,Jcs For People With Learning Disabilitie,Agency Payments,Home Care,568,27/12/2023,2312-00352,0.00,4425.32,R,Aegis Care Solutions Ltd,No
Http://opendatacommunities.org/id/metropolitan-district-council/leeds,Leeds City Council,31/12/2023,City Development,Libraries Arts & Heritage,Supplies and Services,Operational Furniture And Equipment,203,13/12/2023,2312-00353,0.00,600.00,R,Aesg Ltd,No
Http://opendatacommunities.org/id/metropolitan-district-council/leeds,Leeds City Council,31/12/2023,City Development,Libraries Arts & Heritage,Supplies and Services,Other Hired And Contracted Services,265,29/12/2023,2312-00354,0.00,1050.00,R,Aesg Ltd,No
Http://opendatacommunities.org/id/metropolitan-district-council/leeds,Leeds City Council as Accountable Body,31/12/2023,Social Services Pooled Budgets,Jcs For People With Learning Disabilitie,Agency Payments,Day Centre,564,01/12/2023,2312-00355,0.00,33575.66,R,Affinity Trust,No
Http://opendatacommunities.org/id/metropolitan-district-council/leeds,Leeds City Council as Accountable Body,31/12/2023,Social Services Pooled Budgets,Jcs For People With Learning Disabilitie,Agency Payments,Day Centre,564,01/12/2023,2312-00356,0.00,-787.50,R,Affinity Trust,No
Http://opendatacommunities.org/id/metropolitan-district-council/leeds,Leeds City Council,31/12/2023,Adults and Health,Services For Older People - 65 And Over,Agency Payments,Home Care,568,01/12/2023,2312-00357,0.00,499.98,R,Affinity Trust,No
Http://opendatacommunities.org/id/metropolitan-district-council/leeds,Leeds City Council as Accountable Body,31/12/2023,Social Services Pooled Budgets,Jcs For People With Learning Disabilitie,Agency Payments,Day Centre,564,01/12/2023,2312-00358,0.00,19039.00,R,Affinity Trust,No
Http://opendatacommunities.org/id/metropolitan-district-council/leeds,Leeds City Council,31/12/2023,Adults and Health,Services For Older People Under 65 P/Dis,Agency Payments,Home Care,568,01/12/2023,2312-00359,0.00,462.24,R,Affinity Trust,No
Http://opendatacommunities.org/id/metropolitan-district-council/leeds,Leeds City Council,31/12/2023,Adults and Health,Services For Adults Under 65 Mental/Dis,Agency Payments,HCAIT Community Support,575,06/12/2023,2312-00360,0.00,999.96,R,Affinity Trust,No
Http://opendatacommunities.org/id/metropolitan-district-council/leeds,Leeds City Council,31/12/2023,Adults and Health,Services For Older People - 65 And Over,Agency Payments,HCAIT Community Support,575,06/12/2023,2312-00361,0.00,692.28,R,Affinity Trust,No
Http://opendatacommunities.org/id/metropolitan-district-council/leeds,Leeds City Council,31/12/2023,Adults and Health,Services For Older People Under 65 P/Dis,Agency Payments,HCAIT Community Support,575,06/12/2023,2312-00362,0.00,1769.16,R,Affinity Trust,No
Http://opendatacommunities.org/id/metropolitan-district-council/leeds,Leeds City Council,31/12/2023,Adults and Health,Services For Older People - 65 And Over,Agency Payments,Home Care,568,06/12/2023,2312-00363,0.00,-615.36,R,Affinity Trust,No
Http://opendatacommunities.org/id/metropolitan-district-council/leeds,Leeds City Council,31/12/2023,Adults and Health,Services For Older People Under 65 P/Dis,Agency Payments,HCAIT Community Support,575,22/12/2023,2312-00364,0.00,9.62,R,Affinity Trust,No
Http://opendatacommunities.org/id/metropolitan-district-council/leeds,Leeds City Council,31/12/2023,Adults and Health,Services For Older People - 65 And Over,Agency Payments,Home Care,568,22/12/2023,2312-00365,0.00,-67.31,R,Affinity Trust,No
Http://opendatacommunities.org/id/metropolitan-district-council/leeds,Leeds City Council,31/12/2023,Adults and Health,Services For Adults Under 65 Mental/Dis,Agency Payments,Home Care,568,22/12/2023,2312-00366,0.00,153.84,R,Affinity Trust,No
Http://opendatacommunities.org/id/metropolitan-district-council/leeds,Leeds City Council,31/12/2023,Adults and Health,Services For Older People - 65 And Over,Agency Payments,Home Care,568,22/12/2023,2312-00367,0.00,615.36,R,Affinity Trust,No
Http://opendatacommunities.org/id/metropolitan-district-council/leeds,Leeds City Council as Accountable Body,31/12/2023,Social Services Pooled Budgets,Jcs For People With Learning Disabilitie,Agency Payments,Day Centre,564,28/12/2023,2312-00368,0.00,19538.98,R,Affinity Trust,No
Http://opendatacommunities.org/id/metropolitan-district-council/leeds,Leeds City Council as Accountable Body,31/12/2023,Social Services Pooled Budgets,Jcs For People With Learning Disabilitie,Agency Payments,Day Centre,564,29/12/2023,2312-00369,0.00,33138.12,R,Affinity Trust,No
Http://opendatacommunities.org/id/metropolitan-district-council/leeds,Leeds City Council,31/12/2023,Adults and Health,Services For Older People Under 65 P/Dis,Agency Payments,Home Care,568,29/12/2023,2312-00370,0.00,462.24,R,Affinity Trust,No
Http://opendatacommunities.org/id/metropolitan-district-council/leeds,Leeds City Council as Accountable Body,31/12/2023,Social Services Pooled Budgets,Jcs For People With Learning Disabilitie,Agency Payments,Sheltered Accommodation,569,06/12/2023,2312-00371,0.00,143037.33,R,Affinity Trust North Divisional Office,No
Http://opendatacommunities.org/id/metropolitan-district-council/leeds,Leeds City Council as Accountable Body,31/12/2023,Social Services Pooled Budgets,Jcs For People With Learning Disabilitie,Agency Payments,Sheltered Accommodation,569,27/12/2023,2312-00372,0.00,126461.31,R,Affinity Trust North Divisional Office,No
Http://opendatacommunities.org/id/metropolitan-district-council/leeds,Leeds City Council,31/12/2023,Communities Housing and Environment,Communities,Supplies and Services,Other Hired And Contracted Services,265,08/12/2023,2312-00373,0.00,200.00,R,Afghan Community Association (Sheffield),No
Http://opendatacommunities.org/id/metropolitan-district-council/leeds,Leeds City Council,31/12/2023,Communities Housing and Environment,Climate Energy & Greenspaces ,Transport,Hire Of Movable Plant & Machinery,315,06/11/2023,2312-00374,0.00,3800.00,R,Afi Uplift,Yes
Http://opendatacommunities.org/id/metropolitan-district-council/leeds,Leeds City Council,31/12/2023,Communities Housing and Environment,Climate Energy & Greenspaces ,Transport,Hire Of Movable Plant & Machinery,315,27/11/2023,2312-00375,0.00,3800.00,R,Afi Uplift,Yes
Http://opendatacommunities.org/id/metropolitan-district-council/leeds,Leeds City Council,31/12/2023,Children and Families,Social Care,Appropriations,Leaving Care Allowances,634,19/12/2023,2312-00376,0.00,60.00,R,REDACTED PERSONAL DATA,No
Http://opendatacommunities.org/id/metropolitan-district-council/leeds,Leeds City Council,31/12/2023,Adults and Health,Services For Older People - 65 And Over,Agency Payments,Payments To Voluntary Organisations,561,29/12/2023,2312-00377,0.00,9539.75,R,Age Uk Leeds,No
Http://opendatacommunities.org/id/metropolitan-district-council/leeds,Leeds City Council,31/12/2023,City Development,Highways,Supplies and Services,Operational Materials,205,11/12/2023,2312-00378,0.00,5827.66,R,AGGREGATE INDUSTRIES UK LTD,No
Http://opendatacommunities.org/id/metropolitan-district-council/leeds,Leeds City Council,31/12/2023,City Development,Highways,Supplies and Services,Operational Materials,205,15/12/2023,2312-00379,0.00,1663.32,R,AGGREGATE INDUSTRIES UK LTD,No
Http://opendatacommunities.org/id/metropolitan-district-council/leeds,Leeds City Council,31/12/2023,City Development,Highways,Supplies and Services,Operational Materials,205,15/12/2023,2312-00380,0.00,1699.00,R,AGGREGATE INDUSTRIES UK LTD,No
Http://opendatacommunities.org/id/metropolitan-district-council/leeds,Leeds City Council,31/12/2023,City Development,Highways,Capital,CONSTRUCTION,3,19/12/2023,2312-00381,0.00,150753.56,C,AGGREGATE INDUSTRIES UK LTD,No
Http://opendatacommunities.org/id/metropolitan-district-council/leeds,Leeds City Council,31/12/2023,City Development,Highways,Supplies and Services,Operational Materials,205,22/12/2023,2312-00382,0.00,908.82,R,AGGREGATE INDUSTRIES UK LTD,No
Http://opendatacommunities.org/id/metropolitan-district-council/leeds,Leeds City Council,31/12/2023,City Development,Highways,Supplies and Services,Operational Materials,205,22/12/2023,2312-00383,0.00,1683.15,R,AGGREGATE INDUSTRIES UK LTD,No
Http://opendatacommunities.org/id/metropolitan-district-council/leeds,Leeds City Council,31/12/2023,City Development,Highways,Supplies and Services,Operational Materials,205,22/12/2023,2312-00384,0.00,3195.00,R,AGGREGATE INDUSTRIES UK LTD,No
Http://opendatacommunities.org/id/metropolitan-district-council/leeds,Leeds City Council,31/12/2023,City Development,Highways,Supplies and Services,Operational Materials,205,22/12/2023,2312-00385,0.00,1663.32,R,AGGREGATE INDUSTRIES UK LTD,No
Http://opendatacommunities.org/id/metropolitan-district-council/leeds,Leeds City Council,31/12/2023,City Development,Highways,Supplies and Services,Operational Materials,205,22/12/2023,2312-00386,0.00,3052.46,R,AGGREGATE INDUSTRIES UK LTD,No
Http://opendatacommunities.org/id/metropolitan-district-council/leeds,Leeds City Council,31/12/2023,City Development,Highways,Supplies and Services,Operational Materials,205,22/12/2023,2312-00387,0.00,1656.53,R,AGGREGATE INDUSTRIES UK LTD,No
Http://opendatacommunities.org/id/metropolitan-district-council/leeds,Leeds City Council,31/12/2023,City Development,Highways,Supplies and Services,Operational Materials,205,22/12/2023,2312-00388,0.00,1404.24,R,AGGREGATE INDUSTRIES UK LTD,No
Http://opendatacommunities.org/id/metropolitan-district-council/leeds,Leeds City Council,31/12/2023,City Development,Highways,Supplies and Services,Operational Materials,205,22/12/2023,2312-00389,0.00,2440.44,R,AGGREGATE INDUSTRIES UK LTD,No
Http://opendatacommunities.org/id/metropolitan-district-council/leeds,Leeds City Council,31/12/2023,City Development,Highways,Supplies and Services,Operational Materials,205,28/12/2023,2312-00390,0.00,1697.30,R,AGGREGATE INDUSTRIES UK LTD,No
Http://opendatacommunities.org/id/metropolitan-district-council/leeds,Leeds City Council,31/12/2023,City Development,Highways,Supplies and Services,Operational Materials,205,28/12/2023,2312-00391,0.00,6793.64,R,AGGREGATE INDUSTRIES UK LTD,No
Http://opendatacommunities.org/id/metropolitan-district-council/leeds,Leeds City Council,31/12/2023,City Development,Highways,Supplies and Services,Operational Materials,205,29/12/2023,2312-00392,0.00,6822.86,R,AGGREGATE INDUSTRIES UK LTD,No
Http://opendatacommunities.org/id/metropolitan-district-council/leeds,Leeds City Council,31/12/2023,City Development,Highways,Supplies and Services,Operational Materials,205,29/12/2023,2312-00393,0.00,1620.85,R,AGGREGATE INDUSTRIES UK LTD,No
Http://opendatacommunities.org/id/metropolitan-district-council/leeds,Leeds City Council,31/12/2023,City Development,Highways,Supplies and Services,Operational Materials,205,29/12/2023,2312-00394,0.00,2741.66,R,AGGREGATE INDUSTRIES UK LTD,No
Http://opendatacommunities.org/id/metropolitan-district-council/leeds,Leeds City Council,31/12/2023,City Development,Highways,Supplies and Services,Operational Materials,205,29/12/2023,2312-00395,0.00,1339.53,R,AGGREGATE INDUSTRIES UK LTD,No
Http://opendatacommunities.org/id/metropolitan-district-council/leeds,Leeds City Council,31/12/2023,Children and Families,Social Care,Appropriations,Leaving Care Allowances,634,04/12/2023,2312-00396,0.00,7.35,R,REDACTED PERSONAL DATA,No
Http://opendatacommunities.org/id/metropolitan-district-council/leeds,Leeds City Council,31/12/2023,Children and Families,Social Care,Appropriations,Leaving Care Allowances,634,04/12/2023,2312-00397,0.00,7.35,R,REDACTED PERSONAL DATA,No
Http://opendatacommunities.org/id/metropolitan-district-council/leeds,Leeds City Council,31/12/2023,Children and Families,Social Care,Appropriations,Leaving Care Allowances,634,04/12/2023,2312-00398,0.00,25.00,R,REDACTED PERSONAL DATA,No
Http://opendatacommunities.org/id/metropolitan-district-council/leeds,Leeds City Council,31/12/2023,Children and Families,Social Care,Appropriations,Leaving Care Allowances,634,20/12/2023,2312-00399,0.00,40.00,R,REDACTED PERSONAL DATA,No
Http://opendatacommunities.org/id/metropolitan-district-council/leeds,Leeds City Council,31/12/2023,Communities Housing and Environment,Customer Access,Supplies and Services,Bought In Professional Services,277,06/12/2023,2312-00400,0.00,13.50,R,Agnieszka J Collier,No
Http://opendatacommunities.org/id/metropolitan-district-council/leeds,Leeds City Council,31/12/2023,Communities Housing and Environment,Customer Access,Supplies and Services,Bought In Professional Services,277,06/12/2023,2312-00401,0.00,18.00,R,Agnieszka Jablonska,No
Http://opendatacommunities.org/id/metropolitan-district-council/leeds,Leeds City Council,31/12/2023,Communities Housing and Environment,Customer Access,Supplies and Services,Bought In Professional Services,277,06/12/2023,2312-00402,0.00,18.00,R,Agnieszka Jablonska,No
Http://opendatacommunities.org/id/metropolitan-district-council/leeds,Leeds City Council,31/12/2023,Communities Housing and Environment,Customer Access,Supplies and Services,Bought In Professional Services,277,06/12/2023,2312-00403,0.00,18.00,R,Agnieszka Jablonska,No
Http://opendatacommunities.org/id/metropolitan-district-council/leeds,Leeds City Council,31/12/2023,Communities Housing and Environment,Customer Access,Supplies and Services,Bought In Professional Services,277,06/12/2023,2312-00404,0.00,18.00,R,Agnieszka Jablonska,No
Http://opendatacommunities.org/id/metropolitan-district-council/leeds,Leeds City Council,31/12/2023,Communities Housing and Environment,Customer Access,Supplies and Services,Bought In Professional Services,277,13/12/2023,2312-00405,0.00,18.00,R,Agnieszka Jablonska,No
Http://opendatacommunities.org/id/metropolitan-district-council/leeds,Leeds City Council,31/12/2023,Communities Housing and Environment,Customer Access,Supplies and Services,Bought In Professional Services,277,20/12/2023,2312-00406,0.00,18.00,R,Agnieszka Jablonska,No
Http://opendatacommunities.org/id/metropolitan-district-council/leeds,Leeds City Council,31/12/2023,Communities Housing and Environment,Customer Access,Supplies and Services,Bought In Professional Services,277,20/12/2023,2312-00407,0.00,18.00,R,Agnieszka Jablonska,No
Http://opendatacommunities.org/id/metropolitan-district-council/leeds,Leeds City Council,31/12/2023,Communities Housing and Environment,Customer Access,Supplies and Services,Bought In Professional Services,277,20/12/2023,2312-00408,0.00,18.00,R,Agnieszka Jablonska,No
Http://opendatacommunities.org/id/metropolitan-district-council/leeds,Leeds City Council,31/12/2023,Communities Housing and Environment,Customer Access,Supplies and Services,Bought In Professional Services,277,20/12/2023,2312-00409,0.00,20.00,R,Agnieszka Jablonska,No
Http://opendatacommunities.org/id/metropolitan-district-council/leeds,Leeds City Council,31/12/2023,Communities Housing and Environment,Customer Access,Supplies and Services,Bought In Professional Services,277,20/12/2023,2312-00410,0.00,30.00,R,Agnieszka Jablonska,No
Http://opendatacommunities.org/id/metropolitan-district-council/leeds,Leeds City Council,31/12/2023,Communities Housing and Environment,Customer Access,Supplies and Services,Bought In Professional Services,277,20/12/2023,2312-00411,0.00,18.00,R,Agnieszka Jablonska,No
Http://opendatacommunities.org/id/metropolitan-district-council/leeds,Leeds City Council,31/12/2023,City Development,Recreation ,Supplies and Services,Operational Furniture And Equipment,203,29/11/2023,2312-00412,0.00,644.00,R,Agpc Hygiene Ltd,Yes
Http://opendatacommunities.org/id/metropolitan-district-council/leeds,Leeds City Council,31/12/2023,Communities Housing and Environment,Customer Access,Supplies and Services,Bought In Professional Services,277,20/12/2023,2312-00413,0.00,20.00,R,Ahamat Hassan,No
Http://opendatacommunities.org/id/metropolitan-district-council/leeds,Leeds City Council,31/12/2023,Children and Families,Social Care,Appropriations,Leaving Care Allowances,634,11/12/2023,2312-00414,0.00,50.00,R,REDACTED PERSONAL DATA,No
Http://opendatacommunities.org/id/metropolitan-district-council/leeds,Leeds City Council,31/12/2023,Communities Housing and Environment,Customer Access,Supplies and Services,Bought In Professional Services,277,06/12/2023,2312-00415,0.00,18.00,R,Ahmed Moustafa Moustafa Mousa,No
Http://opendatacommunities.org/id/metropolitan-district-council/leeds,Leeds City Council,31/12/2023,Communities Housing and Environment,Customer Access,Supplies and Services,Bought In Professional Services,277,13/12/2023,2312-00416,0.00,36.00,R,Ahmed Moustafa Moustafa Mousa,No
Http://opendatacommunities.org/id/metropolitan-district-council/leeds,Leeds City Council,31/12/2023,Communities Housing and Environment,Customer Access,Supplies and Services,Bought In Professional Services,277,20/12/2023,2312-00417,0.00,20.00,R,Ahmed Moustafa Moustafa Mousa,No
Http://opendatacommunities.org/id/metropolitan-district-council/leeds,Leeds City Council,31/12/2023,Communities Housing and Environment,Customer Access,Supplies and Services,Bought In Professional Services,277,20/12/2023,2312-00418,0.00,18.00,R,Ahmed Moustafa Moustafa Mousa,No
Http://opendatacommunities.org/id/metropolitan-district-council/leeds,Leeds City Council,31/12/2023,Communities Housing and Environment,Customer Access,Supplies and Services,Bought In Professional Services,277,20/12/2023,2312-00419,0.00,18.00,R,Ahmed Moustafa Moustafa Mousa,No
Http://opendatacommunities.org/id/metropolitan-district-council/leeds,Leeds City Council,31/12/2023,Communities Housing and Environment,Customer Access,Supplies and Services,Bought In Professional Services,277,20/12/2023,2312-00420,0.00,20.00,R,Ahmed Moustafa Moustafa Mousa,No
Http://opendatacommunities.org/id/metropolitan-district-council/leeds,Leeds City Council,31/12/2023,Communities Housing and Environment,Customer Access,Supplies and Services,Bought In Professional Services,277,20/12/2023,2312-00421,0.00,70.00,R,Ahmed Moustafa Moustafa Mousa,No
Http://opendatacommunities.org/id/metropolitan-district-council/leeds,Leeds City Council,31/12/2023,Children and Families,Social Care,Agency Payments,General External Residential Placements,507,13/12/2023,2312-00422,0.00,48000.00,R,AHT Care Ltd,No
Http://opendatacommunities.org/id/metropolitan-district-council/leeds,Leeds City Council,31/12/2023,Children and Families,Social Care,Agency Payments,General External Residential Placements,507,22/12/2023,2312-00423,0.00,33800.00,R,AHT Care Ltd,No
Http://opendatacommunities.org/id/metropolitan-district-council/leeds,Leeds City Council,31/12/2023,Communities Housing and Environment,Climate Energy & Greenspaces ,Supplies and Services,Other Hired And Contracted Services,265,15/11/2023,2312-00424,0.00,25.83,R,Ahvla,Yes
Http://opendatacommunities.org/id/metropolitan-district-council/leeds,Leeds City Council as Accountable Body,31/12/2023,Social Services Pooled Budgets,Leeds Community Equip Store Pooled Budgt,Supplies and Services,Other Equipment,203,01/12/2023,2312-00425,0.00,4632.90,R,AIDAPT BATHROOMS LTD,No
Http://opendatacommunities.org/id/metropolitan-district-council/leeds,Leeds City Council as Accountable Body,31/12/2023,Social Services Pooled Budgets,Leeds Community Equip Store Pooled Budgt,Supplies and Services,Other Equipment,203,08/12/2023,2312-00426,0.00,2025.00,R,AIDAPT BATHROOMS LTD,No
Http://opendatacommunities.org/id/metropolitan-district-council/leeds,Leeds City Council as Accountable Body,31/12/2023,Social Services Pooled Budgets,Leeds Community Equip Store Pooled Budgt,Supplies and Services,Other Equipment,203,15/12/2023,2312-00427,0.00,500.00,R,AIDAPT BATHROOMS LTD,No
Http://opendatacommunities.org/id/metropolitan-district-council/leeds,Leeds City Council as Accountable Body,31/12/2023,Social Services Pooled Budgets,Leeds Community Equip Store Pooled Budgt,Supplies and Services,Other Equipment,203,15/12/2023,2312-00428,0.00,54.00,R,AIDAPT BATHROOMS LTD,No
Http://opendatacommunities.org/id/metropolitan-district-council/leeds,Leeds City Council as Accountable Body,31/12/2023,Social Services Pooled Budgets,Leeds Community Equip Store Pooled Budgt,Supplies and Services,Other Equipment,203,22/12/2023,2312-00429,0.00,231.50,R,AIDAPT BATHROOMS LTD,No
Http://opendatacommunities.org/id/metropolitan-district-council/leeds,Leeds City Council as Accountable Body,31/12/2023,Social Services Pooled Budgets,Leeds Community Equip Store Pooled Budgt,Supplies and Services,Other Equipment,203,22/12/2023,2312-00430,0.00,127.50,R,AIDAPT BATHROOMS LTD,No
Http://opendatacommunities.org/id/metropolitan-district-council/leeds,Leeds City Council as Accountable Body,31/12/2023,Social Services Pooled Budgets,Leeds Community Equip Store Pooled Budgt,Supplies and Services,Other Equipment,203,29/12/2023,2312-00431,0.00,1300.00,R,AIDAPT BATHROOMS LTD,No
Http://opendatacommunities.org/id/metropolitan-district-council/leeds,Leeds City Council,31/12/2023,City Development,Recreation,External Income,Sporting & Other Recreational Fees,928,06/12/2023,2312-00432,0.00,25.95,R,REDACTED PERSONAL DATA,No
Http://opendatacommunities.org/id/metropolitan-district-council/leeds,Leeds City Council,31/12/2023,Communities Housing and Environment,Benefits Wlefare and Poverty,Supplies and Services,Grant Related Expenditure,290,22/12/2023,2312-00433,0.00,100.00,R,REDACTED PERSONAL DATA,No
Http://opendatacommunities.org/id/metropolitan-district-council/leeds,Leeds City Council,31/12/2023,Strategy and Resources,Leeds Building Services,Supplies and Services,Operational Materials,205,04/12/2023,2312-00434,0.00,223.60,R,Air Conditioning Accessories,No
Http://opendatacommunities.org/id/metropolitan-district-council/leeds,Leeds City Council,31/12/2023,Strategy and Resources,Leeds Building Services,Supplies and Services,Operational Materials,205,04/12/2023,2312-00435,0.00,48.62,R,Air Conditioning Accessories,No
Http://opendatacommunities.org/id/metropolitan-district-council/leeds,Leeds City Council,31/12/2023,Strategy and Resources,Leeds Building Services,Supplies and Services,Operational Materials,205,04/12/2023,2312-00436,0.00,260.00,R,Air Conditioning Accessories,No
Http://opendatacommunities.org/id/metropolitan-district-council/leeds,Leeds City Council,31/12/2023,Strategy and Resources,Leeds Building Services,Supplies and Services,Operational Materials,205,04/12/2023,2312-00437,0.00,74.70,R,Air Conditioning Accessories,No
Http://opendatacommunities.org/id/metropolitan-district-council/leeds,Leeds City Council,31/12/2023,Strategy and Resources,Leeds Building Services,Supplies and Services,Operational Materials,205,04/12/2023,2312-00438,0.00,151.65,R,Air Conditioning Accessories,No
Http://opendatacommunities.org/id/metropolitan-district-council/leeds,Leeds City Council,31/12/2023,Strategy and Resources,Leeds Building Services,Supplies and Services,Operational Materials,205,04/12/2023,2312-00439,0.00,67.08,R,Air Conditioning Accessories,No
Http://opendatacommunities.org/id/metropolitan-district-council/leeds,Leeds City Council,31/12/2023,Strategy and Resources,Leeds Building Services,Supplies and Services,Operational Materials,205,04/12/2023,2312-00440,0.00,3.82,R,Air Conditioning Accessories,No
Http://opendatacommunities.org/id/metropolitan-district-council/leeds,Leeds City Council,31/12/2023,Strategy and Resources,Leeds Building Services,Supplies and Services,Operational Materials,205,04/12/2023,2312-00441,0.00,365.00,R,Air Conditioning Accessories,No
Http://opendatacommunities.org/id/metropolitan-district-council/leeds,Leeds City Council,31/12/2023,Strategy and Resources,Leeds Building Services,Supplies and Services,Operational Materials,205,04/12/2023,2312-00442,0.00,157.51,R,Air Conditioning Accessories,No
Http://opendatacommunities.org/id/metropolitan-district-council/leeds,Leeds City Council,31/12/2023,Strategy and Resources,Leeds Building Services,Supplies and Services,Operational Materials,205,04/12/2023,2312-00443,0.00,113.69,R,Air Conditioning Accessories,No
Http://opendatacommunities.org/id/metropolitan-district-council/leeds,Leeds City Council,31/12/2023,Strategy and Resources,Leeds Building Services,Supplies and Services,Operational Materials,205,04/12/2023,2312-00444,0.00,77.90,R,Air Conditioning Accessories,No
Http://opendatacommunities.org/id/metropolitan-district-council/leeds,Leeds City Council,31/12/2023,Strategy and Resources,Leeds Building Services,Supplies and Services,Operational Furniture And Equipment,203,07/12/2023,2312-00445,0.00,175.90,R,Air Conditioning Accessories,No
Http://opendatacommunities.org/id/metropolitan-district-council/leeds,Leeds City Council,31/12/2023,Strategy and Resources,Leeds Building Services,Supplies and Services,Operational Materials,205,07/12/2023,2312-00446,0.00,125.86,R,Air Conditioning Accessories,No
Http://opendatacommunities.org/id/metropolitan-district-council/leeds,Leeds City Council,31/12/2023,Strategy and Resources,Leeds Building Services,Supplies and Services,Operational Materials,205,13/12/2023,2312-00447,0.00,75.00,R,Air Conditioning Accessories,No
Http://opendatacommunities.org/id/metropolitan-district-council/leeds,Leeds City Council,31/12/2023,Strategy and Resources,Leeds Building Services,Supplies and Services,Operational Materials,205,13/12/2023,2312-00448,0.00,230.39,R,Air Conditioning Accessories,No
Http://opendatacommunities.org/id/metropolitan-district-council/leeds,Leeds City Council,31/12/2023,Strategy and Resources,Leeds Building Services,Supplies and Services,Operational Materials,205,15/12/2023,2312-00449,0.00,50.00,R,Air Conditioning Accessories,No
Http://opendatacommunities.org/id/metropolitan-district-council/leeds,Leeds City Council,31/12/2023,Strategy and Resources,Leeds Building Services,Supplies and Services,Operational Materials,205,20/12/2023,2312-00450,0.00,716.42,R,Air Conditioning Accessories,No
Http://opendatacommunities.org/id/metropolitan-district-council/leeds,Leeds City Council,31/12/2023,Strategy and Resources,Leeds Building Services,Supplies and Services,Operational Materials,205,22/12/2023,2312-00451,0.00,198.97,R,Air Conditioning Accessories,No
Http://opendatacommunities.org/id/metropolitan-district-council/leeds,Leeds City Council,31/12/2023,Strategy and Resources,Leeds Building Services,Supplies and Services,Operational Materials,205,28/12/2023,2312-00452,0.00,46.80,R,Air Conditioning Accessories,No
Http://opendatacommunities.org/id/metropolitan-district-council/leeds,Leeds City Council,31/12/2023,Strategy and Resources,Leeds Building Services,Supplies and Services,Operational Materials,205,28/12/2023,2312-00453,0.00,62.40,R,Air Conditioning Accessories,No
Http://opendatacommunities.org/id/metropolitan-district-council/leeds,Leeds City Council,31/12/2023,Strategy and Resources,Leeds Building Services,Supplies and Services,Operational Materials,205,29/12/2023,2312-00454,0.00,14.78,R,Air Conditioning Accessories,No
Http://opendatacommunities.org/id/metropolitan-district-council/leeds,Leeds City Council,31/12/2023,Communities Housing and Environment,Environmental Health,Supplies and Services,Other Hired And Contracted Services,265,01/12/2023,2312-00455,0.00,11.75,R,AIR LIQUIDE UK,No
Http://opendatacommunities.org/id/metropolitan-district-council/leeds,Leeds City Council,31/12/2023,Communities Housing and Environment,Environmental Health,Supplies and Services,Other Hired And Contracted Services,265,01/12/2023,2312-00456,0.00,11.75,R,AIR LIQUIDE UK,No
Http://opendatacommunities.org/id/metropolitan-district-council/leeds,Leeds City Council,31/12/2023,Communities Housing and Environment,Environmental Health,Supplies and Services,Other Hired And Contracted Services,265,01/12/2023,2312-00457,0.00,11.75,R,AIR LIQUIDE UK,No
Http://opendatacommunities.org/id/metropolitan-district-council/leeds,Leeds City Council,31/12/2023,Communities Housing and Environment,Environmental Health,Supplies and Services,Other Hired And Contracted Services,265,01/12/2023,2312-00458,0.00,94.00,R,AIR LIQUIDE UK,No
Http://opendatacommunities.org/id/metropolitan-district-council/leeds,Leeds City Council,31/12/2023,Children and Families,Social Care ,Agency Payments,Section 17,551,20/11/2023,2312-00459,0.00,1547.65,R,Airbnb * Hmc3sy5cn4,Yes
Http://opendatacommunities.org/id/metropolitan-district-council/leeds,Leeds City Council,31/12/2023,Children and Families,Social Care ,Supplies and Services,General Amenity For Clients/Residents,285,14/11/2023,2312-00460,0.00,233.89,R,Airbnb * Hmm4mz2jkj,Yes
Http://opendatacommunities.org/id/metropolitan-district-council/leeds,Leeds City Council,31/12/2023,Children and Families,Social Care ,Agency Payments,Section 17,551,07/11/2023,2312-00461,0.00,914.95,R,Airbnb * Hmqs5jf5n4,Yes
Http://opendatacommunities.org/id/metropolitan-district-council/leeds,Leeds City Council,31/12/2023,City Development,Markets & City Centre Management,Supplies and Services,City Centre Enhancement,295,01/12/2023,2312-00462,0.00,300.00,R,Aire Valley Tree Services Ltd,No
Http://opendatacommunities.org/id/metropolitan-district-council/leeds,Leeds City Council,31/12/2023,Communities Housing and Environment,Climate Energy & Greenspaces,Supplies and Services,Other Hired And Contracted Services,265,01/12/2023,2312-00463,0.00,425.00,R,Aire Valley Tree Services Ltd,No
Http://opendatacommunities.org/id/metropolitan-district-council/leeds,Leeds City Council,31/12/2023,Adults and Health,Services For Older People - 65 And Over,Agency Payments,Residential Care Dementia,571,06/12/2023,2312-00464,0.00,54006.95,R,Aire View Residential Home,No
Http://opendatacommunities.org/id/metropolitan-district-council/leeds,Leeds City Council,31/12/2023,Adults and Health,Services For Older People - 65 And Over,Agency Payments,Residential,580,06/12/2023,2312-00465,0.00,18101.47,R,Aire View Residential Home,No
Http://opendatacommunities.org/id/metropolitan-district-council/leeds,Leeds City Council,31/12/2023,Adults and Health,Services For Older People - 65 And Over,Agency Payments,Residential Care Dementia,571,27/12/2023,2312-00466,0.00,60219.35,R,Aire View Residential Home,No
Http://opendatacommunities.org/id/metropolitan-district-council/leeds,Leeds City Council,31/12/2023,Adults and Health,Services For Older People - 65 And Over,Agency Payments,Residential,580,27/12/2023,2312-00467,0.00,1831.92,R,Aire View Residential Home,No
Http://opendatacommunities.org/id/metropolitan-district-council/leeds,Leeds City Council,31/12/2023,City Development,Recreation ,Supplies and Services,Other Hired And Contracted Services,265,20/11/2023,2312-00468,0.00,12.30,R,Aireborough Leisure Centr,Yes
Http://opendatacommunities.org/id/metropolitan-district-council/leeds,Leeds City Council,31/12/2023,City Development,Recreation ,Supplies and Services,Other Hired And Contracted Services,265,20/11/2023,2312-00469,0.00,7.50,R,Aireborough Leisure Centr,Yes
Http://opendatacommunities.org/id/metropolitan-district-council/leeds,Leeds City Council,31/12/2023,Strategy and Resources,Commercial Services,Premises,Fixtures & Fittings,131,01/12/2023,2312-00470,0.00,16555.00,R,AIREDALE CATERING EQUIPMENT LTD,No
Http://opendatacommunities.org/id/metropolitan-district-council/leeds,Leeds City Council,31/12/2023,Adults and Health,Assessment And Care Management,Agency Payments,Residential,580,06/12/2023,2312-00471,0.00,-2997.83,R,Airedale Residential Home,No
Http://opendatacommunities.org/id/metropolitan-district-council/leeds,Leeds City Council,31/12/2023,Adults and Health,Services For Older People - 65 And Over,Agency Payments,Residential Care Dementia,571,06/12/2023,2312-00472,0.00,33403.51,R,Airedale Residential Home,No
Http://opendatacommunities.org/id/metropolitan-district-council/leeds,Leeds City Council,31/12/2023,Adults and Health,Services For Older People - 65 And Over,Agency Payments,Residential,580,06/12/2023,2312-00473,0.00,23137.30,R,Airedale Residential Home,No
Http://opendatacommunities.org/id/metropolitan-district-council/leeds,Leeds City Council,31/12/2023,Adults and Health,Services For Older People - 65 And Over,Agency Payments,Residential Care Dementia,571,27/12/2023,2312-00474,0.00,27284.57,R,Airedale Residential Home,No
Http://opendatacommunities.org/id/metropolitan-district-council/leeds,Leeds City Council,31/12/2023,Adults and Health,Services For Older People - 65 And Over,Agency Payments,Residential,580,27/12/2023,2312-00475,0.00,21130.80,R,Airedale Residential Home,No
Http://opendatacommunities.org/id/metropolitan-district-council/leeds,Leeds City Council,31/12/2023,Children and Families,Social Care ,Transport,Public Transport Expenses,310,12/11/2023,2312-00476,0.00,21.30,R,Airpay 44408845-Roadrunne,Yes
Http://opendatacommunities.org/id/metropolitan-district-council/leeds,Leeds City Council,31/12/2023,Strategic Landlord,Housing Management ,Transport,Public Transport Expenses,310,14/11/2023,2312-00477,0.00,9.30,R,Airpay 44430758-Roadrunne,Yes
Http://opendatacommunities.org/id/metropolitan-district-council/leeds,Leeds City Council,31/12/2023,Children and Families,Social Care ,Agency Payments,Placement Support,550,08/11/2023,2312-00478,0.00,14.70,R,Airpay 48997423-Amber Car,Yes
Http://opendatacommunities.org/id/metropolitan-district-council/leeds,Leeds City Council,31/12/2023,Children and Families,Social Care ,Agency Payments,Placement Support,550,08/11/2023,2312-00479,0.00,16.70,R,Airpay 49002108-Amber Car,Yes
Http://opendatacommunities.org/id/metropolitan-district-council/leeds,Leeds City Council,31/12/2023,Children and Families,Social Care ,Agency Payments,Placement Support,550,09/11/2023,2312-00480,0.00,9.90,R,Airpay 49014114-Amber Car,Yes
Http://opendatacommunities.org/id/metropolitan-district-council/leeds,Leeds City Council,31/12/2023,Children and Families,Social Care ,Transport,Public Transport Expenses,310,14/11/2023,2312-00481,0.00,19.92,R,Airpay 49087192-Amber Car,Yes
Http://opendatacommunities.org/id/metropolitan-district-council/leeds,Leeds City Council,31/12/2023,Children and Families,Social Care ,Agency Payments,Placement Support,550,17/11/2023,2312-00482,0.00,30.60,R,Airpay 49125477-Amber Car,Yes
Http://opendatacommunities.org/id/metropolitan-district-council/leeds,Leeds City Council,31/12/2023,Children and Families,Social Care ,Agency Payments,Placement Support,550,17/11/2023,2312-00483,0.00,31.80,R,Airpay 49125483-Amber Car,Yes
Http://opendatacommunities.org/id/metropolitan-district-council/leeds,Leeds City Council,31/12/2023,Children and Families,Social Care ,Transport,Public Transport Expenses,310,18/11/2023,2312-00484,0.00,10.50,R,Airpay 49143948-Amber Car,Yes
Http://opendatacommunities.org/id/metropolitan-district-council/leeds,Leeds City Council,31/12/2023,Children and Families,Social Care ,Transport,Public Transport Expenses,310,18/11/2023,2312-00485,0.00,10.40,R,Airpay 49146393-Amber Car,Yes
Http://opendatacommunities.org/id/metropolitan-district-council/leeds,Leeds City Council,31/12/2023,Adults and Health,Service Strategy ,Employees,Training Costs,71,20/11/2023,2312-00486,0.00,7.50,R,Airpay 49164449-Amber Car,Yes
Http://opendatacommunities.org/id/metropolitan-district-council/leeds,Leeds City Council,31/12/2023,Children and Families,Social Care ,Transport,Public Transport Expenses,310,21/11/2023,2312-00487,0.00,46.70,R,Airpay 49170950-Amber Car,Yes
Http://opendatacommunities.org/id/metropolitan-district-council/leeds,Leeds City Council,31/12/2023,Adults and Health,Services For Adults Under 65 Learn/Dis ,Transport,Public Transport Expenses,310,20/11/2023,2312-00488,0.00,14.50,R,Airpay 49173315-Amber Car,Yes
Http://opendatacommunities.org/id/metropolitan-district-council/leeds,Leeds City Council,31/12/2023,Children and Families,Social Care ,Agency Payments,Placement Support,550,23/11/2023,2312-00489,0.00,15.60,R,Airpay 49212727-Amber Car,Yes
Http://opendatacommunities.org/id/metropolitan-district-council/leeds,Leeds City Council,31/12/2023,Children and Families,Social Care ,Transport,Public Transport Expenses,310,24/11/2023,2312-00490,0.00,37.17,R,Airpay 49221147-Amber Car,Yes
Http://opendatacommunities.org/id/metropolitan-district-council/leeds,Leeds City Council,31/12/2023,Children and Families,Social Care ,Agency Payments,Placement Support,550,24/11/2023,2312-00491,0.00,31.50,R,Airpay 49222821-Amber Car,Yes
Http://opendatacommunities.org/id/metropolitan-district-council/leeds,Leeds City Council,31/12/2023,Children and Families,Social Care ,Agency Payments,Placement Support,550,24/11/2023,2312-00492,0.00,28.40,R,Airpay 49224660-Amber Car,Yes
Http://opendatacommunities.org/id/metropolitan-district-council/leeds,Leeds City Council,31/12/2023,Strategy and Resources,Strategy and Improvement ,Transport,Public Transport Expenses,310,24/11/2023,2312-00493,0.00,7.10,R,Airpay 49226272-Amber Car,Yes
Http://opendatacommunities.org/id/metropolitan-district-council/leeds,Leeds City Council,31/12/2023,Children and Families,Social Care ,Agency Payments,Section 17,551,24/11/2023,2312-00494,0.00,12.70,R,Airpay 49228131-Amber Car,Yes
Http://opendatacommunities.org/id/metropolitan-district-council/leeds,Leeds City Council,31/12/2023,Children and Families,Social Care ,Agency Payments,Section 17,551,24/11/2023,2312-00495,0.00,7.00,R,Airpay 49229061-Amber Car,Yes
Http://opendatacommunities.org/id/metropolitan-district-council/leeds,Leeds City Council,31/12/2023,Children and Families,Social Care ,Appropriations,Leaving Care Allowances,634,28/11/2023,2312-00496,0.00,11.20,R,Airpay 49282749-Amber Car,Yes
Http://opendatacommunities.org/id/metropolitan-district-council/leeds,Leeds City Council,31/12/2023,City Development,Recreation,Supplies and Services,Other Hired And Contracted Services,265,15/12/2023,2312-00497,0.00,403.50,R,Airquee Ltd,No
Http://opendatacommunities.org/id/metropolitan-district-council/leeds,Leeds City Council as Accountable Body,31/12/2023,Social Services Pooled Budgets,Jcs For People With Learning Disabilitie,Agency Payments,Residential,580,06/12/2023,2312-00498,0.00,7677.84,R,AITCH care homes,No
Http://opendatacommunities.org/id/metropolitan-district-council/leeds,Leeds City Council as Accountable Body,31/12/2023,Social Services Pooled Budgets,Jcs For People With Learning Disabilitie,Agency Payments,Residential,580,27/12/2023,2312-00499,0.00,7677.84,R,AITCH care homes,No
Http://opendatacommunities.org/id/metropolitan-district-council/leeds,Leeds City Council,31/12/2023,Strategy and Resources,Leeds Building Services,Supplies and Services,Operational Furniture And Equipment,203,01/12/2023,2312-00500,0.00,90.00,R,AJM FIXINGS & POWER TOOLS LTD,No
Http://opendatacommunities.org/id/metropolitan-district-council/leeds,Leeds City Council,31/12/2023,Strategy and Resources,Leeds Building Services,Supplies and Services,Operational Furniture And Equipment,203,01/12/2023,2312-00501,0.00,1101.32,R,AJM FIXINGS & POWER TOOLS LTD,No
Http://opendatacommunities.org/id/metropolitan-district-council/leeds,Leeds City Council,31/12/2023,Strategy and Resources,Leeds Building Services,Premises,Cleaning Maintenance & Toiletries,127,01/12/2023,2312-00502,0.00,281.30,R,AJM FIXINGS & POWER TOOLS LTD,No
Http://opendatacommunities.org/id/metropolitan-district-council/leeds,Leeds City Council,31/12/2023,Strategy and Resources,Leeds Building Services,Supplies and Services,Operational Furniture And Equipment,203,01/12/2023,2312-00503,0.00,99.00,R,AJM FIXINGS & POWER TOOLS LTD,No
Http://opendatacommunities.org/id/metropolitan-district-council/leeds,Leeds City Council,31/12/2023,Strategy and Resources,Leeds Building Services,Supplies and Services,Operational Furniture And Equipment,203,06/12/2023,2312-00504,0.00,131.70,R,AJM FIXINGS & POWER TOOLS LTD,No
Http://opendatacommunities.org/id/metropolitan-district-council/leeds,Leeds City Council,31/12/2023,Strategy and Resources,Leeds Building Services,Supplies and Services,Operational Furniture And Equipment,203,06/12/2023,2312-00505,0.00,97.00,R,AJM FIXINGS & POWER TOOLS LTD,No
Http://opendatacommunities.org/id/metropolitan-district-council/leeds,Leeds City Council,31/12/2023,Strategy and Resources,Leeds Building Services,Supplies and Services,Operational Furniture And Equipment,203,06/12/2023,2312-00506,0.00,1365.35,R,AJM FIXINGS & POWER TOOLS LTD,No
Http://opendatacommunities.org/id/metropolitan-district-council/leeds,Leeds City Council,31/12/2023,Strategy and Resources,Leeds Building Services,Supplies and Services,Operational Furniture And Equipment,203,08/12/2023,2312-00507,0.00,89.44,R,AJM FIXINGS & POWER TOOLS LTD,No
Http://opendatacommunities.org/id/metropolitan-district-council/leeds,Leeds City Council,31/12/2023,Strategy and Resources,Leeds Building Services,Supplies and Services,Operational Furniture And Equipment,203,08/12/2023,2312-00508,0.00,45.00,R,AJM FIXINGS & POWER TOOLS LTD,No
Http://opendatacommunities.org/id/metropolitan-district-council/leeds,Leeds City Council,31/12/2023,Strategy and Resources,Leeds Building Services,Premises,Cleaning Maintenance & Toiletries,127,08/12/2023,2312-00509,0.00,1052.25,R,AJM FIXINGS & POWER TOOLS LTD,No
Http://opendatacommunities.org/id/metropolitan-district-council/leeds,Leeds City Council,31/12/2023,Strategy and Resources,Leeds Building Services,Supplies and Services,Operational Furniture And Equipment,203,08/12/2023,2312-00510,0.00,196.00,R,AJM FIXINGS & POWER TOOLS LTD,No
Http://opendatacommunities.org/id/metropolitan-district-council/leeds,Leeds City Council,31/12/2023,Strategy and Resources,Leeds Building Services,Supplies and Services,Operational Furniture And Equipment,203,13/12/2023,2312-00511,0.00,60.65,R,AJM FIXINGS & POWER TOOLS LTD,No
Http://opendatacommunities.org/id/metropolitan-district-council/leeds,Leeds City Council,31/12/2023,Strategy and Resources,Leeds Building Services,Supplies and Services,Operational Furniture And Equipment,203,13/12/2023,2312-00512,0.00,125.98,R,AJM FIXINGS & POWER TOOLS LTD,No
Http://opendatacommunities.org/id/metropolitan-district-council/leeds,Leeds City Council,31/12/2023,Strategy and Resources,Leeds Building Services,Supplies and Services,Operational Furniture And Equipment,203,13/12/2023,2312-00513,0.00,105.50,R,AJM FIXINGS & POWER TOOLS LTD,No
Http://opendatacommunities.org/id/metropolitan-district-council/leeds,Leeds City Council,31/12/2023,Strategy and Resources,Leeds Building Services,Supplies and Services,Operational Furniture And Equipment,203,13/12/2023,2312-00514,0.00,301.14,R,AJM FIXINGS & POWER TOOLS LTD,No
Http://opendatacommunities.org/id/metropolitan-district-council/leeds,Leeds City Council,31/12/2023,Strategy and Resources,Leeds Building Services,Premises,Cleaning Maintenance & Toiletries,127,13/12/2023,2312-00515,0.00,141.40,R,AJM FIXINGS & POWER TOOLS LTD,No
Http://opendatacommunities.org/id/metropolitan-district-council/leeds,Leeds City Council,31/12/2023,Strategy and Resources,Leeds Building Services,Premises,Cleaning Maintenance & Toiletries,127,15/12/2023,2312-00516,0.00,126.18,R,AJM FIXINGS & POWER TOOLS LTD,No
Http://opendatacommunities.org/id/metropolitan-district-council/leeds,Leeds City Council,31/12/2023,Strategy and Resources,Leeds Building Services,Supplies and Services,Operational Furniture And Equipment,203,15/12/2023,2312-00517,0.00,162.79,R,AJM FIXINGS & POWER TOOLS LTD,No
Http://opendatacommunities.org/id/metropolitan-district-council/leeds,Leeds City Council,31/12/2023,Strategy and Resources,Leeds Building Services,Premises,Cleaning Maintenance & Toiletries,127,15/12/2023,2312-00518,0.00,96.00,R,AJM FIXINGS & POWER TOOLS LTD,No
Http://opendatacommunities.org/id/metropolitan-district-council/leeds,Leeds City Council,31/12/2023,Strategy and Resources,Leeds Building Services,Premises,Cleaning Maintenance & Toiletries,127,15/12/2023,2312-00519,0.00,473.00,R,AJM FIXINGS & POWER TOOLS LTD,No
Http://opendatacommunities.org/id/metropolitan-district-council/leeds,Leeds City Council,31/12/2023,Strategy and Resources,Leeds Building Services,Supplies and Services,Operational Furniture And Equipment,203,20/12/2023,2312-00520,0.00,193.17,R,AJM FIXINGS & POWER TOOLS LTD,No
Http://opendatacommunities.org/id/metropolitan-district-council/leeds,Leeds City Council,31/12/2023,Strategy and Resources,Leeds Building Services,Supplies and Services,Operational Furniture And Equipment,203,22/12/2023,2312-00521,0.00,89.44,R,AJM FIXINGS & POWER TOOLS LTD,No
Http://opendatacommunities.org/id/metropolitan-district-council/leeds,Leeds City Council,31/12/2023,Strategy and Resources,Leeds Building Services,Premises,Cleaning Maintenance & Toiletries,127,22/12/2023,2312-00522,0.00,89.40,R,AJM FIXINGS & POWER TOOLS LTD,No
Http://opendatacommunities.org/id/metropolitan-district-council/leeds,Leeds City Council,31/12/2023,Strategy and Resources,Leeds Building Services,Supplies and Services,Operational Furniture And Equipment,203,22/12/2023,2312-00523,0.00,99.00,R,AJM FIXINGS & POWER TOOLS LTD,No
Http://opendatacommunities.org/id/metropolitan-district-council/leeds,Leeds City Council,31/12/2023,Strategy and Resources,Leeds Building Services,Supplies and Services,Operational Furniture And Equipment,203,22/12/2023,2312-00524,0.00,243.00,R,AJM FIXINGS & POWER TOOLS LTD,No
Http://opendatacommunities.org/id/metropolitan-district-council/leeds,Leeds City Council,31/12/2023,Strategy and Resources,Leeds Building Services,Supplies and Services,Operational Furniture And Equipment,203,22/12/2023,2312-00525,0.00,90.00,R,AJM FIXINGS & POWER TOOLS LTD,No
Http://opendatacommunities.org/id/metropolitan-district-council/leeds,Leeds City Council,31/12/2023,Strategy and Resources,Leeds Building Services,Supplies and Services,Operational Furniture And Equipment,203,22/12/2023,2312-00526,0.00,67.38,R,AJM FIXINGS & POWER TOOLS LTD,No
Http://opendatacommunities.org/id/metropolitan-district-council/leeds,Leeds City Council,31/12/2023,Strategy and Resources,Leeds Building Services,Supplies and Services,Operational Furniture And Equipment,203,28/12/2023,2312-00527,0.00,114.34,R,AJM FIXINGS & POWER TOOLS LTD,No
Http://opendatacommunities.org/id/metropolitan-district-council/leeds,Leeds City Council,31/12/2023,Strategy and Resources,Leeds Building Services,Premises,Cleaning Maintenance & Toiletries,127,29/12/2023,2312-00528,0.00,470.00,R,AJM FIXINGS & POWER TOOLS LTD,No
Http://opendatacommunities.org/id/metropolitan-district-council/leeds,Leeds City Council,31/12/2023,City Development,Markets & City Centre Management,Premises,Premises Security Services,162,22/12/2023,2312-00529,0.00,950.00,R,AJP Logistics Ltd,No
Http://opendatacommunities.org/id/metropolitan-district-council/leeds,Leeds City Council,31/12/2023,City Development,Markets & City Centre Management,Supplies and Services,City Centre Enhancement,295,29/12/2023,2312-00530,0.00,395.00,R,AJP Logistics Ltd,No
Http://opendatacommunities.org/id/metropolitan-district-council/leeds,Leeds City Council,31/12/2023,Children and Families,Social Care ,Supplies and Services,Food & Drink,231,03/11/2023,2312-00531,0.00,71.29,R,Akbar Balti Restaurant,Yes
Http://opendatacommunities.org/id/metropolitan-district-council/leeds,Leeds City Council,31/12/2023,Children and Families,Social Care,Supplies and Services,General Amenity For Clients/Residents,285,19/12/2023,2312-00532,0.00,17.67,R,REDACTED PERSONAL DATA,No
Http://opendatacommunities.org/id/metropolitan-district-council/leeds,Leeds City Council,31/12/2023,Children and Families,Social Care,Transport,Public Transport Expenses,310,19/12/2023,2312-00533,0.00,12.80,R,REDACTED PERSONAL DATA,No
Http://opendatacommunities.org/id/metropolitan-district-council/leeds,Leeds City Council,31/12/2023,Adults and Health,Services For Older People - 65 And Over,Agency Payments,Payments To Voluntary Organisations,561,29/12/2023,2312-00534,0.00,2700.00,R,Al Khidmat Centre,No
Http://opendatacommunities.org/id/metropolitan-district-council/leeds,Leeds City Council,31/12/2023,Children and Families,Social Care ,Appropriations,Leaving Care Grants,635,23/11/2023,2312-00535,0.00,23.31,R,Al Murad,Yes
Http://opendatacommunities.org/id/metropolitan-district-council/leeds,Leeds City Council,31/12/2023,Children and Families,Social Care ,Appropriations,Leaving Care Grants,635,29/11/2023,2312-00536,0.00,183.74,R,Al Murad Diy Ltd,Yes
Http://opendatacommunities.org/id/metropolitan-district-council/leeds,Leeds City Council,31/12/2023,Strategic Landlord,HRA Housing Leeds,Capital,OTHER COSTS,7,20/12/2023,2312-00537,0.00,80.00,C,REDACTED PERSONAL DATA,No
Http://opendatacommunities.org/id/metropolitan-district-council/leeds,Leeds City Council,31/12/2023,Communities Housing and Environment,Benefits Wlefare and Poverty,Supplies and Services,Grant Related Expenditure,290,21/12/2023,2312-00538,0.00,75.00,R,REDACTED PERSONAL DATA,No
Http://opendatacommunities.org/id/metropolitan-district-council/leeds,Leeds City Council,31/12/2023,Children and Families,Social Care,Agency Payments,Services Rendered By Other Organisations,511,01/12/2023,2312-00539,0.00,1058.40,R,REDACTED PERSONAL DATA,No
Http://opendatacommunities.org/id/metropolitan-district-council/leeds,Leeds City Council,31/12/2023,Children and Families,Social Care,Agency Payments,Services Rendered By Other Organisations,511,01/12/2023,2312-00540,0.00,881.00,R,REDACTED PERSONAL DATA,No
Http://opendatacommunities.org/id/metropolitan-district-council/leeds,Leeds City Council,31/12/2023,Children and Families,Social Care,Agency Payments,Services Rendered By Other Organisations,511,01/12/2023,2312-00541,0.00,336.00,R,REDACTED PERSONAL DATA,No
Http://opendatacommunities.org/id/metropolitan-district-council/leeds,Leeds City Council,31/12/2023,Children and Families,Social Care,Supplies and Services,Operational Furniture And Equipment,203,08/12/2023,2312-00542,0.00,462.50,R,Alarm Radio Monitoring Ltd,No
Http://opendatacommunities.org/id/metropolitan-district-council/leeds,Leeds City Council,31/12/2023,Communities Housing and Environment,Benefits Wlefare and Poverty,Supplies and Services,Grant Related Expenditure,290,01/12/2023,2312-00543,0.00,75.00,R,REDACTED PERSONAL DATA,No
Http://opendatacommunities.org/id/metropolitan-district-council/leeds,Leeds City Council,31/12/2023,Communities Housing and Environment,Car Parking Services,External Income,Penalties Fines & Car Parking Charges,934,27/12/2023,2312-00544,0.00,114.00,R,Ald Automotive Ltd,No
Http://opendatacommunities.org/id/metropolitan-district-council/leeds,Leeds City Council,31/12/2023,Communities Housing and Environment,Car Parking Services,External Income,Penalties Fines & Car Parking Charges,934,27/12/2023,2312-00545,0.00,114.00,R,Ald Automotive Ltd,No
Http://opendatacommunities.org/id/metropolitan-district-council/leeds,Leeds City Council,31/12/2023,Communities Housing and Environment,Car Parking Services,External Income,Penalties Fines & Car Parking Charges,934,27/12/2023,2312-00546,0.00,114.00,R,Ald Automotive Ltd,No
Http://opendatacommunities.org/id/metropolitan-district-council/leeds,Leeds City Council,31/12/2023,City Development,Libraries Arts & Heritage ,Supplies and Services,Food & Drink,231,23/11/2023,2312-00547,0.00,23.94,R,Aldi,Yes
Http://opendatacommunities.org/id/metropolitan-district-council/leeds,Leeds City Council,31/12/2023,Children and Families,Social Care ,Agency Payments,Placement Support,550,17/11/2023,2312-00548,0.00,14.82,R,Aldi 103 779,Yes
Http://opendatacommunities.org/id/metropolitan-district-council/leeds,Leeds City Council,31/12/2023,Communities Housing and Environment,Communities ,Supplies and Services,Subsistence,256,06/11/2023,2312-00549,0.00,4.39,R,Aldi 40 779,Yes
Http://opendatacommunities.org/id/metropolitan-district-council/leeds,Leeds City Council,31/12/2023,Children and Families,Social Care ,Supplies and Services,Food & Drink,231,08/11/2023,2312-00550,0.00,12.98,R,Aldi 40 779,Yes
Http://opendatacommunities.org/id/metropolitan-district-council/leeds,Leeds City Council,31/12/2023,Communities Housing and Environment,Communities ,Supplies and Services,Food & Drink,231,13/11/2023,2312-00551,0.00,6.74,R,Aldi 40 779,Yes
Http://opendatacommunities.org/id/metropolitan-district-council/leeds,Leeds City Council,31/12/2023,Children and Families,Social Care ,Supplies and Services,Food & Drink,231,15/11/2023,2312-00552,0.00,24.22,R,Aldi 40 779,Yes
Http://opendatacommunities.org/id/metropolitan-district-council/leeds,Leeds City Council,31/12/2023,Children and Families,Social Care ,Supplies and Services,Food & Drink,231,21/11/2023,2312-00553,0.00,2.90,R,Aldi 40 779,Yes
Http://opendatacommunities.org/id/metropolitan-district-council/leeds,Leeds City Council,31/12/2023,Children and Families,Social Care ,Supplies and Services,Food & Drink,231,15/11/2023,2312-00554,0.00,14.28,R,Aldi 49 779,Yes
Http://opendatacommunities.org/id/metropolitan-district-council/leeds,Leeds City Council,31/12/2023,Children and Families,Social Care ,Supplies and Services,Food & Drink,231,16/11/2023,2312-00555,0.00,20.50,R,Aldi 49 779,Yes
Http://opendatacommunities.org/id/metropolitan-district-council/leeds,Leeds City Council,31/12/2023,Children and Families,Social Care ,Agency Payments,Section 17,551,10/11/2023,2312-00556,0.00,7.88,R,Aldi 71 779,Yes
Http://opendatacommunities.org/id/metropolitan-district-council/leeds,Leeds City Council,31/12/2023,Children and Families,Social Care ,Supplies and Services,Food & Drink,231,16/11/2023,2312-00557,0.00,7.03,R,Aldi 71 779,Yes
Http://opendatacommunities.org/id/metropolitan-district-council/leeds,Leeds City Council,31/12/2023,Children and Families,Social Care ,Appropriations,Leaving Care Allowances,634,22/11/2023,2312-00558,0.00,63.77,R,Aldi 71 779,Yes
Http://opendatacommunities.org/id/metropolitan-district-council/leeds,Leeds City Council,31/12/2023,Children and Families,Social Care ,Agency Payments,Section 17,551,24/11/2023,2312-00559,0.00,77.60,R,Aldi 71 779,Yes
Http://opendatacommunities.org/id/metropolitan-district-council/leeds,Leeds City Council,31/12/2023,Communities Housing and Environment,Communities ,Supplies and Services,Food & Drink,231,10/11/2023,2312-00560,0.00,5.80,R,Aldi 85 779,Yes
Http://opendatacommunities.org/id/metropolitan-district-council/leeds,Leeds City Council,31/12/2023,Children and Families,Social Care ,Supplies and Services,Food & Drink,231,11/11/2023,2312-00561,0.00,5.06,R,Aldi 85 779,Yes
Http://opendatacommunities.org/id/metropolitan-district-council/leeds,Leeds City Council,31/12/2023,Communities Housing and Environment,Communities ,Supplies and Services,Food & Drink,231,14/11/2023,2312-00562,0.00,34.42,R,Aldi 85 779,Yes
Http://opendatacommunities.org/id/metropolitan-district-council/leeds,Leeds City Council,31/12/2023,Children and Families,Social Care ,Supplies and Services,Food & Drink,231,15/11/2023,2312-00563,0.00,9.37,R,Aldi 85 779,Yes
Http://opendatacommunities.org/id/metropolitan-district-council/leeds,Leeds City Council,31/12/2023,Children and Families,Social Care ,Agency Payments,Section 17,551,15/11/2023,2312-00564,0.00,18.33,R,Aldi 85 779,Yes
Http://opendatacommunities.org/id/metropolitan-district-council/leeds,Leeds City Council,31/12/2023,Communities Housing and Environment,Communities ,Supplies and Services,Food & Drink,231,28/11/2023,2312-00565,0.00,67.79,R,Aldi 85 779,Yes
Http://opendatacommunities.org/id/metropolitan-district-council/leeds,Leeds City Council,31/12/2023,Children and Families,Social Care ,Supplies and Services,Food & Drink,231,01/11/2023,2312-00566,0.00,33.46,R,Aldi 89 779,Yes
Http://opendatacommunities.org/id/metropolitan-district-council/leeds,Leeds City Council,31/12/2023,Children and Families,Social Care ,Appropriations,Young People Expenses,654,03/11/2023,2312-00567,0.00,30.00,R,Aldi 89 779,Yes
Http://opendatacommunities.org/id/metropolitan-district-council/leeds,Leeds City Council,31/12/2023,Children and Families,Social Care ,Supplies and Services,Food & Drink,231,03/11/2023,2312-00568,0.00,22.63,R,Aldi 89 779,Yes
Http://opendatacommunities.org/id/metropolitan-district-council/leeds,Leeds City Council,31/12/2023,Children and Families,Social Care ,Appropriations,Young People Expenses,654,03/11/2023,2312-00569,0.00,60.00,R,Aldi 89 779,Yes
Http://opendatacommunities.org/id/metropolitan-district-council/leeds,Leeds City Council,31/12/2023,Children and Families,Social Care ,Supplies and Services,Food & Drink,231,09/11/2023,2312-00570,0.00,90.99,R,Aldi 89 779,Yes
Http://opendatacommunities.org/id/metropolitan-district-council/leeds,Leeds City Council,31/12/2023,Children and Families,Social Care ,Appropriations,Young People Expenses,654,27/11/2023,2312-00571,0.00,125.00,R,Aldi 89 779,Yes
Http://opendatacommunities.org/id/metropolitan-district-council/leeds,Leeds City Council,31/12/2023,City Development,Recreation ,Supplies and Services,Operational Furniture And Equipment,203,03/11/2023,2312-00572,0.00,26.10,R,Aldi Stores,Yes
Http://opendatacommunities.org/id/metropolitan-district-council/leeds,Leeds City Council,31/12/2023,Communities Housing and Environment,Communities ,Appropriations,Young Peoples Rewards,653,06/11/2023,2312-00573,0.00,480.00,R,Aldi Stores,Yes
Http://opendatacommunities.org/id/metropolitan-district-council/leeds,Leeds City Council,31/12/2023,Communities Housing and Environment,Communities ,Appropriations,Young Peoples Rewards,653,06/11/2023,2312-00574,0.00,480.00,R,Aldi Stores,Yes
Http://opendatacommunities.org/id/metropolitan-district-council/leeds,Leeds City Council,31/12/2023,Children and Families,Social Care ,Supplies and Services,Food & Drink,231,09/11/2023,2312-00575,0.00,1.79,R,Aldi Stores,Yes
Http://opendatacommunities.org/id/metropolitan-district-council/leeds,Leeds City Council,31/12/2023,Children and Families,Social Care ,Appropriations,Leaving Care Allowances,634,20/11/2023,2312-00576,0.00,36.75,R,Aldi Stores,Yes
Http://opendatacommunities.org/id/metropolitan-district-council/leeds,Leeds City Council,31/12/2023,Children and Families,Social Care ,Supplies and Services,Food & Drink,231,22/11/2023,2312-00577,0.00,16.99,R,Aldi Stores,Yes
Http://opendatacommunities.org/id/metropolitan-district-council/leeds,Leeds City Council,31/12/2023,Children and Families,Social Care ,Supplies and Services,Food & Drink,231,28/11/2023,2312-00578,0.00,7.87,R,Aldi Stores,Yes
Http://opendatacommunities.org/id/metropolitan-district-council/leeds,Leeds City Council,31/12/2023,Communities Housing and Environment,Communities ,Appropriations,Young Peoples Rewards,653,28/11/2023,2312-00579,0.00,480.00,R,Aldi Stores,Yes
Http://opendatacommunities.org/id/metropolitan-district-council/leeds,Leeds City Council,31/12/2023,Children and Families,Social Care ,Supplies and Services,Food & Drink,231,28/11/2023,2312-00580,0.00,40.00,R,Aldi Stores,Yes
Http://opendatacommunities.org/id/metropolitan-district-council/leeds,Leeds City Council,31/12/2023,Communities Housing and Environment,Communities ,Appropriations,Young Peoples Rewards,653,28/11/2023,2312-00581,0.00,480.00,R,Aldi Stores,Yes
Http://opendatacommunities.org/id/metropolitan-district-council/leeds,Leeds City Council,31/12/2023,Children and Families,Social Care,Appropriations,Leaving Care Allowances,634,22/12/2023,2312-00582,0.00,50.00,R,REDACTED PERSONAL DATA,No
Http://opendatacommunities.org/id/metropolitan-district-council/leeds,Leeds City Council,31/12/2023,Strategy and Resources,Commercial Services,Supplies and Services,Other Hired And Contracted Services,265,01/12/2023,2312-00583,0.00,375.00,R,ALEX WAGG,No
Http://opendatacommunities.org/id/metropolitan-district-council/leeds,Leeds City Council,31/12/2023,Strategy and Resources,Commercial Services,Supplies and Services,Other Hired And Contracted Services,265,01/12/2023,2312-00584,0.00,515.00,R,ALEX WAGG,No
Http://opendatacommunities.org/id/metropolitan-district-council/leeds,Leeds City Council,31/12/2023,Strategy and Resources,Commercial Services,Transport,Vehicle Spares,345,06/12/2023,2312-00585,0.00,600.00,R,ALEX WAGG,No
Http://opendatacommunities.org/id/metropolitan-district-council/leeds,Leeds City Council,31/12/2023,Strategy and Resources,Commercial Services,Supplies and Services,Other Hired And Contracted Services,265,08/12/2023,2312-00586,0.00,175.00,R,ALEX WAGG,No
Http://opendatacommunities.org/id/metropolitan-district-council/leeds,Leeds City Council,31/12/2023,Strategy and Resources,Commercial Services,Supplies and Services,Other Hired And Contracted Services,265,08/12/2023,2312-00587,0.00,185.00,R,ALEX WAGG,No
Http://opendatacommunities.org/id/metropolitan-district-council/leeds,Leeds City Council,31/12/2023,Strategy and Resources,Commercial Services,Supplies and Services,Other Hired And Contracted Services,265,22/12/2023,2312-00588,0.00,235.00,R,ALEX WAGG,No
Http://opendatacommunities.org/id/metropolitan-district-council/leeds,Leeds City Council,31/12/2023,Strategy and Resources,Commercial Services,Supplies and Services,Other Hired And Contracted Services,265,22/12/2023,2312-00589,0.00,250.00,R,ALEX WAGG,No
Http://opendatacommunities.org/id/metropolitan-district-council/leeds,Leeds City Council,31/12/2023,Strategy and Resources,Commercial Services,Supplies and Services,Other Hired And Contracted Services,265,22/12/2023,2312-00590,0.00,50.00,R,ALEX WAGG,No
Http://opendatacommunities.org/id/metropolitan-district-council/leeds,Leeds City Council,31/12/2023,Strategy and Resources,Commercial Services,Supplies and Services,Other Hired And Contracted Services,265,29/12/2023,2312-00591,0.00,232.50,R,ALEX WAGG,No
Http://opendatacommunities.org/id/metropolitan-district-council/leeds,Leeds City Council,31/12/2023,Adults and Health,Services For Older People - 65 And Over,Agency Payments,Residential Care Dementia,571,06/12/2023,2312-00592,0.00,30996.07,R,ALEXANDER RESIDENTIAL HOME,No
Http://opendatacommunities.org/id/metropolitan-district-council/leeds,Leeds City Council,31/12/2023,Adults and Health,Services For Older People - 65 And Over,Agency Payments,Residential,580,06/12/2023,2312-00593,0.00,17720.14,R,ALEXANDER RESIDENTIAL HOME,No
Http://opendatacommunities.org/id/metropolitan-district-council/leeds,Leeds City Council as Accountable Body,31/12/2023,Social Services Pooled Budgets,Jcs For People With Learning Disabilitie,Agency Payments,Residential,580,06/12/2023,2312-00594,0.00,3096.00,R,ALEXANDER RESIDENTIAL HOME,No
Http://opendatacommunities.org/id/metropolitan-district-council/leeds,Leeds City Council,31/12/2023,Adults and Health,Services For Older People - 65 And Over,Agency Payments,Residential Care Dementia,571,27/12/2023,2312-00595,0.00,23611.54,R,ALEXANDER RESIDENTIAL HOME,No
Http://opendatacommunities.org/id/metropolitan-district-council/leeds,Leeds City Council,31/12/2023,Adults and Health,Services For Older People - 65 And Over,Agency Payments,Residential,580,27/12/2023,2312-00596,0.00,23911.89,R,ALEXANDER RESIDENTIAL HOME,No
Http://opendatacommunities.org/id/metropolitan-district-council/leeds,Leeds City Council as Accountable Body,31/12/2023,Social Services Pooled Budgets,Jcs For People With Learning Disabilitie,Agency Payments,Residential,580,27/12/2023,2312-00597,0.00,3096.00,R,ALEXANDER RESIDENTIAL HOME,No
Http://opendatacommunities.org/id/metropolitan-district-council/leeds,Leeds City Council,31/12/2023,City Development,Recreation,Supplies and Services,Bought In Professional Services,277,29/12/2023,2312-00598,0.00,240.00,R,REDACTED PERSONAL DATA,No
Http://opendatacommunities.org/id/metropolitan-district-council/leeds,Leeds City Council,31/12/2023,Adults and Health,Services For Older People - 65 And Over,Agency Payments,Residential Care Dementia,571,06/12/2023,2312-00599,0.00,1366.88,R,ALEXANDRA COURT,No
Http://opendatacommunities.org/id/metropolitan-district-council/leeds,Leeds City Council,31/12/2023,Adults and Health,Services For Older People - 65 And Over,Agency Payments,Residential,580,06/12/2023,2312-00600,0.00,4613.24,R,ALEXANDRA COURT,No
Http://opendatacommunities.org/id/metropolitan-district-council/leeds,Leeds City Council,31/12/2023,Adults and Health,Services For Older People - 65 And Over,Agency Payments,Residential Care Dementia,571,27/12/2023,2312-00601,0.00,1366.88,R,ALEXANDRA COURT,No
Http://opendatacommunities.org/id/metropolitan-district-council/leeds,Leeds City Council,31/12/2023,Adults and Health,Services For Older People - 65 And Over,Agency Payments,Residential,580,27/12/2023,2312-00602,0.00,9071.32,R,ALEXANDRA COURT,No
Http://opendatacommunities.org/id/metropolitan-district-council/leeds,Leeds City Council,31/12/2023,Strategy and Resources,Commercial Services,Supplies and Services,Compensation Claims,200,29/12/2023,2312-00603,0.00,1454.40,R,REDACTED PERSONAL DATA,No
Http://opendatacommunities.org/id/metropolitan-district-council/leeds,Leeds City Council,31/12/2023,Strategy and Resources,Leeds Building Services,Supplies and Services,Other Hired And Contracted Services,265,06/12/2023,2312-00604,0.00,650.00,R,Alfred Bagnall & Sons (Leeds) Ltd,No
Http://opendatacommunities.org/id/metropolitan-district-council/leeds,Leeds City Council,31/12/2023,Strategy and Resources,Leeds Building Services,Supplies and Services,Other Hired And Contracted Services,265,06/12/2023,2312-00605,0.00,780.00,R,Alfred Bagnall & Sons (Leeds) Ltd,No
Http://opendatacommunities.org/id/metropolitan-district-council/leeds,Leeds City Council,31/12/2023,Strategy and Resources,Leeds Building Services,Supplies and Services,Other Hired And Contracted Services,265,08/12/2023,2312-00606,0.00,1550.00,R,Alfred Bagnall & Sons (Leeds) Ltd,No
Http://opendatacommunities.org/id/metropolitan-district-council/leeds,Leeds City Council,31/12/2023,Strategy and Resources,Leeds Building Services,Supplies and Services,Other Hired And Contracted Services,265,21/12/2023,2312-00607,0.00,7159.39,R,Alfred Bagnall & Sons (Leeds) Ltd,No
Http://opendatacommunities.org/id/metropolitan-district-council/leeds,Leeds City Council,31/12/2023,Strategy and Resources,Leeds Building Services,Supplies and Services,Other Hired And Contracted Services,265,21/12/2023,2312-00608,0.00,882.15,R,Alfred Bagnall & Sons (Leeds) Ltd,No
Http://opendatacommunities.org/id/metropolitan-district-council/leeds,Leeds City Council,31/12/2023,Strategy and Resources,Leeds Building Services,Supplies and Services,Other Hired And Contracted Services,265,21/12/2023,2312-00609,0.00,1755.18,R,Alfred Bagnall & Sons (Leeds) Ltd,No
Http://opendatacommunities.org/id/metropolitan-district-council/leeds,Leeds City Council,31/12/2023,Communities Housing and Environment,Climate Energy & Greenspaces,Supplies and Services,Other Hired And Contracted Services,265,21/12/2023,2312-00610,0.00,1606.00,R,Alfred Bagnall & Sons (Leeds) Ltd,No
Http://opendatacommunities.org/id/metropolitan-district-council/leeds,Leeds City Council,31/12/2023,Strategy and Resources,Leeds Building Services,Supplies and Services,Other Hired And Contracted Services,265,22/12/2023,2312-00611,0.00,6616.00,R,Alfred Bagnall & Sons (Leeds) Ltd,No
Http://opendatacommunities.org/id/metropolitan-district-council/leeds,Leeds City Council,31/12/2023,Strategy and Resources,Leeds Building Services,Supplies and Services,Other Hired And Contracted Services,265,22/12/2023,2312-00612,0.00,1945.23,R,Alfred Bagnall & Sons (Leeds) Ltd,No
Http://opendatacommunities.org/id/metropolitan-district-council/leeds,Leeds City Council,31/12/2023,Strategy and Resources,Leeds Building Services,Supplies and Services,Other Hired And Contracted Services,265,22/12/2023,2312-00613,0.00,3671.23,R,Alfred Bagnall & Sons (Leeds) Ltd,No
Http://opendatacommunities.org/id/metropolitan-district-council/leeds,Leeds City Council,31/12/2023,Strategy and Resources,Leeds Building Services,Supplies and Services,Other Hired And Contracted Services,265,22/12/2023,2312-00614,0.00,2516.24,R,Alfred Bagnall & Sons (Leeds) Ltd,No
Http://opendatacommunities.org/id/metropolitan-district-council/leeds,Leeds City Council,31/12/2023,Strategy and Resources,Leeds Building Services,Supplies and Services,Other Hired And Contracted Services,265,22/12/2023,2312-00615,0.00,2798.17,R,Alfred Bagnall & Sons (Leeds) Ltd,No
Http://opendatacommunities.org/id/metropolitan-district-council/leeds,Leeds City Council,31/12/2023,Strategy and Resources,Leeds Building Services,Supplies and Services,Other Hired And Contracted Services,265,28/12/2023,2312-00616,0.00,2361.00,R,Alfred Bagnall & Sons (Leeds) Ltd,No
Http://opendatacommunities.org/id/metropolitan-district-council/leeds,Leeds City Council,31/12/2023,Communities Housing and Environment,Benefits Wlefare and Poverty,Supplies and Services,Grant Related Expenditure,290,05/12/2023,2312-00617,0.00,75.00,R,REDACTED PERSONAL DATA,No
Http://opendatacommunities.org/id/metropolitan-district-council/leeds,Leeds City Council,31/12/2023,Children and Families,Social Care ,Supplies and Services,Office Consumables,210,08/11/2023,2312-00618,0.00,500.00,R,Ali Baba Carpets,Yes
Http://opendatacommunities.org/id/metropolitan-district-council/leeds,Leeds City Council,31/12/2023,Strategic Accounts,Miscellaneous,Supplies and Services,Non-Recurring Grants,227,05/12/2023,2312-00619,0.00,256.65,R,Ali Ghasemi,No
Http://opendatacommunities.org/id/metropolitan-district-council/leeds,Leeds City Council,31/12/2023,Communities Housing and Environment,Customer Access,Supplies and Services,Bought In Professional Services,277,06/12/2023,2312-00620,0.00,18.00,R,Ali Pourakaberian,No
Http://opendatacommunities.org/id/metropolitan-district-council/leeds,Leeds City Council,31/12/2023,Communities Housing and Environment,Customer Access,Supplies and Services,Bought In Professional Services,277,06/12/2023,2312-00621,0.00,18.00,R,Ali Pourakaberian,No
Http://opendatacommunities.org/id/metropolitan-district-council/leeds,Leeds City Council,31/12/2023,Communities Housing and Environment,Customer Access,Supplies and Services,Bought In Professional Services,277,06/12/2023,2312-00622,0.00,18.00,R,Ali Pourakaberian,No
Http://opendatacommunities.org/id/metropolitan-district-council/leeds,Leeds City Council,31/12/2023,Communities Housing and Environment,Customer Access,Supplies and Services,Bought In Professional Services,277,13/12/2023,2312-00623,0.00,15.50,R,Ali Pourakaberian,No
Http://opendatacommunities.org/id/metropolitan-district-council/leeds,Leeds City Council,31/12/2023,Communities Housing and Environment,Customer Access,Supplies and Services,Bought In Professional Services,277,20/12/2023,2312-00624,0.00,27.00,R,Ali Pourakaberian,No
Http://opendatacommunities.org/id/metropolitan-district-council/leeds,Leeds City Council,31/12/2023,Communities Housing and Environment,Customer Access,Supplies and Services,Bought In Professional Services,277,20/12/2023,2312-00625,0.00,30.00,R,Ali Pourakaberian,No
Http://opendatacommunities.org/id/metropolitan-district-council/leeds,Leeds City Council,31/12/2023,Communities Housing and Environment,Customer Access,Supplies and Services,Bought In Professional Services,277,20/12/2023,2312-00626,0.00,36.00,R,Ali Pourakaberian,No
Http://opendatacommunities.org/id/metropolitan-district-council/leeds,Leeds City Council,31/12/2023,City Development,Recreation,Supplies and Services,Bought In Professional Services,277,12/12/2023,2312-00627,0.00,20.00,R,Alice M Richardson,No
Http://opendatacommunities.org/id/metropolitan-district-council/leeds,Leeds City Council,31/12/2023,City Development,Recreation,Supplies and Services,Bought In Professional Services,277,14/12/2023,2312-00628,0.00,80.00,R,Alice M Richardson,No
Http://opendatacommunities.org/id/metropolitan-district-council/leeds,Leeds City Council,31/12/2023,City Development,Recreation,Supplies and Services,Bought In Professional Services,277,29/12/2023,2312-00629,0.00,60.00,R,Alice M Richardson,No
Http://opendatacommunities.org/id/metropolitan-district-council/leeds,Leeds City Council,31/12/2023,City Development,Recreation,Supplies and Services,Bought In Professional Services,277,29/12/2023,2312-00630,0.00,80.00,R,Alice M Richardson,No
Http://opendatacommunities.org/id/metropolitan-district-council/leeds,Leeds City Council,31/12/2023,City Development,Recreation,Supplies and Services,Bought In Professional Services,277,29/12/2023,2312-00631,0.00,60.00,R,Alice M Richardson,No
Http://opendatacommunities.org/id/metropolitan-district-council/leeds,Leeds City Council,31/12/2023,City Development,Recreation,Supplies and Services,Bought In Professional Services,277,29/12/2023,2312-00632,0.00,20.00,R,Alice M Richardson,No
Http://opendatacommunities.org/id/metropolitan-district-council/leeds,Leeds City Council,31/12/2023,Adults and Health,Assessment And Care Management,Supplies and Services,Other Hired And Contracted Services,265,06/12/2023,2312-00633,0.00,27.95,R,REDACTED PERSONAL DATA,No
Http://opendatacommunities.org/id/metropolitan-district-council/leeds,Leeds City Council,31/12/2023,Children and Families,Social Care,Agency Payments,Placement Support,550,05/12/2023,2312-00634,0.00,30.00,R,REDACTED PERSONAL DATA,No
Http://opendatacommunities.org/id/metropolitan-district-council/leeds,Leeds City Council,31/12/2023,Children and Families,Social Care,Agency Payments,Contact,548,15/12/2023,2312-00635,0.00,90.00,R,REDACTED PERSONAL DATA,No
Http://opendatacommunities.org/id/metropolitan-district-council/leeds,Leeds City Council,31/12/2023,Children and Families,Social Care,Agency Payments,Placement Support,550,28/12/2023,2312-00636,0.00,70.00,R,REDACTED PERSONAL DATA,No
Http://opendatacommunities.org/id/metropolitan-district-council/leeds,Leeds City Council,31/12/2023,Children and Families,Social Care,Agency Payments,Services Rendered By Other Organisations,511,01/12/2023,2312-00637,0.00,264.60,R,REDACTED PERSONAL DATA,No
Http://opendatacommunities.org/id/metropolitan-district-council/leeds,Leeds City Council,31/12/2023,Communities Housing and Environment,Customer Access,Supplies and Services,Other Hired And Contracted Services,265,29/12/2023,2312-00638,0.00,133.59,R,Alison Larkin,No
Http://opendatacommunities.org/id/metropolitan-district-council/leeds,Leeds City Council,31/12/2023,Communities Housing and Environment,Customer Access,Supplies and Services,Other Hired And Contracted Services,265,15/12/2023,2312-00639,0.00,1150.00,R,ALISON MCINTYRE,No
Http://opendatacommunities.org/id/metropolitan-district-council/leeds,Leeds City Council,31/12/2023,City Development,Libraries Arts & Heritage,Supplies and Services,Other Hired And Contracted Services,265,08/12/2023,2312-00640,0.00,500.00,R,Alison Rhind,No
Http://opendatacommunities.org/id/metropolitan-district-council/leeds,Leeds City Council,31/12/2023,Strategy and Resources,Commercial Services,Supplies and Services,Other Hired And Contracted Services,265,22/12/2023,2312-00641,0.00,372.40,R,REDACTED PERSONAL DATA,No
Http://opendatacommunities.org/id/metropolitan-district-council/leeds,Leeds City Council,31/12/2023,Strategy and Resources,Commercial Services,Transport,Vehicle Spares,345,08/12/2023,2312-00642,0.00,565.69,R,Alkali Environmental Ltd,No
Http://opendatacommunities.org/id/metropolitan-district-council/leeds,Leeds City Council,31/12/2023,Strategic Accounts,Miscellaneous,Supplies and Services,Non-Recurring Grants,227,19/12/2023,2312-00643,0.00,150.00,R,All Stars Badminton Club,No
Http://opendatacommunities.org/id/metropolitan-district-council/leeds,Leeds City Council,31/12/2023,Strategic Accounts,Miscellaneous,Supplies and Services,Non-Recurring Grants,227,27/12/2023,2312-00644,0.00,100.00,R,All Stars Badminton Club,No
Http://opendatacommunities.org/id/metropolitan-district-council/leeds,Leeds City Council,31/12/2023,Children and Families,Social Care,Agency Payments,Services Rendered By Other Organisations,511,01/12/2023,2312-00645,0.00,11119.50,R,All Stars Childcare,No
Http://opendatacommunities.org/id/metropolitan-district-council/leeds,Leeds City Council,31/12/2023,Children and Families,Social Care,Agency Payments,Services Rendered By Other Organisations,511,01/12/2023,2312-00646,0.00,504.00,R,All Stars Childcare,No
Http://opendatacommunities.org/id/metropolitan-district-council/leeds,Leeds City Council,31/12/2023,Children and Families,Social Care,Agency Payments,Services Rendered By Other Organisations,511,01/12/2023,2312-00647,0.00,138.60,R,All Stars Childcare,No
Http://opendatacommunities.org/id/metropolitan-district-council/leeds,Leeds City Council,31/12/2023,Children and Families,Social Care,Agency Payments,Services Rendered By Other Organisations,511,06/12/2023,2312-00648,0.00,350.10,R,All Stars Childcare,No
Http://opendatacommunities.org/id/metropolitan-district-council/leeds,Leeds City Council,31/12/2023,Children and Families,Social Care ,Supplies and Services,Food & Drink,231,03/11/2023,2312-00649,0.00,10.00,R,Allan Hacking Butcher,Yes
Http://opendatacommunities.org/id/metropolitan-district-council/leeds,Leeds City Council,31/12/2023,City Development,Libraries Arts & Heritage ,Supplies and Services,Operational Furniture And Equipment,203,22/11/2023,2312-00650,0.00,1279.92,R,Allen & Heath,Yes
Http://opendatacommunities.org/id/metropolitan-district-council/leeds,Leeds City Council as Accountable Body,31/12/2023,Social Services Pooled Budgets,Jcs For People With Learning Disabilitie,Agency Payments,Sheltered Accommodation,569,06/12/2023,2312-00651,0.00,25207.52,R,Allerton Avenue,No
Http://opendatacommunities.org/id/metropolitan-district-council/leeds,Leeds City Council as Accountable Body,31/12/2023,Social Services Pooled Budgets,Jcs For People With Learning Disabilitie,Agency Payments,Sheltered Accommodation,569,27/12/2023,2312-00652,0.00,25207.52,R,Allerton Avenue,No
Http://opendatacommunities.org/id/metropolitan-district-council/leeds,Leeds City Council,31/12/2023,Adults and Health,Services For Older People - 65 And Over,Agency Payments,Nursing Care Dementia,574,06/12/2023,2312-00653,0.00,2125.04,R,ALLERTON PARK N H,No
Http://opendatacommunities.org/id/metropolitan-district-council/leeds,Leeds City Council,31/12/2023,Adults and Health,Services For Older People - 65 And Over,Agency Payments,Nursing Care Dementia,574,27/12/2023,2312-00654,0.00,2125.04,R,ALLERTON PARK N H,No
Http://opendatacommunities.org/id/metropolitan-district-council/leeds,Leeds City Council,31/12/2023,Strategy and Resources,Finance,Supplies and Services,Bank Charges,263,06/12/2023,2312-00655,0.00,100.00,R,ALLIANCE & LEICESTER COMMERCIAL BANK,No
Http://opendatacommunities.org/id/metropolitan-district-council/leeds,Leeds City Council,31/12/2023,Strategy and Resources,Finance,Supplies and Services,Bank Charges,263,06/12/2023,2312-00656,0.00,280.18,R,ALLIANCE & LEICESTER COMMERCIAL BANK,No
Http://opendatacommunities.org/id/metropolitan-district-council/leeds,Leeds City Council,31/12/2023,Strategy and Resources,Commercial Services,Transport,Vehicle Spares,345,01/12/2023,2312-00657,0.00,-49.50,R,Alliance Automotive UK CV LTD,No
Http://opendatacommunities.org/id/metropolitan-district-council/leeds,Leeds City Council,31/12/2023,Strategy and Resources,Commercial Services,Transport,Vehicle Spares,345,01/12/2023,2312-00658,0.00,-232.65,R,Alliance Automotive UK CV LTD,No
Http://opendatacommunities.org/id/metropolitan-district-council/leeds,Leeds City Council,31/12/2023,Strategy and Resources,Commercial Services,Transport,Vehicle Spares,345,01/12/2023,2312-00659,0.00,16.75,R,Alliance Automotive UK CV LTD,No
Http://opendatacommunities.org/id/metropolitan-district-council/leeds,Leeds City Council,31/12/2023,Strategy and Resources,Commercial Services,Transport,Vehicle Spares,345,01/12/2023,2312-00660,0.00,125.24,R,Alliance Automotive UK CV LTD,No
Http://opendatacommunities.org/id/metropolitan-district-council/leeds,Leeds City Council,31/12/2023,Strategy and Resources,Commercial Services,Transport,Vehicle Spares,345,01/12/2023,2312-00661,0.00,324.62,R,Alliance Automotive UK CV LTD,No
Http://opendatacommunities.org/id/metropolitan-district-council/leeds,Leeds City Council,31/12/2023,Strategy and Resources,Commercial Services,Transport,Vehicle Spares,345,01/12/2023,2312-00662,0.00,272.25,R,Alliance Automotive UK CV LTD,No
Http://opendatacommunities.org/id/metropolitan-district-council/leeds,Leeds City Council,31/12/2023,Strategy and Resources,Commercial Services,Transport,Vehicle Spares,345,01/12/2023,2312-00663,0.00,521.30,R,Alliance Automotive UK CV LTD,No
Http://opendatacommunities.org/id/metropolitan-district-council/leeds,Leeds City Council,31/12/2023,Strategy and Resources,Commercial Services,Transport,Vehicle Spares,345,01/12/2023,2312-00664,0.00,50.40,R,Alliance Automotive UK CV LTD,No
Http://opendatacommunities.org/id/metropolitan-district-council/leeds,Leeds City Council,31/12/2023,Strategy and Resources,Commercial Services,Transport,Vehicle Spares,345,01/12/2023,2312-00665,0.00,80.00,R,Alliance Automotive UK CV LTD,No
Http://opendatacommunities.org/id/metropolitan-district-council/leeds,Leeds City Council,31/12/2023,Strategy and Resources,Commercial Services,Transport,Vehicle Spares,345,01/12/2023,2312-00666,0.00,3.81,R,Alliance Automotive UK CV LTD,No
Http://opendatacommunities.org/id/metropolitan-district-council/leeds,Leeds City Council,31/12/2023,Strategy and Resources,Commercial Services,Transport,Vehicle Spares,345,01/12/2023,2312-00667,0.00,93.76,R,Alliance Automotive UK CV LTD,No
Http://opendatacommunities.org/id/metropolitan-district-council/leeds,Leeds City Council,31/12/2023,Strategy and Resources,Commercial Services,Transport,Vehicle Spares,345,01/12/2023,2312-00668,0.00,49.41,R,Alliance Automotive UK CV LTD,No
Http://opendatacommunities.org/id/metropolitan-district-council/leeds,Leeds City Council,31/12/2023,Strategy and Resources,Commercial Services,Transport,Vehicle Spares,345,01/12/2023,2312-00669,0.00,484.11,R,Alliance Automotive UK CV LTD,No
Http://opendatacommunities.org/id/metropolitan-district-council/leeds,Leeds City Council,31/12/2023,Strategy and Resources,Commercial Services,Transport,Vehicle Spares,345,01/12/2023,2312-00670,0.00,916.49,R,Alliance Automotive UK CV LTD,No
Http://opendatacommunities.org/id/metropolitan-district-council/leeds,Leeds City Council,31/12/2023,Strategy and Resources,Commercial Services,Transport,Vehicle Spares,345,01/12/2023,2312-00671,0.00,826.02,R,Alliance Automotive UK CV LTD,No
Http://opendatacommunities.org/id/metropolitan-district-council/leeds,Leeds City Council,31/12/2023,Strategy and Resources,Commercial Services,Transport,Vehicle Spares,345,01/12/2023,2312-00672,0.00,108.71,R,Alliance Automotive UK CV LTD,No
Http://opendatacommunities.org/id/metropolitan-district-council/leeds,Leeds City Council,31/12/2023,Strategy and Resources,Commercial Services,Transport,Vehicle Spares,345,01/12/2023,2312-00673,0.00,56.82,R,Alliance Automotive UK CV LTD,No
Http://opendatacommunities.org/id/metropolitan-district-council/leeds,Leeds City Council,31/12/2023,Strategy and Resources,Commercial Services,Transport,Vehicle Spares,345,01/12/2023,2312-00674,0.00,28.20,R,Alliance Automotive UK CV LTD,No
Http://opendatacommunities.org/id/metropolitan-district-council/leeds,Leeds City Council,31/12/2023,Strategy and Resources,Commercial Services,Transport,Vehicle Spares,345,01/12/2023,2312-00675,0.00,20.95,R,Alliance Automotive UK CV LTD,No
Http://opendatacommunities.org/id/metropolitan-district-council/leeds,Leeds City Council,31/12/2023,Strategy and Resources,Commercial Services,Transport,Vehicle Spares,345,01/12/2023,2312-00676,0.00,11.90,R,Alliance Automotive UK CV LTD,No
Http://opendatacommunities.org/id/metropolitan-district-council/leeds,Leeds City Council,31/12/2023,Strategy and Resources,Commercial Services,Transport,Vehicle Spares,345,01/12/2023,2312-00677,0.00,297.47,R,Alliance Automotive UK CV LTD,No
Http://opendatacommunities.org/id/metropolitan-district-council/leeds,Leeds City Council,31/12/2023,Strategy and Resources,Commercial Services,Transport,Vehicle Spares,345,01/12/2023,2312-00678,0.00,149.26,R,Alliance Automotive UK CV LTD,No
Http://opendatacommunities.org/id/metropolitan-district-council/leeds,Leeds City Council,31/12/2023,Strategy and Resources,Commercial Services,Transport,Vehicle Spares,345,01/12/2023,2312-00679,0.00,146.49,R,Alliance Automotive UK CV LTD,No
Http://opendatacommunities.org/id/metropolitan-district-council/leeds,Leeds City Council,31/12/2023,Strategy and Resources,Commercial Services,Transport,Vehicle Spares,345,01/12/2023,2312-00680,0.00,182.40,R,Alliance Automotive UK CV LTD,No
Http://opendatacommunities.org/id/metropolitan-district-council/leeds,Leeds City Council,31/12/2023,Strategy and Resources,Commercial Services,Transport,Vehicle Spares,345,01/12/2023,2312-00681,0.00,51.61,R,Alliance Automotive UK CV LTD,No
Http://opendatacommunities.org/id/metropolitan-district-council/leeds,Leeds City Council,31/12/2023,Strategy and Resources,Commercial Services,Transport,Vehicle Spares,345,07/12/2023,2312-00682,0.00,-385.24,R,Alliance Automotive UK CV LTD,No
Http://opendatacommunities.org/id/metropolitan-district-council/leeds,Leeds City Council,31/12/2023,Strategy and Resources,Commercial Services,Transport,Vehicle Spares,345,07/12/2023,2312-00683,0.00,-295.52,R,Alliance Automotive UK CV LTD,No
Http://opendatacommunities.org/id/metropolitan-district-council/leeds,Leeds City Council,31/12/2023,Strategy and Resources,Commercial Services,Transport,Vehicle Spares,345,07/12/2023,2312-00684,0.00,163.35,R,Alliance Automotive UK CV LTD,No
Http://opendatacommunities.org/id/metropolitan-district-council/leeds,Leeds City Council,31/12/2023,Strategy and Resources,Commercial Services,Transport,Vehicle Spares,345,07/12/2023,2312-00685,0.00,229.92,R,Alliance Automotive UK CV LTD,No
Http://opendatacommunities.org/id/metropolitan-district-council/leeds,Leeds City Council,31/12/2023,Strategy and Resources,Commercial Services,Transport,Vehicle Spares,345,07/12/2023,2312-00686,0.00,248.24,R,Alliance Automotive UK CV LTD,No
Http://opendatacommunities.org/id/metropolitan-district-council/leeds,Leeds City Council,31/12/2023,Strategy and Resources,Commercial Services,Transport,Vehicle Spares,345,07/12/2023,2312-00687,0.00,577.80,R,Alliance Automotive UK CV LTD,No
Http://opendatacommunities.org/id/metropolitan-district-council/leeds,Leeds City Council,31/12/2023,Strategy and Resources,Commercial Services,Transport,Vehicle Spares,345,07/12/2023,2312-00688,0.00,123.67,R,Alliance Automotive UK CV LTD,No
Http://opendatacommunities.org/id/metropolitan-district-council/leeds,Leeds City Council,31/12/2023,Strategy and Resources,Commercial Services,Transport,Vehicle Spares,345,07/12/2023,2312-00689,0.00,256.83,R,Alliance Automotive UK CV LTD,No
Http://opendatacommunities.org/id/metropolitan-district-council/leeds,Leeds City Council,31/12/2023,Strategy and Resources,Commercial Services,Transport,Vehicle Spares,345,07/12/2023,2312-00690,0.00,832.84,R,Alliance Automotive UK CV LTD,No
Http://opendatacommunities.org/id/metropolitan-district-council/leeds,Leeds City Council,31/12/2023,Strategy and Resources,Commercial Services,Transport,Vehicle Spares,345,07/12/2023,2312-00691,0.00,983.37,R,Alliance Automotive UK CV LTD,No
Http://opendatacommunities.org/id/metropolitan-district-council/leeds,Leeds City Council,31/12/2023,Strategy and Resources,Commercial Services,Transport,Vehicle Spares,345,07/12/2023,2312-00692,0.00,522.86,R,Alliance Automotive UK CV LTD,No
Http://opendatacommunities.org/id/metropolitan-district-council/leeds,Leeds City Council,31/12/2023,Strategy and Resources,Commercial Services,Transport,Vehicle Spares,345,07/12/2023,2312-00693,0.00,307.55,R,Alliance Automotive UK CV LTD,No
Http://opendatacommunities.org/id/metropolitan-district-council/leeds,Leeds City Council,31/12/2023,Strategy and Resources,Commercial Services,Transport,Vehicle Spares,345,07/12/2023,2312-00694,0.00,279.21,R,Alliance Automotive UK CV LTD,No
Http://opendatacommunities.org/id/metropolitan-district-council/leeds,Leeds City Council,31/12/2023,Strategy and Resources,Commercial Services,Transport,Vehicle Spares,345,07/12/2023,2312-00695,0.00,122.63,R,Alliance Automotive UK CV LTD,No
Http://opendatacommunities.org/id/metropolitan-district-council/leeds,Leeds City Council,31/12/2023,Strategy and Resources,Commercial Services,Transport,Vehicle Spares,345,07/12/2023,2312-00696,0.00,547.20,R,Alliance Automotive UK CV LTD,No
Http://opendatacommunities.org/id/metropolitan-district-council/leeds,Leeds City Council,31/12/2023,Strategy and Resources,Commercial Services,Transport,Vehicle Spares,345,07/12/2023,2312-00697,0.00,4.21,R,Alliance Automotive UK CV LTD,No
Http://opendatacommunities.org/id/metropolitan-district-council/leeds,Leeds City Council,31/12/2023,Strategy and Resources,Commercial Services,Transport,Vehicle Spares,345,07/12/2023,2312-00698,0.00,61.72,R,Alliance Automotive UK CV LTD,No
Http://opendatacommunities.org/id/metropolitan-district-council/leeds,Leeds City Council,31/12/2023,Strategy and Resources,Commercial Services,Transport,Vehicle Spares,345,07/12/2023,2312-00699,0.00,732.02,R,Alliance Automotive UK CV LTD,No
Http://opendatacommunities.org/id/metropolitan-district-council/leeds,Leeds City Council,31/12/2023,Strategy and Resources,Commercial Services,Transport,Vehicle Spares,345,07/12/2023,2312-00700,0.00,34.66,R,Alliance Automotive UK CV LTD,No
Http://opendatacommunities.org/id/metropolitan-district-council/leeds,Leeds City Council,31/12/2023,Strategy and Resources,Commercial Services,Transport,Vehicle Spares,345,07/12/2023,2312-00701,0.00,260.49,R,Alliance Automotive UK CV LTD,No
Http://opendatacommunities.org/id/metropolitan-district-council/leeds,Leeds City Council,31/12/2023,Strategy and Resources,Commercial Services,Transport,Vehicle Spares,345,07/12/2023,2312-00702,0.00,378.49,R,Alliance Automotive UK CV LTD,No
Http://opendatacommunities.org/id/metropolitan-district-council/leeds,Leeds City Council,31/12/2023,Strategy and Resources,Commercial Services,Transport,Vehicle Spares,345,07/12/2023,2312-00703,0.00,262.51,R,Alliance Automotive UK CV LTD,No
Http://opendatacommunities.org/id/metropolitan-district-council/leeds,Leeds City Council,31/12/2023,Strategy and Resources,Commercial Services,Transport,Vehicle Spares,345,08/12/2023,2312-00704,0.00,-262.97,R,Alliance Automotive UK CV LTD,No
Http://opendatacommunities.org/id/metropolitan-district-council/leeds,Leeds City Council,31/12/2023,Strategy and Resources,Commercial Services,Transport,Vehicle Spares,345,08/12/2023,2312-00705,0.00,577.17,R,Alliance Automotive UK CV LTD,No
Http://opendatacommunities.org/id/metropolitan-district-council/leeds,Leeds City Council,31/12/2023,Strategy and Resources,Commercial Services,Transport,Vehicle Spares,345,08/12/2023,2312-00706,0.00,225.08,R,Alliance Automotive UK CV LTD,No
Http://opendatacommunities.org/id/metropolitan-district-council/leeds,Leeds City Council,31/12/2023,Strategy and Resources,Commercial Services,Transport,Vehicle Spares,345,08/12/2023,2312-00707,0.00,213.84,R,Alliance Automotive UK CV LTD,No
Http://opendatacommunities.org/id/metropolitan-district-council/leeds,Leeds City Council,31/12/2023,Strategy and Resources,Commercial Services,Transport,Vehicle Spares,345,08/12/2023,2312-00708,0.00,214.08,R,Alliance Automotive UK CV LTD,No
Http://opendatacommunities.org/id/metropolitan-district-council/leeds,Leeds City Council,31/12/2023,Strategy and Resources,Commercial Services,Transport,Vehicle Spares,345,08/12/2023,2312-00709,0.00,286.63,R,Alliance Automotive UK CV LTD,No
Http://opendatacommunities.org/id/metropolitan-district-council/leeds,Leeds City Council,31/12/2023,Strategy and Resources,Commercial Services,Transport,Vehicle Spares,345,08/12/2023,2312-00710,0.00,14.13,R,Alliance Automotive UK CV LTD,No
Http://opendatacommunities.org/id/metropolitan-district-council/leeds,Leeds City Council,31/12/2023,Strategy and Resources,Commercial Services,Transport,Vehicle Spares,345,08/12/2023,2312-00711,0.00,4.21,R,Alliance Automotive UK CV LTD,No
Http://opendatacommunities.org/id/metropolitan-district-council/leeds,Leeds City Council,31/12/2023,Strategy and Resources,Commercial Services,Transport,Vehicle Spares,345,08/12/2023,2312-00712,0.00,735.01,R,Alliance Automotive UK CV LTD,No
Http://opendatacommunities.org/id/metropolitan-district-council/leeds,Leeds City Council,31/12/2023,Strategy and Resources,Commercial Services,Transport,Vehicle Spares,345,08/12/2023,2312-00713,0.00,1821.42,R,Alliance Automotive UK CV LTD,No
Http://opendatacommunities.org/id/metropolitan-district-council/leeds,Leeds City Council,31/12/2023,Strategy and Resources,Commercial Services,Transport,Vehicle Spares,345,08/12/2023,2312-00714,0.00,96.53,R,Alliance Automotive UK CV LTD,No
Http://opendatacommunities.org/id/metropolitan-district-council/leeds,Leeds City Council,31/12/2023,Strategy and Resources,Commercial Services,Transport,Vehicle Spares,345,08/12/2023,2312-00715,0.00,37.13,R,Alliance Automotive UK CV LTD,No
Http://opendatacommunities.org/id/metropolitan-district-council/leeds,Leeds City Council,31/12/2023,Strategy and Resources,Commercial Services,Transport,Vehicle Spares,345,08/12/2023,2312-00716,0.00,146.52,R,Alliance Automotive UK CV LTD,No
Http://opendatacommunities.org/id/metropolitan-district-council/leeds,Leeds City Council,31/12/2023,Strategy and Resources,Commercial Services,Transport,Vehicle Spares,345,08/12/2023,2312-00717,0.00,262.97,R,Alliance Automotive UK CV LTD,No
Http://opendatacommunities.org/id/metropolitan-district-council/leeds,Leeds City Council,31/12/2023,Strategy and Resources,Commercial Services,Transport,Vehicle Spares,345,08/12/2023,2312-00718,0.00,269.11,R,Alliance Automotive UK CV LTD,No
Http://opendatacommunities.org/id/metropolitan-district-council/leeds,Leeds City Council,31/12/2023,Strategy and Resources,Commercial Services,Transport,Vehicle Spares,345,08/12/2023,2312-00719,0.00,274.19,R,Alliance Automotive UK CV LTD,No
Http://opendatacommunities.org/id/metropolitan-district-council/leeds,Leeds City Council,31/12/2023,Strategy and Resources,Commercial Services,Transport,Vehicle Spares,345,08/12/2023,2312-00720,0.00,679.81,R,Alliance Automotive UK CV LTD,No
Http://opendatacommunities.org/id/metropolitan-district-council/leeds,Leeds City Council,31/12/2023,Strategy and Resources,Commercial Services,Transport,Vehicle Spares,345,08/12/2023,2312-00721,0.00,1065.24,R,Alliance Automotive UK CV LTD,No
Http://opendatacommunities.org/id/metropolitan-district-council/leeds,Leeds City Council,31/12/2023,Strategy and Resources,Commercial Services,Transport,Vehicle Spares,345,08/12/2023,2312-00722,0.00,372.35,R,Alliance Automotive UK CV LTD,No
Http://opendatacommunities.org/id/metropolitan-district-council/leeds,Leeds City Council,31/12/2023,Strategy and Resources,Commercial Services,Transport,Vehicle Spares,345,08/12/2023,2312-00723,0.00,94.93,R,Alliance Automotive UK CV LTD,No
Http://opendatacommunities.org/id/metropolitan-district-council/leeds,Leeds City Council,31/12/2023,Strategy and Resources,Commercial Services,Transport,Vehicle Spares,345,08/12/2023,2312-00724,0.00,263.17,R,Alliance Automotive UK CV LTD,No
Http://opendatacommunities.org/id/metropolitan-district-council/leeds,Leeds City Council,31/12/2023,Strategy and Resources,Commercial Services,Transport,Vehicle Spares,345,08/12/2023,2312-00725,0.00,376.77,R,Alliance Automotive UK CV LTD,No
Http://opendatacommunities.org/id/metropolitan-district-council/leeds,Leeds City Council,31/12/2023,Strategy and Resources,Commercial Services,Transport,Vehicle Spares,345,08/12/2023,2312-00726,0.00,283.57,R,Alliance Automotive UK CV LTD,No
Http://opendatacommunities.org/id/metropolitan-district-council/leeds,Leeds City Council,31/12/2023,Strategy and Resources,Commercial Services,Transport,Vehicle Spares,345,08/12/2023,2312-00727,0.00,309.36,R,Alliance Automotive UK CV LTD,No
Http://opendatacommunities.org/id/metropolitan-district-council/leeds,Leeds City Council,31/12/2023,Strategy and Resources,Commercial Services,Transport,Vehicle Spares,345,08/12/2023,2312-00728,0.00,19.42,R,Alliance Automotive UK CV LTD,No
Http://opendatacommunities.org/id/metropolitan-district-council/leeds,Leeds City Council,31/12/2023,Strategy and Resources,Commercial Services,Transport,Vehicle Spares,345,08/12/2023,2312-00729,0.00,233.89,R,Alliance Automotive UK CV LTD,No
Http://opendatacommunities.org/id/metropolitan-district-council/leeds,Leeds City Council,31/12/2023,Strategy and Resources,Commercial Services,Transport,Vehicle Spares,345,08/12/2023,2312-00730,0.00,1629.96,R,Alliance Automotive UK CV LTD,No
Http://opendatacommunities.org/id/metropolitan-district-council/leeds,Leeds City Council,31/12/2023,Strategy and Resources,Commercial Services,Transport,Vehicle Spares,345,08/12/2023,2312-00731,0.00,663.30,R,Alliance Automotive UK CV LTD,No
Http://opendatacommunities.org/id/metropolitan-district-council/leeds,Leeds City Council,31/12/2023,Strategy and Resources,Commercial Services,Transport,Vehicle Spares,345,08/12/2023,2312-00732,0.00,211.61,R,Alliance Automotive UK CV LTD,No
Http://opendatacommunities.org/id/metropolitan-district-council/leeds,Leeds City Council,31/12/2023,Strategy and Resources,Commercial Services,Transport,Vehicle Spares,345,08/12/2023,2312-00733,0.00,322.96,R,Alliance Automotive UK CV LTD,No
Http://opendatacommunities.org/id/metropolitan-district-council/leeds,Leeds City Council,31/12/2023,Strategy and Resources,Commercial Services,Transport,Vehicle Spares,345,08/12/2023,2312-00734,0.00,26.72,R,Alliance Automotive UK CV LTD,No
Http://opendatacommunities.org/id/metropolitan-district-council/leeds,Leeds City Council,31/12/2023,Strategy and Resources,Commercial Services,Transport,Vehicle Spares,345,08/12/2023,2312-00735,0.00,69.98,R,Alliance Automotive UK CV LTD,No
Http://opendatacommunities.org/id/metropolitan-district-council/leeds,Leeds City Council,31/12/2023,Strategy and Resources,Commercial Services,Transport,Vehicle Spares,345,08/12/2023,2312-00736,0.00,227.50,R,Alliance Automotive UK CV LTD,No
Http://opendatacommunities.org/id/metropolitan-district-council/leeds,Leeds City Council,31/12/2023,Strategy and Resources,Commercial Services,Transport,Vehicle Spares,345,08/12/2023,2312-00737,0.00,227.50,R,Alliance Automotive UK CV LTD,No
Http://opendatacommunities.org/id/metropolitan-district-council/leeds,Leeds City Council,31/12/2023,Strategy and Resources,Commercial Services,Transport,Vehicle Spares,345,13/12/2023,2312-00738,0.00,571.40,R,Alliance Automotive UK CV LTD,No
Http://opendatacommunities.org/id/metropolitan-district-council/leeds,Leeds City Council,31/12/2023,Strategy and Resources,Commercial Services,Transport,Vehicle Spares,345,14/12/2023,2312-00739,0.00,-269.11,R,Alliance Automotive UK CV LTD,No
Http://opendatacommunities.org/id/metropolitan-district-council/leeds,Leeds City Council,31/12/2023,Strategy and Resources,Commercial Services,Transport,Vehicle Spares,345,14/12/2023,2312-00740,0.00,132.32,R,Alliance Automotive UK CV LTD,No
Http://opendatacommunities.org/id/metropolitan-district-council/leeds,Leeds City Council,31/12/2023,Strategy and Resources,Commercial Services,Transport,Vehicle Spares,345,14/12/2023,2312-00741,0.00,13.67,R,Alliance Automotive UK CV LTD,No
Http://opendatacommunities.org/id/metropolitan-district-council/leeds,Leeds City Council,31/12/2023,Strategy and Resources,Commercial Services,Transport,Vehicle Spares,345,14/12/2023,2312-00742,0.00,57.23,R,Alliance Automotive UK CV LTD,No
Http://opendatacommunities.org/id/metropolitan-district-council/leeds,Leeds City Council,31/12/2023,Strategy and Resources,Commercial Services,Transport,Vehicle Spares,345,14/12/2023,2312-00743,0.00,4.21,R,Alliance Automotive UK CV LTD,No
Http://opendatacommunities.org/id/metropolitan-district-council/leeds,Leeds City Council,31/12/2023,Strategy and Resources,Commercial Services,Transport,Vehicle Spares,345,14/12/2023,2312-00744,0.00,29.29,R,Alliance Automotive UK CV LTD,No
Http://opendatacommunities.org/id/metropolitan-district-council/leeds,Leeds City Council,31/12/2023,Strategy and Resources,Commercial Services,Transport,Vehicle Spares,345,14/12/2023,2312-00745,0.00,560.46,R,Alliance Automotive UK CV LTD,No
Http://opendatacommunities.org/id/metropolitan-district-council/leeds,Leeds City Council,31/12/2023,Strategy and Resources,Commercial Services,Transport,Vehicle Spares,345,14/12/2023,2312-00746,0.00,349.81,R,Alliance Automotive UK CV LTD,No
Http://opendatacommunities.org/id/metropolitan-district-council/leeds,Leeds City Council,31/12/2023,Strategy and Resources,Commercial Services,Transport,Vehicle Spares,345,14/12/2023,2312-00747,0.00,60.41,R,Alliance Automotive UK CV LTD,No
Http://opendatacommunities.org/id/metropolitan-district-council/leeds,Leeds City Council,31/12/2023,Strategy and Resources,Commercial Services,Transport,Vehicle Spares,345,14/12/2023,2312-00748,0.00,150.61,R,Alliance Automotive UK CV LTD,No
Http://opendatacommunities.org/id/metropolitan-district-council/leeds,Leeds City Council,31/12/2023,Strategy and Resources,Commercial Services,Transport,Vehicle Spares,345,14/12/2023,2312-00749,0.00,2004.06,R,Alliance Automotive UK CV LTD,No
Http://opendatacommunities.org/id/metropolitan-district-council/leeds,Leeds City Council,31/12/2023,Strategy and Resources,Commercial Services,Transport,Vehicle Spares,345,14/12/2023,2312-00750,0.00,544.23,R,Alliance Automotive UK CV LTD,No
Http://opendatacommunities.org/id/metropolitan-district-council/leeds,Leeds City Council,31/12/2023,Strategy and Resources,Commercial Services,Transport,Vehicle Spares,345,14/12/2023,2312-00751,0.00,145.73,R,Alliance Automotive UK CV LTD,No
Http://opendatacommunities.org/id/metropolitan-district-council/leeds,Leeds City Council,31/12/2023,Strategy and Resources,Commercial Services,Transport,Vehicle Spares,345,14/12/2023,2312-00752,0.00,177.65,R,Alliance Automotive UK CV LTD,No
Http://opendatacommunities.org/id/metropolitan-district-council/leeds,Leeds City Council,31/12/2023,Strategy and Resources,Commercial Services,Transport,Vehicle Spares,345,14/12/2023,2312-00753,0.00,204.19,R,Alliance Automotive UK CV LTD,No
Http://opendatacommunities.org/id/metropolitan-district-council/leeds,Leeds City Council,31/12/2023,Strategy and Resources,Commercial Services,Transport,Vehicle Spares,345,14/12/2023,2312-00754,0.00,42.54,R,Alliance Automotive UK CV LTD,No
Http://opendatacommunities.org/id/metropolitan-district-council/leeds,Leeds City Council,31/12/2023,Strategy and Resources,Commercial Services,Transport,Vehicle Spares,345,14/12/2023,2312-00755,0.00,294.03,R,Alliance Automotive UK CV LTD,No
Http://opendatacommunities.org/id/metropolitan-district-council/leeds,Leeds City Council,31/12/2023,Strategy and Resources,Commercial Services,Transport,Vehicle Spares,345,14/12/2023,2312-00756,0.00,4.21,R,Alliance Automotive UK CV LTD,No
Http://opendatacommunities.org/id/metropolitan-district-council/leeds,Leeds City Council,31/12/2023,Strategy and Resources,Commercial Services,Transport,Vehicle Spares,345,14/12/2023,2312-00757,0.00,215.33,R,Alliance Automotive UK CV LTD,No
Http://opendatacommunities.org/id/metropolitan-district-council/leeds,Leeds City Council,31/12/2023,Strategy and Resources,Commercial Services,Transport,Vehicle Spares,345,14/12/2023,2312-00758,0.00,17.26,R,Alliance Automotive UK CV LTD,No
Http://opendatacommunities.org/id/metropolitan-district-council/leeds,Leeds City Council,31/12/2023,Strategy and Resources,Commercial Services,Transport,Vehicle Spares,345,14/12/2023,2312-00759,0.00,1024.59,R,Alliance Automotive UK CV LTD,No
Http://opendatacommunities.org/id/metropolitan-district-council/leeds,Leeds City Council,31/12/2023,Strategy and Resources,Commercial Services,Transport,Vehicle Spares,345,14/12/2023,2312-00760,0.00,248.23,R,Alliance Automotive UK CV LTD,No
Http://opendatacommunities.org/id/metropolitan-district-council/leeds,Leeds City Council,31/12/2023,Strategy and Resources,Commercial Services,Transport,Vehicle Spares,345,14/12/2023,2312-00761,0.00,477.98,R,Alliance Automotive UK CV LTD,No
Http://opendatacommunities.org/id/metropolitan-district-council/leeds,Leeds City Council,31/12/2023,Strategy and Resources,Commercial Services,Transport,Vehicle Spares,345,15/12/2023,2312-00762,0.00,-222.28,R,Alliance Automotive UK CV LTD,No
Http://opendatacommunities.org/id/metropolitan-district-council/leeds,Leeds City Council,31/12/2023,Strategy and Resources,Commercial Services,Transport,Vehicle Spares,345,15/12/2023,2312-00763,0.00,4.21,R,Alliance Automotive UK CV LTD,No
Http://opendatacommunities.org/id/metropolitan-district-council/leeds,Leeds City Council,31/12/2023,Strategy and Resources,Commercial Services,Transport,Vehicle Spares,345,15/12/2023,2312-00764,0.00,145.89,R,Alliance Automotive UK CV LTD,No
Http://opendatacommunities.org/id/metropolitan-district-council/leeds,Leeds City Council,31/12/2023,Strategy and Resources,Commercial Services,Transport,Vehicle Spares,345,15/12/2023,2312-00765,0.00,1317.68,R,Alliance Automotive UK CV LTD,No
Http://opendatacommunities.org/id/metropolitan-district-council/leeds,Leeds City Council,31/12/2023,Strategy and Resources,Commercial Services,Transport,Vehicle Spares,345,15/12/2023,2312-00766,0.00,93.43,R,Alliance Automotive UK CV LTD,No
Http://opendatacommunities.org/id/metropolitan-district-council/leeds,Leeds City Council,31/12/2023,Strategy and Resources,Commercial Services,Transport,Vehicle Spares,345,15/12/2023,2312-00767,0.00,134.78,R,Alliance Automotive UK CV LTD,No
Http://opendatacommunities.org/id/metropolitan-district-council/leeds,Leeds City Council,31/12/2023,Strategy and Resources,Commercial Services,Transport,Vehicle Spares,345,15/12/2023,2312-00768,0.00,362.05,R,Alliance Automotive UK CV LTD,No
Http://opendatacommunities.org/id/metropolitan-district-council/leeds,Leeds City Council,31/12/2023,Strategy and Resources,Commercial Services,Transport,Vehicle Spares,345,15/12/2023,2312-00769,0.00,95.54,R,Alliance Automotive UK CV LTD,No
Http://opendatacommunities.org/id/metropolitan-district-council/leeds,Leeds City Council,31/12/2023,Strategy and Resources,Commercial Services,Transport,Vehicle Spares,345,15/12/2023,2312-00770,0.00,1001.67,R,Alliance Automotive UK CV LTD,No
Http://opendatacommunities.org/id/metropolitan-district-council/leeds,Leeds City Council,31/12/2023,Strategy and Resources,Commercial Services,Transport,Vehicle Spares,345,15/12/2023,2312-00771,0.00,259.88,R,Alliance Automotive UK CV LTD,No
Http://opendatacommunities.org/id/metropolitan-district-council/leeds,Leeds City Council,31/12/2023,Strategy and Resources,Commercial Services,Transport,Vehicle Spares,345,15/12/2023,2312-00772,0.00,50.51,R,Alliance Automotive UK CV LTD,No
Http://opendatacommunities.org/id/metropolitan-district-council/leeds,Leeds City Council,31/12/2023,Strategy and Resources,Commercial Services,Transport,Vehicle Spares,345,15/12/2023,2312-00773,0.00,1342.58,R,Alliance Automotive UK CV LTD,No
Http://opendatacommunities.org/id/metropolitan-district-council/leeds,Leeds City Council,31/12/2023,Strategy and Resources,Commercial Services,Transport,Vehicle Spares,345,15/12/2023,2312-00774,0.00,32.67,R,Alliance Automotive UK CV LTD,No
Http://opendatacommunities.org/id/metropolitan-district-council/leeds,Leeds City Council,31/12/2023,Strategy and Resources,Commercial Services,Transport,Vehicle Spares,345,15/12/2023,2312-00775,0.00,4826.25,R,Alliance Automotive UK CV LTD,No
Http://opendatacommunities.org/id/metropolitan-district-council/leeds,Leeds City Council,31/12/2023,Strategy and Resources,Commercial Services,Transport,Vehicle Spares,345,15/12/2023,2312-00776,0.00,165.06,R,Alliance Automotive UK CV LTD,No
Http://opendatacommunities.org/id/metropolitan-district-council/leeds,Leeds City Council,31/12/2023,Strategy and Resources,Commercial Services,Transport,Vehicle Spares,345,15/12/2023,2312-00777,0.00,363.83,R,Alliance Automotive UK CV LTD,No
Http://opendatacommunities.org/id/metropolitan-district-council/leeds,Leeds City Council,31/12/2023,Strategy and Resources,Commercial Services,Transport,Vehicle Spares,345,15/12/2023,2312-00778,0.00,74.97,R,Alliance Automotive UK CV LTD,No
Http://opendatacommunities.org/id/metropolitan-district-council/leeds,Leeds City Council,31/12/2023,Strategy and Resources,Commercial Services,Transport,Vehicle Spares,345,15/12/2023,2312-00779,0.00,236.38,R,Alliance Automotive UK CV LTD,No
Http://opendatacommunities.org/id/metropolitan-district-council/leeds,Leeds City Council,31/12/2023,Strategy and Resources,Commercial Services,Transport,Vehicle Spares,345,15/12/2023,2312-00780,0.00,130.09,R,Alliance Automotive UK CV LTD,No
Http://opendatacommunities.org/id/metropolitan-district-council/leeds,Leeds City Council,31/12/2023,Strategy and Resources,Commercial Services,Transport,Vehicle Spares,345,15/12/2023,2312-00781,0.00,163.10,R,Alliance Automotive UK CV LTD,No
Http://opendatacommunities.org/id/metropolitan-district-council/leeds,Leeds City Council,31/12/2023,Strategy and Resources,Commercial Services,Transport,Vehicle Spares,345,15/12/2023,2312-00782,0.00,164.45,R,Alliance Automotive UK CV LTD,No
Http://opendatacommunities.org/id/metropolitan-district-council/leeds,Leeds City Council,31/12/2023,Strategy and Resources,Commercial Services,Transport,Vehicle Spares,345,15/12/2023,2312-00783,0.00,138.41,R,Alliance Automotive UK CV LTD,No
